Workbook

Sheet B£ST Workflow & How to Guide
S1: B£ST Workflow & how to Guide | AE1: >>HIDE_ALONG
B2: =ProjDetails -> PROJECT DETAILS - Name: Roundhay Park SuDS Scheme , Assmt. Version: 1, Date: Feb 2019.
B4: B£ST Workflow with links to selected pages.
B27: LEDGEND
B39: HOW TO GUIDE
B42: B£ST Ribbon
B44: Use the buttons to navigate through the tool.
B46: Press help if programme freezes.
B48: Help button contains links to the guidance and how to contact CIRIA about B£ST.
B55: Getting started. Please refer to the guidance for further information and support to use the tool.
B58: Each box is a different colour and boundary to indicate its type. | F58: Input value or text | K58: Select value via a drop down menu | P58: Auto populated value
B63: Common buttons on each benefit page for the values library or the location in the guidance to help you complete the assessment for a specific benefit.
B70: Summary of how to use the tool for each major stage.
B72: Project details | O72: Coarse Assessment
B73: Enter the project details to provide record of the project. | O73: Enter the values to the questions in the orange cells and record down your reasoning.
B74: Double click the blue boxes to select the stakeholders. | O74: Table and graph will be automatically generated and the graph can be manipulated using standard excel functions.
B75: This is for information only.
B77: Screening questions | O77: Undertaking an assessment for each benefit page.
B78: Review the potential impact the option will have by considering the questions for each benefit. | O78: Where appropriate, the tool enables a baseline and proposed option to be evaluated.
B79: Select the qualitative impact (negative to positive) to record your decisions and whether you wish to assess the benefits (Yes/No). | O79: If you choose to assess the impact only, then determine the difference between the baseline and proposed option and complete the proposed option section.
B80: Open up the benefits to assess using the Enable Pages button at the top of the page. | O80: You will typically fill in the quantity of the benefit, select a monetary value, the confidence and the start and end of the evaluation to carucate present values.
O81: The 'Evaluating the Benefits' section of the guidance provides further details regarding how to complete an assessment. Each benefit contains links to more guidance.
O82: All evaluations should have a start date of 2018 or later, unless you amend GDP deflators as identified in the guidance (section 4.5).
B84: Summary of outputs - Qualitative or Monetised | O84: Sensitivity analysis
B85: These provide a summary of the assessments. | O85: Change the confidence values for the benefits to create a low and high sensitivity analysis.
B86: Enter in further comments if required. | O86: The guidance recommends changing the confidence value one increment down for low and one increment up for high.
B87: These values are automatically summarised in the B£ST Results Dashboard. | O87: These values are automatically summarised in the B£ST Results Dashboard.
B89: B£ST Results Dashboard | O89: Scenarios Assessment
B90: This collates all the results from the benefit assessment and sensitivity analysis. | O90: Name the scenarios and score the scenarios and benefits, following the information within the guidance.
B91: Amend the graphs to visually show the information you wish to show. | O91: The results of the scoring will automatically create the summary table and graph.
B92: For user defined benefits, amendment of the ecosystem services equations is necessary to apply to correct system.
B93: The benefit distribution score indicates if the benefits are well spread (A) or dominated by one or a few benefits (F)
A96: >>HIDE_BELOW
A200: >>HIDE_BELOW

Sheet Information Requirements
J1: Information Requirements - Individual benefit sources of evidence | L1: >>HIDE_ALONG | AI1: >>HIDE_ALONG
B2: =ProjDetails -> PROJECT DETAILS - Name: Roundhay Park SuDS Scheme , Assmt. Version: 1, Date: Feb 2019.
I4: Quantity
I5: Type of evidence | J5: Typical source
I6: Number of trees and area of vegative SuDS/NFM | J6: Local air quality study
D7: Air Quality
I9: Number/type of homes/commercial properties and number of people impacted by scheme | J9: Landscape character assessment or landscape visual impact assessment. Visitor numbers from local survey data or MENE (Monitor of Engagement with the Natural Environment)
D10: Amenity
I12: Change in size/type of green and blue space due to scheme | J12: Biodiversity Action Plan or local habitat surveys. Habitat types and designated sites from www.magic.gov.uk
D13: Biodiversity
I15: Area of green roof / number of trees. Annual number of heating and cooling (using air conditioning) degree days. | J15: Energy management plan
D16: Building temperature
I18: Number and type of trees | J18: Carbon management plan
D19: Carbon Sequestration
I21: Estimated additional number of nature-based school trips that will be created as a result of the scheme | J21: Local evidence, consultation with schools in the area or an evaluation study
D22: Education
I24: Area (ha) of land, avoided infrastructure costs | J24: Local development plan, water cycle study or sewerage management plan
D25: Enabling development
I27: The number of properties of different types at reduced risk The change in risk (flood frequency) Scale and type of non-property impacts The reduction in time lost by people through flooding (an estimate of the number of people and time) | J27: Flood risk assessment
D28: Flood risk
I30: Current and projected flows in water bodies Current and projected condition of waterbody | J30: Flow modelling assessment Design of amendments
D31: Flows in watercourses
I33: Volume of water infiltrating to groundwater | J33: Ground water study, water cycle study
D34: Groundwater recharge
I36: The additional number of walking/cycling trips and average duration or distance of these trips. The increase in population being active and likely length/duration of the activity. Estimated additional numbers of people having a view over green space from house or regular place of work, with freshwater or wetland within 1km of home or regular place of work or using garden or non-countryside green space monthly or more. | J36: Health Impact Assessment (HIA), landscape assessment or similar
D37: Health
I39: Size/type of green components in scheme such as number of trees | J39: Local noise management study
D40: Noise
I42: Change in flows or energy use due to scheme | J42: Pumped flows, pump run times, energy consumption
D43: Pumping
I45: Number of properties, household size, water consumption rates | J45: Water demand / use study
D46: Rainwater harvesting
I48: Number of additional or enhanced recreational visits created because of the scheme | J48: Open space provision assessments in Local Env Action Plans (LEAPs)
D49: Recreation
I51: Annual number of collisions (fatal, serious, slight, damage only) | J51: Traffic management plan
D52: Traffic Calming
I54: Change in flows or energy use due to scheme | J54: WwTW assessment including chemical and energy usage
D55: Treating wastewater
I57: Current and projected water quality status | J57: UPM (Urban Pollution Management) modelling or similar Reason for Failure (RFF)
D58: Water quality
I60: Change in property/violent/other crimes as a result of scheme | J60: Local evidence or evaluation study
D61: Crime
I63: Change in local economic growth indicators, consumer spending, business rates, number of green jobs or productivity as a result of scheme | J63: Local economic study
D64: Economic Growth
I66: Change in visitors and visitor spending as a result of scheme | J66: Local tourism study
D67: Tourism
A69: >>HIDE_BELOW
A98: >>HIDE_BELOW

Sheet How to evaluate benefits
J1: How to evaluate benefits | O1: >>HIDE_ALONG
B2: =ProjDetails -> PROJECT DETAILS - Name: Roundhay Park SuDS Scheme , Assmt. Version: 1, Date: Feb 2019.
B4: How to evaluate benefits: a simple step by step guide to assess the effect of an intervention(s) and the type and scale of benefit it leads to.
B8: What is the intervention and what is the context?
B9: Understand what interventions you are, or might consider proposing. These might be independent or work as part of a connected network of interventions.
B10: Understand the existing context where the interventions will be built. Depending upon the size of the works, you may have more than one context where you are building.
B11: For a building or street retrofit, consider what is immediately local. As the scale gets bigger, consider the catchment more strategically if that is the purpose of the evaluation. When going into more detail, categorise the catchment for the benefit being considered.
B13: How does it work?
B14: For each intervention or group of interventions, understand how they work. What this means is understanding how they will perform and operate over time.
B15: Become familiar with how different interventions function individually.
B16: Some interventions contribute to the overall outcome, and should be considered in this context rather than individually. For example, a group of interventions may collectively reduce flood risk and improve water quality.
B18: What does it change?
B19: Identify the likely impacts of the intervention(s) on the range of benefits covered by B£ST.
B20: Use the 'Screening Questions' sheet to help identify the nature, direction, timing and scale of potential changes relative to the baseline situation.
B21: Only those benefit categories where the change is considered to be significant should be taken forward for further assessment.
B23: How much will it change?
B24: For each benefit category identified as significant, quantify the change as a result of the intervention(s)
B25: Use the guidance to help identify relevant metrics and quantities in each category.
B27: What is the final outcome, benefit?
B28: Identify the value of each quantified benefit in monetary or non-monetary terms
B29: Annual values for monetised benefits, and scores for non-monetised benefits, can be estimated using the tool and guidance.
A40: >>HIDE_BELOW

Sheet Potential double counting
U1: Potential for double counting | Y1: >>HIDE_ALONG
B2: =ProjDetails -> PROJECT DETAILS - Name: Roundhay Park SuDS Scheme , Assmt. Version: 1, Date: Feb 2019.
B4: This worksheet is for information only to help you understand where double counting may occur between benefit categories
B6: Impact | C6: Air quality | D6: Amenity | E6: Biodiversity (habitats) | F6: Building Temperature | G6: Carbon sequestration / reduction | H6: Crime | I6: Economic growth | J6: Education | K6: Enabling development | L6: Flows in watercourses (QW1) | M6: Flood risk | N6: Groundwater recharge (QW2) | O6: Health | P6: Noise | Q6: Pumping (AP1) | R6: Rainwater harvesting (QW3) | S6: Recreation | T6: Tourism | U6: Traffic calming | V6: Treating wastewater (AP2) | W6: Water quality of receiving water
B7: Air quality
B8: Amenity
B9: Biodiversity (habitats)
B10: Building Temperature
B11: Carbon sequestration / reduction
B12: Crime
B13: Economic growth
B14: Education
B15: Enabling development
B16: Flows in watercourses (QW1)
B17: Flood risk
B18: Groundwater recharge (QW2)
B19: Health
B20: Noise
B21: Pumping (AP1)
B22: Rainwater harvesting (QW3)
B23: Recreation
B24: Tourism
B25: Traffic calming
B26: Treating wastewater (AP2)
B27: Water quality of receiving water
A30: >>HIDE_BELOW

Sheet About W047 B£ST
M1: About CIRIA W047a B£ST: Evaluation Tool | O1: >>HIDE_ALONG
B2: =strVersion -> Version: 4.1., February-2019
B4: Authors: | D4: Prof. Christopher Digman, Dr Bruce Horton, Jordan McMullan (Stantec) and Prof Richard Ashley (EcoFutures)
B5: Developer: | D5: Gordon Wallace (WXLSolutions Ltd)
B6: CIRIA Project Managers: | D6: Paul Shaffer (Project Director)
B7: Funders:
B35: Thanks to our previous funders: JBA Trust, Northern Ireland Environment Agency & Mayor of London.
B37: For more information contact: | E37: CIRIA, Griffin Court, 15 Long Lane, London, EC1A 9PN, UK +44 (0) 207 549 3300
B38: For questions on the tool email: | E38: best@susdrain.org
A40: >>HIDE_BELOW

Sheet WELCOME
F1: WELCOME to the home page of B£ST | H1: >>HIDE_ALONG
B2: =strVersion -> Version: 4.1., February-2019
B4: B£ST helps you to estimate the benefits of blue-green infrastructure.
B5: B£ST provides two evaluation options, a Coarse Assessment and a more detailed assessment approach.
B7: Getting started:
B8: To understand how to complete a benefit appraisal, follow B£ST's workflow and how to use B£ST, go to:
B10: To understand the types of evidence required, go to:
B12: To understand an approach to structure your thinking and evaluate benefits, go to:
B14: If you are familiar with B£ST we recommend you start and complete the project details and progress to the Coarse Assessment or Screening Questions, go to:
B16: To access the supporting guidance for B£ST, go to:
B18: To provide feedback, please click on the link which will take you to the B£ST page on susdrain and complete the feedback survey at the bottom of the web page.
A22: >>HIDE_BELOW

Sheet Project Data
F1: Project Inputs | H1: >>HIDE_ALONG | I1: =IF('Project Data'!J6<>"","PROJECT DETAILS - "&'Project Data'!J6,"(Project Details Incomplete)") -> PROJECT DETAILS - Name: Roundhay Park SuDS Scheme , Assmt. Version: 1, Date: Feb 2019. | J1: << do not edit this cell.. It is needed elsewhere..// move it if you HAVE to but don't delete! | K1: Ciria Green RGB; 91,184,21 | M1: 33.75
M2: 12
B3: =ProjDetails -> PROJECT DETAILS - Name: Roundhay Park SuDS Scheme , Assmt. Version: 1, Date: Feb 2019. | I3: Reset | M3: 15
M4: 20
F5: (Notes)
I6: No: Name: Assmt. Version: Date: | J6: =SUBSTITUTE(SUBSTITUTE(SUBSTITUTE(K6,"><",", "),"<",""),">",".") -> Name: Roundhay Park SuDS Scheme , Assmt. Version: 1, Date: Feb 2019. | K6: =K13&K11&K15&K9 -> <Name: Roundhay Park SuDS Scheme ><Assmt. Version: 1><Date: Feb 2019> | M6: Values
B7: Author | C7: Author | D7: J McMullan | I7: pdAuthor | J7: =IF(INDIRECT(I7)="please enter","",INDIRECT(I7)) -> J McMullan | K7: =IF(OR(J7=0,J7=""),"","<"&J7&">") -> <J McMullan> | M7: please enter
B9: Date | C9: Date | D9: 2019-02-01 | I9: pdDate | J9: =IF(INDIRECT(I9)="please enter","",INDIRECT(I9)) -> 43497 | K9: =IF(OR(J9="",J9=0),"","<Date: "&TEXT(J9,"mmm yyyy")&">") -> <Date: Feb 2019> | L9: 4 | M9: please enter
B11: Project Name | C11: Project Name | D11: Roundhay Park SuDS Scheme | I11: pdProjectName | J11: =IF(INDIRECT(I11)="please enter","",INDIRECT(I11)) -> Roundhay Park SuDS Scheme | K11: =IF(OR(J11="",J11=0),"","<Name: "&J11&">") -> <Name: Roundhay Park SuDS Scheme > | L11: 2 | M11: please enter
B13: Project Reference Number | C13: Project Reference Number | I13: pdProjectNumber | J13: =IF(INDIRECT(I13)="please enter","",INDIRECT(I13)) -> 0 | K13: =IF(OR(J13="",J13=0),"","<No.: "&J13&">") ->  | L13: 1 | M13: please enter
B15: Assessment version | C15: Assessment version | D15: 1 | I15: pdAssessVer | J15: =IF(INDIRECT(I15)="please enter","",INDIRECT(I15)) -> 1 | K15: =IF(OR(J15="",J15=0),"","<Assmt. Version: "&J15&">") -> <Assmt. Version: 1> | L15: 3 | M15: please enter
J16: List Used | K16: Form Options | L16: Selected List Options | M16: List Other (if Applic.)
I17: 1 | J17: INFO BELOW HERE HELPS VBA ROUTINE FILL PICKBOX CORRECTLY, AND ALSO HELPS RESET
J18: =COLUMN() -> 10 | K18: =COLUMN() -> 11 | L18: =COLUMN() -> 12 | M18: =COLUMN() -> 13
B20: Location name | C20: 1 | D20: Roundhay Park, Leeds | F20: Type text into box | H20: =COLUMN(CBtn_Reset_Input)-2 -> 7
B22: Summarise baseline option | C22: 1 | D22: Existing | F22: =IF(N22,"Description too long (reduce length by "& LEN(D22)-144&IF( LEN(D22)-144>1," characters)"," character)"),"Enter option summary (MAX 144 Characters)") -> Enter option summary (MAX 144 Characters) | H22: 4 | N22: =LEN(D22)>144 -> FALSE
B24: Summarise proposed option | C24: 1 | D24: Highway runoff diverted into SuDS across the catchment through swales and pipes. Storage in detention basin/online pond and geocellular. Raingardens and water butts used on private properties. | F24: =IF(N24,"Description too long (reduce length by "& LEN(D24)-144&IF( LEN(D24)-144>1," characters)"," character)"),"Enter option summary (MAX 144 Characters)") -> Description too long (reduce length by 48 characters) | H24: 4 | N24: =LEN(D24)>144 -> TRUE
B26: Baseline option Present Value Cost (if applicable) | C26: 1 | D26: 0 | F26: Enter Cost | H26: 4
B28: Proposed option Present Value Cost | C28: 1 | D28: 10825125 | F28: Enter Cost | H28: 4
B30: Scheme supporters | C30: 2 | D30: =IF(AND(M30="",L30=""),"Please double click and select",SUBSTITUTE(L30&IF(AND(M30<>"",L30<>"")," || ","")&M30," || ",", ")) -> Local Authority, Water and Sewerage Company | F30: Double click & select from list | H30: =COLUMN(CBtn_Reset_Input)+6&"|"&COLUMN(CBtn_Reset_Input)+7 -> 15|16 | I30: strSchSupporters | J30: lstSchSupporters | K30: M_O | L30: Local Authority || Water and Sewerage Company
B32: Scheme funders | C32: 2 | D32: =IF(AND(M32="",L32=""),"Please double click and select",SUBSTITUTE(L32&IF(AND(M32<>"",L32<>"")," || ","")&M32," || ",", ")) -> Water and Sewerage Company | F32: Double click & select from list | H32: =COLUMN(CBtn_Reset_Input)+6&"|"&COLUMN(CBtn_Reset_Input)+7 -> 15|16 | I32: strSchFunders | J32: lstSchFunders | K32: M_O | L32: Water and Sewerage Company
B34: Discount rate to apply | C34: 1 | D34: 0.035 | F34: Type /change value in box
A36: >>HIDE_BELOW
B40: Name of option/design being assessed here | C40: 1 | F40: Type text into box | H40: =COLUMN(CBtn_Reset_Input)-2 -> 7
B42: Descriptive summary of the option/design being assessed | C42: 1 | F42: Type text into box | H42: =COLUMN(CBtn_Reset_Input)-2 -> 7
B44: How many alternative options/designs are you considering for your location (e.g. different drainage designs for the same location) | C44: 1 | F44: Type text into box | H44: 4
B46: Development or Location size (nearest Ha) | C46: 1 | F46: Enter size | H46: =COLUMN(CBtn_Reset_Input)-2 -> 7
B48: Scheme Type | C48: 2 | D48: =IF(AND(M48="",L48=""),"Please double click and select",SUBSTITUTE(L48&IF(AND(M48<>"",L48<>"")," || ","")&M48," || ",", ")) -> Please double click and select | F48: Double click & select from list | H48: =COLUMN(CBtn_Reset_Input)+6&"|"&COLUMN(CBtn_Reset_Input)+7 -> 15|16 | I48: strSchemeType | J48: lstSchemeType | K48: S
B50: Scheme drivers / objectives | C50: 2 | D50: =IF(AND(M50="",L50=""),"Please double click and select",SUBSTITUTE(L50&IF(AND(M50<>"",L50<>"")," || ","")&M50," || ",", ")) -> Please double click and select | F50: Double click & select all that apply | H50: =COLUMN(CBtn_Reset_Input)+6&"|"&COLUMN(CBtn_Reset_Input)+7 -> 15|16 | I50: strSchmDrivers | J50: lstSchmDrivers | K50: M_O
B54: BASIC Instructions . . . | C54: l | D54: Use the menu to navigate and perform some management tasks.
C55: l | D55: If the CIRIA menu isn't working.. either Navigate away then back again, or press the sort Screen Button.
C56: l | D56: Single click a point on the chart…to enter text Might need to do it twice before it will show data.
C57: l | D57: Double click to select and pick/enter information in the page
B58: ENTER Basic Project details below. for more Instructions please press help (in Ciric SuDS menu-bar).

Sheet Control (hidden)
B1: AUTO LIST | D1: AUTO LIST | F1: Construction Mode | H1: AUTO LIST | K1: ="Version: "&TEXT(Version,VerTxtFmt)&", "&TEXT(VersionDate,"MMMM-YYYY") -> Version: 4.1., February-2019 | P1: manually correct pink ranges!! | Y1: z
F2: FALSE | K2: =IF(NOT(ConstructionMode),"Book Works normally","Construction mode active; (on selection macros disabled)") -> Book Works normally | V2: Likely start of impact | AD2: Version Control | AJ2: Electricity costs p/kWh | AP2: default | AR2: retrofit | AT2: retrofit | AV2: New Development | AX2: New Development | BY2: Target Base | BZ2: https://eacollab.mwhtools.com/sites/MakingBESTBetter/Shared%20Documents/Guidance%20Tool%20Link%20Testing/W045c%20BeST%20Technical%20Guidance%20Release%204%20v01_G4a.pdf
BY3: Test (4.1.1) | BZ3: =HYPERLINK(_xlfn.ENCODEURL($BZ$2)&"#nameddest="&BZ30) -> https%3A%2F%2Feacollab.mwhtools.com%2Fsites%2FMakingBESTBetter%2FShared%2520Documents%2FGuidance%2520Tool%2520Link%2520Testing%2FW045c%2520BeST%2520Technical%2520Guidance%2520Release%25204%2520v01_G4a.pdf#nameddest=4.1.1
B4: lstAdminUsers | D4: lstHidePages | H4: lstDefNames | K4: Page: | L4: Inputs | N4: Inputs | P4: Inputs | R4: Inputs | T4: Inputs | V4: Screening Q's | Y4: Cell/ Column Definitions (Inputs Page) | AG4: =strVersion -> Version: 4.1., February-2019 | AJ4: Energy and carbon | AP4: Pumping Scenarios | AR4: Baseline | AT4: Proposed | AV4: Baseline | AX4: Proposed | BJ4: GDP deflator (https://www.gov.uk/government/publications/gdp-deflators-at-market-prices-and-money-gdp-march-2013) | BS4: F = less than zero
B5: Privilege List | D5: Hide Pages | F5: pgListAnchor | H5: Defined names | I5: nameListAnchor | K5: List Title: | L5: lstAsmntScale | N5: lstSchemeType | P5: lstSchmDrivers | R5: lstSchSupporters | T5: lstSchFunders | V5: lstImpactStart | Y5: Notes Row Height Increment | Z5: 12 | AA5: intRowHeightIncrement | AD5: Version | AE5: Date | AF5: Description | AG5: Author | AJ5: lstElecType | AL5: lstElecRate | AN5: lstTradedCarbon | AP5: lstScnPumpBase | AR5: lstScnPumpBase1a | AT5: lstScnPumpBase1b | AV5: lstScnPumpBase2a | AX5: lstScnPumpBase2b | AZ5: lstScnPumpprop | BB5: LstAirQualityLoc | BD5: lstWaterRegion | BF5: lstWaterGrade | BH5: lstWaterSubGrade | BJ5: Inflation year | BK5: Inflation value | BQ5: lstConvertPercent | BY5: Cell Ref | BZ5: Guidance Reference
B6: Chris Digman | D6: Control | F6: About W047 B£ST | G6: =COUNTIF($I$6:$I$135,H6) | H6: anchorPageNameEnable | I6: _xlfn.AVERAGEIF | L6: Street | N6: New development | P6: New development | R6: Community Groups | T6: Department of the Environment (Northern Ireland) | V6: Short term 0-5yrs | Y6: Notes Row Height Max | Z6: 120 | AA6: intNotesRowHeightMax | AD6: 1 | AE6: 2015-07-03 | AF6: First Release | AG6: GW/CD | AJ6: Domestic | AL6: Low | AN6: Low | AP6: Please select option | AR6: Please select option | AT6: Please select option | AV6: Please select option | AX6: Please select option | AZ6: Proposed option (current situation post scheme) | BB6: Urban | BD6: Anglian | BF6: No Change | BH6: Lower | BJ6: 1990 | BK6: ='Values Library - Yearly Values'!D14 -> 56.159 | BM6: 59.033 | BQ6: -1000000 | BR6: F | BT6: -1000004 | BU6: =IFERROR(VLOOKUP(BT6,lstConvertPercent,2,1),"-") -> - | CA6: Purpose of the Technical Guidance | CB6: 6
B7: digmancj | D7: Keys | F7: WELCOME | H7: CBtn_Reset_Input | I7: _xlfn.IFERROR | L7: Catchment | N7: Redevelopment | P7: Redevlopment | R7: Department of the Environment (Northern Ireland) | T7: Defra | V7: Medium Term 5-15 yrs | Y7: Input Column | Z7: 4 | AA7: colMainInput | AD7: 1.01 | AE7: 2015-07-07 | AF7: Minor updates | AG7: CD | AJ7: Commercial/ Public sector | AL7: Central | AN7: Central | AP7: Baseline (current situation) | AR7: Baseline (current situation) | AT7: Do nothing option (no interventions from baseline) | AV7: Base drainage scheme option (most likely the conventional drainage option) | AX7: Base drainage scheme option (most likely a SuDS drainage option) | AZ7: Proposed option future (performance in the future post scheme) | BB7: Sub-urban | BD7: Dee | BF7: Bad to Poor | BH7: Central | BJ7: 1991 | BK7: ='Values Library - Yearly Values'!D15 -> 59.8592 | BM7: 62.991 | BQ7: 0 | BR7: E | BT7: 1.5 | BU7: =IFERROR(VLOOKUP(BT7,lstConvertPercent,2,1),"-") -> E | BY7: BZ7 | BZ7: 1 | CA7: An Introduction to assessing the benefits of SuDS and NFM | CB7: 7
B8: Bruce Horton | D8: RibbonX | F8: B£ST Workflow & How to Guide | H8: CBtn_Reset_PIWF | I8: anchorPageNameEnable | L8: Strategic | N8: Urban Retrofit | P8: Regeneration | R8: Defra | T8: Developer | V8: Long term >15 yrs | Y8: List Used Column | Z8: 10 | AA8: colListUsed | AD8: 1.02 | AE8: 2015-07-24 | AF8: Logo update | AG8: CD | AJ8: Industrial | AL8: High | AN8: High | AP8: Do nothing option (no interventions from baseline) | AR8: Do nothing option (no interventions from baseline) | AT8: Proposed option (current situation post scheme) | BB8: Peri-urban | BD8: Humber | BF8: Poor to Moderate | BH8: Upper | BJ8: 1992 | BK8: ='Values Library - Yearly Values'!D16 -> 61.6903 | BM8: 64.822 | BQ8: 20 | BR8: D | BT8: 89 | BU8: =IFERROR(VLOOKUP(BT8,lstConvertPercent,2,1),"-") -> A | BY8: BZ8 | BZ8: 1.1 | CA8: Background to the guidance | CB8: 7
B9: Gordon Wallace | D9: Example Benefit Help | F9: Information Requirements | H9: cNonTrade | I9: BenefitCategoryChoice | L9: new item | N9: Rural | P9: Air quality | R9: Developer | T9: Environment Agency | V9: Please indicate | Y9: Form Options Column | Z9: =Z8+1 -> 11 | AA9: colFormOps | AD9: 1.03 | AE9: 2015-08-04 | AF9: Minor text updates | AG9: CD | AJ9: User | AL9: User | AP9: Proposed option (current situation post scheme) | AT9: Proposed option future (performance in the future post scheme) | BB9: Rural | BD9: North West | BF9: Moderate to Good | BJ9: 1993 | BK9: ='Values Library - Yearly Values'!D17 -> 63.346 | BM9: 66.044 | BQ9: 40 | BR9: C | BT9: 105 | BU9: =IFERROR(VLOOKUP(BT9,lstConvertPercent,2,1),"-") -> A | BY9: BZ9 | BZ9: 1.2 | CA9: Aim of B£ST and supporting guidance | CB9: 7
B10: Gordon | D10: Screening questions 2 | F10: How to evaluate benefits | H10: cNonTradeLevels | I10: CBtn_Reset_Input | N10: Working with Natural Processes | P10: Amenity / liveability | R10: Environment Agency | T10: Environmental / Conservation Groups | Y10: Selected Items String Column | Z10: =Z9+1 -> 12 | AA10: colSelectedItems | AD10: 1.04 | AE10: 2015-08-25 | AF10: Amendent to flexibility calculation | AG10: CD | AP10: Proposed option future (performance in the future post scheme) | BD10: Northumbria | BJ10: 1994 | BK10: ='Values Library - Yearly Values'!D18 -> 64.1546 | BM10: 66.811 | BQ10: 60 | BR10: B | BT10: 150394 | BU10: =IFERROR(VLOOKUP(BT10,lstConvertPercent,2,1),"-") -> A | BY10: BZ10 | BZ10: 1.3 | CA10: How to use the guidance | CB10: 8
B11: WALLACG1 | D11: Summary Results ESS | F11: Potential double counting | H11: cNonTradeYears | I11: CBtn_Reset_PIWF | P11: Asset performance, pumping stations and wastewater treatment works | R11: Environmental / Conservation Groups | T11: Farmers & farming organisations | Y11: List Other Column | Z11: =Z10+1 -> 13 | AA11: colOtherText | AD11: 1.1 | AE11: 2016-02-07 | AF11: Amendments to references, formatting and education values. Updated to 2014 prices and leaatest forecast prices (2015). Includes a variable discount year if not working in 2013 prices. | AG11: GW/CD | BD11: Severn | BJ11: 1995 | BK11: ='Values Library - Yearly Values'!D19 -> 65.7304 | BM11: 68.418 | BQ11: 80 | BR11: A | BY11: BZ11 | BZ11: 1.4 | CA11: Structure of the guidance | CB11: 9
B12: cdigman | D12: Summary Results TBL | F12: Project Data | H12: colFormOps | I12: chartSelection | P12: Biodiversity & ecology | R12: Farmers & farming organisations | T12: Flood & Coastal Committee | Y12: Welcome Title | Z12: Welcome to the Benefits Estimation Tool – B£ST | AA12: strWelcomeTitle | AD12: 2 | AE12: 2016-03-17 | AF12: Minor amendments for version 2 release | AG12: CD | BD12: Solway Tweed | BJ12: 1996 | BK12: ='Values Library - Yearly Values'!D20 -> 68.4142 | BM12: 70.335 | BY12: BZ12 | BZ12: 1.5 | CA12: Guidance on when to apply and use the tool | CB12: 9
D13: Scheme comparisons TBL | F13: Control | H13: colListUsed | I13: chartSelectionChoice | P13: Carbon | R13: Flood & Coastal Committee | T13: Forestry Commission | Y13: Welcome Text | Z13: B£ST will help you value the benefits of blue-green infrastructure. Please refer to the guidance when applying B£ST as you will find it helpful. Remember to enable macros if asked. | AA13: strWelcomeText | AD13: 2.02 | AE13: 2016-06-20 | AF13: Minor referencing corrections on air quality and amenity pollutant values | AG13: CD | BD13: South East | BJ13: 1997 | BK13: ='Values Library - Yearly Values'!D21 -> 68.905 | BM13: 71.584 | BY13: BZ13 | BZ13: 1.6 | CA13: When and where to apply the tool? | CB13: 10
D14: BlankImpactTab | F14: Keys | H14: colMainInput | I14: cNonTrade | P14: Crime | R14: Forestry Commission | T14: Health Trusts | AD14: 2.03 | AE14: 2016-08-23 | AF14: Additional sheets, amendments to routines | AG14: CD | BD14: South West | BJ14: 1998 | BK14: ='Values Library - Yearly Values'!D22 -> 69.6454 | BM14: 72.951 | BY14: BZ14 | BZ14: 1.7 | CA14: Who should use the tool? | CB14: 10
D15: RadiusCht | F15: RibbonX | H15: colOtherText | I15: cNonTradeLevels | P15: Economic growth | R15: Health Trusts | T15: Highway Authority | Y15: =CELL("filename",Y16) -> C:\Users\jmcmullan\Documents\Making B£ST Better\Case Study Feb 19\1.0 New Version\Roundhay\[Roundhay Park - W047a B£ST Release 4_1 Issued.xlsm]Control | Z15: =FIND("[",Y15)-1 -> 91 | AA15: ThisBookName | AD15: 3 | AE15: 2016-12-09 | AF15: Long term planning sheets. | AG15: CD/GW | BD15: Thames | BJ15: 1999 | BK15: ='Values Library - Yearly Values'!D23 -> 70.2023 | BM15: 74.53 | BY15: BZ15 | BZ15: 1.8 | CA15: What the tool can and cannot do? | CB15: 11
D16: CAT1 - Category 1 | F16: Present Value Calcs | H16: colPageVis | I16: cNonTradeYears | P16: Education | R16: Highway Authority | T16: Housing Authorities | Z16: =FIND("]",Y15) -> 143 | AA16: =MID(Y15,Z15+1,Z16-Z15) -> [Roundhay Park - W047a B£ST Release 4_1 Issued.xlsm] | AD16: 3.01 | AE16: 2017-07-23 | AF16: Minor updates to formula | AG16: CD/GW | BD16: Western Wales | BJ16: 2000 | BK16: ='Values Library - Yearly Values'!D24 -> 71.6831 | BM16: 75.13 | BY16: BZ16 | BZ16: 1.9 | CA16: Overview of the methodology supporting the tool | CB16: 11
D17: CAT2 - Category 2 | F17: Coarse Assessment | H17: colSelectedItems | I17: colFormOps | P17: Flooding | R17: Housing Authorities | T17: Land owners | Y17: ="v"&TEXT(OFFSET(Control!$AD$5,COUNTA(Control!$AD$6:$AD$97)-2,0),"0.00")&", "&TEXT(OFFSET(Control!$AE$5,COUNTA(Control!$AD$6:$AD$97)-2,0),"DD/MM/YYYY")&": "&OFFSET(Control!$AF$5,COUNTA(Control!$AD$6:$AD$97)-2,0)&" ("&OFFSET(Control!$AG$5,COUNTA(Control!$AD$6:$AD$97)-2,0)&")"&" "&"v"&TEXT(OFFSET(Control!$AD$5,COUNTA(Control!$AD$6:$AD$97)-1,0),"0.00")&", "&TEXT(OFFSET(Control!$AE$5,COUNTA(Control!$AD$6:$AD$97)-1,0),"DD/MM/YYYY")&": "&OFFSET(Control!$AF$5,COUNTA(Control!$AD$6:$AD$97)-1,0)&" ("&OFFSET(Control!$AG$5,COUNTA(Control!$AD$6:$AD$97)-1,0)&")"&" "&"v"&TEXT(OFFSET(Control!$AD$5,COUNTA(Control!$AD$6:$AD$97),0),"0.00")&", "&TEXT(OFFSET(Control!$AE$5,COUNTA(Control!$AD$6:$AD$97),0),"DD/MM/YYYY")&": "&OFFSET(Control!$AF$5,COUNTA(Control!$AD$6:$AD$97),0)&" ("&OFFSET(Control!$AG$5,COUNTA(Control!$AD$6:$AD$97),0)&")" | AD17: 3.02 | AE17: 2018-02-01 | AF17: Minor amendments | AG17: CD | BD17: E&W | BJ17: 2001 | BK17: ='Values Library - Yearly Values'!D25 -> 72.2691 | BM17: 76.842 | BY17: BZ17 | BZ17: 1.1 | CA17: Considering uncertainty and applying confidence scores | CB17: 16
D18: SuDS Used | F18: Screening Questions | H18: ConstructionMode | I18: colListUsed | P18: Groundwater recharge | R18: Land owners | T18: Local Action Group | Y18: ="v"&TEXT(OFFSET(Control!$AD$5,COUNTA(Control!$AD$6:$AD$97),0),"0.00")&", "&TEXT(OFFSET(Control!$AE$5,COUNTA(Control!$AD$6:$AD$97),0),"DD/MM/YYYY")&": "&OFFSET(Control!$AF$5,COUNTA(Control!$AD$6:$AD$97),0)&" ("&OFFSET(Control!$AG$5,COUNTA(Control!$AD$6:$AD$97),0)&")" -> v4.1., 08/02/2019: Minor amendments following feedback - locked cells (CD) | Z18: << | AA18: strAboutInfoText | AD18: 4A | AE18: 2018-06-24 | AF18: Overhall | AG18: CD/GW | BD18: User defined 1 | BJ18: 2002 | BK18: ='Values Library - Yearly Values'!D26 -> 73.8436 | BM18: 78.738 | BY18: BZ18 | BZ18: 1.11 | CA18: Avoiding double counting of benefits | CB18: 17
D19: Scenarios assessment-old | F19: Example Benefit Help | H19: createdDate | I19: colMainInput | P19: Health | R19: Local Action Group | T19: Local Authority | Y19: Instructions | AD19: 4.01 | AE19: 2019-01-04 | AF19: Major updates | AG19: CD/GW | BD19: User defined 2 | BJ19: 2003 | BK19: ='Values Library - Yearly Values'!D27 -> 75.6199 | BM19: 80.443 | BY19: BZ19 | BZ19: 1.12 | CA19: Information requirements and sources | CB19: 18
D20: RadiusCht | F20: SuDS Used | H20: cTrade | I20: colOtherText | P20: Noise | R20: Local Authority | T20: Natural England | Y20: If it is a website URL it must start with "http://" i.e.: http://www.ice.org.uk/ | AD20: 4.1 | AE20: 2019-02-04 | AF20: Link amendments | AG20: CD | BD20: User defined 3 | BJ20: 2004 | BK20: ='Values Library - Yearly Values'!D28 -> 77.4885 | BM20: 82.345 | BY20: BZ20 | BZ20: 2 | CA20: When is an assessment required? | CB20: 21
D21: Potential Stakeholders | F21: Potential Stakeholders | H21: cTradeLevels | I21: colPageVis | P21: Recreation | R21: Natural England | T21: Natural Resources Wales | Y21: If it is an email it must start with "mailto" and have the other items separated by the vertical PIPE character; mailto|emailaddress TO|Subject Line|Body Text | AD21: 4.1. | AE21: 2019-02-08 | AF21: Minor amendments following feedback - locked cells | AG21: CD | BJ21: 2005 | BK21: ='Values Library - Yearly Values'!D29 -> 79.4604 | BM21: 83.959 | BY21: BZ21 | BZ21: 2.1 | CA21: Drivers and need for action | CB21: 22
F22: AQ - Air quality | H22: cTradeYears | I22: colSelectedItems | P22: Tourism | R22: Natural Resources Wales | T22: SEPA | BJ22: 2006 | BK22: ='Values Library - Yearly Values'!D30 -> 81.7966 | BM22: 86.363 | BY22: BZ22 | BZ22: 2.2 | CA22: Deciding whether to complete an assessment | CB22: 22
F23: Am - Amenity | H23: DataSourceRURAL | I23: ConstructionMode | P23: Traffic calming | R23: Parish Councils | T23: Sustrans | Y23: B£ST guidance document | AA23: URLHelp1Text | BJ23: 2007 | BK23: ='Values Library - Yearly Values'!D31 -> 83.8733 | BM23: 88.351 | BY23: BZ23 | BZ23: 2.3 | CA23: Confirming baseline and proposed options | CB23: 22
F24: BE - Biodiversity & Ecology | H24: DataSourceURBAN | I24: createdDate | P24: Water reuse | R24: SEPA | T24: Water and Sewerage Company | Y24: https://www.susdrain.org/files/resources/BeST/ciria_best_online_help_190104.pdf | AA24: URLHelp1 | BJ24: 2008 | BK24: ='Values Library - Yearly Values'!D32 -> 86.2763 | BM24: 91.185 | BY24: BZ24 | BZ24: 2.4 | CA24: Dealing with scale | CB24: 23
F25: BT - Building Temperature | H25: discRate | I25: cTrade | P25: Watercourse improvement | R25: Sustrans | BJ25: 2009 | BK25: ='Values Library - Yearly Values'!D33 -> 87.6608 | BM25: 93.204 | BY25: BZ25 | BZ25: 3 | CA25: Screening and qualitative assessment of benefits | CB25: 25
F26: CS - Carbon sequestration | H26: discYears | I26: cTradeLevels | P26: Water quality | R26: Water and Sewerage Company | Y26: Email technical queries related to B£ST | AA26: URLHelp2Text | BJ26: 2010 | BK26: ='Values Library - Yearly Values'!D34 -> 89.0024 | BM26: 96.096 | BY26: BZ26 | BZ26: 3.1 | CA26: Identifying significant benefit categories | CB26: 25
F27: Edu - Education | H27: ImpactTBLTitles | I27: cTradeYears | Y27: mailto|best@susdrain.org|SuDS Tool Question|My question is… | AA27: URLHelp2 | BJ27: 2011 | BK27: ='Values Library - Yearly Values'!D35 -> 90.7119 | BM27: 98.317 | BY27: BZ27 | BZ27: 3.2 | CA27: Identifying beneficiaries and stakeholders | CB27: 28
F28: F - Flooding | H28: ImpactTBLTitlesPost | I28: DataSourceRURAL | BJ28: 2012 | BK28: ='Values Library - Yearly Values'!D36 -> 92.1258 | BM28: 100 | BY28: BZ28 | BZ28: 4 | CA28: Evaluating the benefits | CB28: 31
F29: H - Health | H29: ImpactTBLValues | I29: DataSourceURBAN | Y29: General information on B£ST | AA29: URLHelp3Text | BJ29: 2013 | BK29: ='Values Library - Yearly Values'!D37 -> 93.8443 | BY29: BZ29 | BZ29: 4.1 | CA29: Quantifying significant benefits and applying monetary values | CB29: 32
F30: N - Noise | H30: ImpactTBLValuesPost | I30: dbValuesAnchor | Y30: https://www.susdrain.org/resources/best.html | AA30: URLHelp3 | BJ30: 2014 | BK30: ='Values Library - Yearly Values'!D38 -> 95.4537 | BY30: BZ30 | BZ30: 4.1.1 | CA30: Air quality | CB30: 32
F31: R - Recreation | H31: ImpactTitles | I31: discRate | BJ31: 2015 | BK31: ='Values Library - Yearly Values'!D39 -> 95.8695 | BY31: BZ31 | BZ31: 4.1.2 | CA31: Amenity | CB31: 35
F32: TC - Traffic calming | H32: ImpactTitlesPost | I32: discYears | Y32: For wider information goto susdrain website | AA32: URLHelp4Text | BJ32: 2016 | BK32: ='Values Library - Yearly Values'!D40 -> 97.8423 | BY32: BZ32 | BZ32: 4.1.3 | CA32: Asset performance | CB32: 38
F33: WQ - Water quality | H33: ImpactValues | I33: intNotesRowHeightMax | Y33: http://www.susdrain.org/ | AA33: URLHelp4 | BJ33: 2017 | BK33: ='Values Library - Yearly Values'!D41 -> 100 | BY33: BZ33 | BZ33: 1) | CA33: Pumping wastewater and surface water | CB33: 38
F34: AP1 - Pumping | H34: ImpactValuesPost | I34: intOpenSudsUsed | BJ34: 2018 | BK34: ='Values Library - Yearly Values'!D42 -> 0 | BY34: BZ34 | BZ34: 2) | CA34: Treating wastewater | CB34: 40
F35: AP2 - Treating wastewater | H35: intOpenSudsUsed | I35: intRowHeightIncrement | BJ35: 2019 | BK35: ='Values Library - Yearly Values'!D43 -> 0 | BY35: BZ35 | BZ35: 4.1.4 | CA35: Biodiversity and ecology | CB35: 41
F36: QW1 - Flows | H36: KeyL1 | I36: KeyL1 | BJ36: 2020 | BK36: ='Values Library - Yearly Values'!D44 -> 0 | BY36: BZ36 | BZ36: 4.1.5 | CA36: Building temperature | CB36: 44
F37: QW2 - Groundwater recharge | H37: KeyL2 | I37: KeyL2 | BJ37: 2021 | BK37: ='Values Library - Yearly Values'!D45 -> 0 | BY37: BZ37 | BZ37: 4.1.6 | CA37: Carbon reduction and sequestration | CB37: 46
F38: QW3 - Rainwater harvesting | H38: KeySummaryResults | I38: KeySummaryResults | Y38: ExternalWebPdf | AA38: https://www.susdrain.org/files/resources/BeST/ciria_best_online_help_190104.pdf | BJ38: 2022 | BK38: ='Values Library - Yearly Values'!D46 -> 0 | BY38: BZ38 | BZ38: 4.1.7 | CA38: Education | CB38: 50
F39: CAT1 - Category 1 | H39: KeySummaryResultsTBL | I39: KeySummaryResultsTBL | BJ39: 2023 | BK39: ='Values Library - Yearly Values'!D47 -> 0 | BY39: BZ39 | BZ39: 4.1.8 | CA39: Enabling development | CB39: 51
F40: CAT2 - Category 2 | H40: LimOuputAmber | I40: LimOuputAmber | Y40: ExternalWebPdf | AA40: B£ST guidance - | BJ40: 2024 | BK40: ='Values Library - Yearly Values'!D48 -> 0 | BY40: BZ40 | BZ40: 4.1.9 | CA40: Flooding | CB40: 52
F41: User-defined benefits | H41: LimOuputGreen | I41: LimOuputGreen | BJ41: 2025 | BK41: ='Values Library - Yearly Values'!D49 -> 0 | BY41: BZ41 | BZ41: 4.1.10 | CA41: Health and wellbeing | CB41: 56
F42: CR - Crime | H42: LkpBDGrade | I42: LkpBDGrade | Y42: Swap Spaces For Underscores? | AA42: ON | BY42: BZ42 | BZ42: 4.1.11 | CA42: Noise | CB42: 59
F43: EG - Economic growth | H43: lkpBioDiversity | I43: lkpBioDiversity | BY43: BZ43 | BZ43: 4.1.12 | CA43: Recreation | CB43: 62
F44: ED - Enabling development | H44: lkpMonetised | I44: lkpMonetised | Y44: Screening questions | AA44: https://www.susdrain.org/files/resources/BeST/ciria_best_online_help_Screening_questions.pdf | BY44: BZ44 | BZ44: 4.1.13 | CA44: Traffic calming | CB44: 64
F45: T - Tourism | H45: lstAdminUsers | I45: lstAdminUsers | BY45: BZ45 | BZ45: 4.1.14 | CA45: Water quality | CB45: 65
F46: Summary of outputs-Qualitative | H46: LstAirQualityLoc | I46: LstAirQualityLoc | Y46: Air quality | AA46: https://www.susdrain.org/files/resources/BeST/ciria_best_online_help_Air_quality.pdf | BY46: BZ46 | BZ46: 4.1.15 | CA46: Quantity of water | CB46: 69
F47: Summary of outputs - Monetised | H47: lstAsmntScale | I47: lstAsmntScale | BY47: BZ47 | BZ47: 1) | CA47: Flows in watercourses | CB47: 69
F48: Summary Results ESS | H48: lstDefNames | I48: lstConvertPercent | Y48: Amenity | AA48: https://www.susdrain.org/files/resources/BeST/ciria_best_online_help_Amenity.pdf | BY48: BZ48 | BZ48: 2) | CA48: Groundwater recharge | CB48: 70
F49: Sensitivity Analysis | H49: lstElecRate | I49: lstDefNames | BY49: BZ49 | BZ49: 3) | CA49: Rainwater harvesting | CB49: 73
F50: Summary Results TBL | H50: lstElecType | I50: lstElecRate | Y50: Biodiversity and Ecology | AA50: https://www.susdrain.org/files/resources/BeST/ciria_best_online_help_Biodiversity_and_Ecology.pdf | BY50: BZ50 | BZ50: 4.2 | CA50: Non-quantified benefits | CB50: 74
F51: B£ST Results Dashboard | H51: lstHidePages | I51: lstElecType | BY51: BZ51 | BZ51: 4.2.1 | CA51: Crime | CB51: 75
F52: RadiusCht | H52: lstImpactStart | I52: lstHidePages | Y52: Building_temperature | AA52: https://www.susdrain.org/files/resources/BeST/ciria_best_online_help_Building_temperature.pdf | BY52: BZ52 | BZ52: 4.2.2 | CA52: Economic growth | CB52: 76
F53: Values Library - Yearly Values | H53: lstSchemeType | I53: lstImpactStart | BY53: BZ53 | BZ53: 4.2.3 | CA53: Tourism | CB53: 77
F54: ValuesLibrary | H54: lstSchFunders | I54: lstSchemeType | Y54: Carbon_sequestration | AA54: https://www.susdrain.org/files/resources/BeST/ciria_best_online_help_Carbon_sequestration.pdf | BY54: BZ54 | BZ54: 4.3 | CA54: User defined benefits | CB54: 78
F55: Scenarios assessment-old | H55: lstSchmDrivers | I55: lstSchFunders | BY55: BZ55 | BZ55: 4.4 | CA55: Defining timescales | CB55: 78
F56: Scheme comparisons TBL | H56: lstSchSupporters | I56: lstSchmDrivers | Y56: Education | AA56: https://www.susdrain.org/files/resources/BeST/ciria_best_online_help_Education.pdf | BY56: BZ56 | BZ56: 4.5 | CA56: Applying B£ST retrospectively | CB56: 79
F57: BlankImpactTab | H57: lstScnPumpBase | I57: lstSchSupporters | BY57: BZ57 | BZ57: 4.6 | CA57: Discounting future benefits and calculating present values | CB57: 79
F58: Scenarios Assessment | H58: lstScnPumpBase1a | I58: lstScnPumpBase | Y58: Enabling development | AA58: https://www.susdrain.org/files/resources/BeST/ciria_best_online_help_Enabling_development.pdf | BY58: BZ58 | BZ58: 5 | CA58: Summarising and presenting results | CB58: 80
F59: Screening questions 2 | H59: lstScnPumpBase1b | I59: lstScnPumpBase1a | BY59: BZ59 | BZ59: 5.1 | CA59: Summary results pages and dashboard | CB59: 80
H60: lstScnPumpBase2a | I60: lstScnPumpBase1b | Y60: Flood risk | AA60: https://www.susdrain.org/files/resources/BeST/ciria_best_online_help_Flooding.pdf | BY60: BZ60 | BZ60: 5.1.1 | CA60: Results summary for single option | CB60: 80
H61: lstScnPumpBase2b | I61: lstScnPumpBase2a | BY61: BZ61 | BZ61: 5.1.2 | CA61: Assessing the balance of the benefits – flexibility rating | CB61: 80
H62: lstScnPumpprop | I62: lstScnPumpBase2b | Y62: Flows in watercourse | AA62: https://www.susdrain.org/files/resources/BeST/ciria_best_online_help_Flows_in_watercourse.pdf | BY62: BZ62 | BZ62: 5.2 | CA62: Assessing whether detailed/local benefit evaluation is required | CB62: 81
H63: lstTradedCarbon | I63: lstScnPumpprop | BY63: BZ63 | BZ63: 5.3 | CA63: Comparing options | CB63: 81
H64: lstWaterGrade | I64: lstTradedCarbon | Y64: Groundwater recharge | AA64: https://www.susdrain.org/files/resources/BeST/ciria_best_online_help_Groundwater_recharge.pdf | BY64: BZ64 | BZ64: 5.3.1 | CA64: Bringing in costs | CB64: 81
H65: lstWaterRegion | I65: lstWaterGrade | BY65: BZ65 | BZ65: 5.3.2 | CA65: Decision rules | CB65: 81
H66: lstWaterSubGrade | I66: lstWaterRegion | Y66: Health | AA66: https://www.susdrain.org/files/resources/BeST/ciria_best_online_help_Health.pdf | BY66: BZ66 | BZ66: 5.4 | CA66: Dealing with non-monetised benefits | CB66: 82
H67: nameListAnchor | I67: lstWaterSubGrade | BY67: BZ67 | BZ67: 6 | CA67: Considering uncertainty and applying sensitivity analysis | CB67: 83
H68: pdAssessVer | I68: nameListAnchor | Y68: Noise | AA68: https://www.susdrain.org/files/resources/BeST/ciria_best_online_help_Noise.pdf | BY68: BZ68 | BZ68: 6.1 | CA68: Sources of uncertainty | CB68: 83
H69: pdAuthor | I69: pdAssessVer | BY69: BZ69 | BZ69: 6.2 | CA69: Dealing with uncertainty | CB69: 85
H70: pdDate | I70: pdAuthor | Y70: Pumping | AA70: https://www.susdrain.org/files/resources/BeST/ciria_best_online_help_Pumping.pdf | BY70: BZ70 | BZ70: 6.3 | CA70: Sensitivity analysis | CB70: 86
H71: pdProjectName | I71: pdDate | BY71: BZ71 | BZ71: 7 | CA71: Using the results | CB71: 87
H72: pdProjectNumber | I72: pdProjectName | Y72: Rain water harvesting | AA72: https://www.susdrain.org/files/resources/BeST/ciria_best_online_help_Rainwater_harvesting.pdf | BY72: BZ72 | BZ72: 7.1 | CA72: Using and applying the results to support decisions | CB72: 87
H73: pgListAnchor | I73: pdProjectNumber | BY73: BZ73 | BZ73: 7.1.1 | CA73: Equity and distributional issues | CB73: 87
H74: progGreen | I74: pgListAnchor | Y74: Recreation | AA74: https://www.susdrain.org/files/resources/BeST/ciria_best_online_help_Recreation.pdf | BY74: BZ74 | BZ74: 7.1.2 | CA74: Stakeholders and funders | CB74: 87
H75: ProjDetails | I75: Am - Amenity'!Print_Area | BY75: BZ75 | BZ75: 8 | CA75: Using B£ST to support longer term planning | CB75: 89
H76: pumpdrop1 | I76: AP1 - Pumping'!Print_Area | Y76: Traffic calming | AA76: https://www.susdrain.org/files/resources/BeST/ciria_best_online_help_Traffic_Calming.pdf | BY76: BZ76 | BZ76: 8.1 | CA76: Considering future uncertainty | CB76: 89
H77: pumpdrop2 | I77: AP2 - Treating wastewater'!Print_Area | BY77: BZ77 | BZ77: 8.2 | CA77: Overview of the longer term assessment process | CB77: 90
H78: pumpEndYr | I78: AQ - Air quality'!Print_Area | Y78: Treating wastewater | AA78: https://www.susdrain.org/files/resources/BeST/ciria_best_online_help_Treating_Wastewater.pdf | BY78: BZ78 | BZ78: 9 | CA78: References | CB78: 91
H79: pumpEnergyRate | I79: B£ST Results Dashboard'!Print_Area | BZ79: APPENDICES | CA79: 97
H80: pumpEnergyType | I80: BE - Biodiversity & Ecology'!Print_Area | Y80: Water quality of receiving water | AA80: https://www.susdrain.org/files/resources/BeST/ciria_best_online_help_Water_quality.pdf | BZ80: Appendix A – GLOSSARY OF TERMS | CA80: 98
H81: pumpStartYr | I81: BlankImpactTab!Print_Area | BZ81: Appendix B – ABBREVIATIONS | CA81: 99
H82: pumpTotalEnergySave | I82: BT - Building Temperature'!Print_Area | Y82: Crime | AA82: https://www.susdrain.org/files/resources/BeST/ciria_best_online_help_Crime.pdf | BZ82: Appendix C – Applying B£ST when considering the future | CA82: 100
H83: pumpTradedCarbon | I83: CAT1 - Category 1'!Print_Area | BZ83: C.1 Step 1 - Business As Usual (BAU) analysis of all options | CA83: 100
H84: rngChkMoneySelect | I84: CAT2 - Category 2'!Print_Area | Y84: Economic growth | AA84: https://www.susdrain.org/files/resources/BeST/ciria_best_online_help_Economic_growth.pdf | BZ84: C.2 Step 2 Selecting the appropriate level of analysis | CA84: 102
H85: rngEvalDescription | I85: CIRIA W045'!Print_Area | BZ85: C.2.1 Step 2 – Applying the approach | CA85: 104
H86: rngInputResetArea | I86: Coarse Screening'!Print_Area | Y86: Tourism | AA86: https://www.susdrain.org/files/resources/BeST/ciria_best_online_help_Tourism.pdf | BZ86: C.3 Step 3 – Selection of preferred option | CA86: 110
H87: rngKeyL1 | I87: CR - Crime'!Print_Area | BZ87: Appendix D – Water body classification definitions | CA87: 112
H88: rngKeyL2 | I88: CS - Carbon sequestration'!Print_Area | Y88: User defined benefits | AA88: https://www.susdrain.org/files/resources/BeST/ciria_best_online_help_User_defined_benefits.pdf
H89: rngKeyPSTK | I89: ED - Enabling development'!Print_Area
H90: rngOutputSummary | I90: Edu - Education'!Print_Area | Y90: Scenarios assessment | AA90: https://www.susdrain.org/files/resources/BeST/ciria_best_online_help_Scenarios.pdf
H91: rngWaterGrade | I91: EG - Economic growth'!Print_Area
H92: rngWaterRegion | I92: F - Flooding'!Print_Area
H93: rngWaterSubGrade | I93: H - Health'!Print_Area
H94: rngWaterValues | I94: N - Noise'!Print_Area
H95: rRibbonXPointer | I95: Potential double counting'!Print_Area
H96: seqEqns | I96: Potential Stakeholders'!Print_Area
H97: seqTrees | I97: Present Value Calcs'!Print_Area
H98: seqYearsCarbon | I98: Project Data'!Print_Area
H99: shAmber | I99: QW1 - Flows'!Print_Area
H100: shGreen | I100: QW2 - Groundwater recharge'!Print_Area
H101: shRed | I101: QW3 - Rainwater harvesting'!Print_Area
H102: Stakeholdergreyout | I102: R - Recreation'!Print_Area
H103: strAboutInfoText | I103: Scenarios Assessment'!Print_Area
H104: strLocationName | I104: Scenarios assessment-old'!Print_Area
H105: strSchemeType | I105: Scheme comparisons TBL'!Print_Area
H106: strSchFunders | I106: Screening Questions'!Print_Area
H107: strSchmDrivers | I107: Screening questions 2'!Print_Area
H108: strSchSupporters | I108: Sensitivity Analysis'!Print_Area
H109: strVersion | I109: SuDS Used'!Print_Area
H110: strWelcomeText | I110: Summary of outputs - Monetised'!Print_Area
H111: strWelcomeTitle | I111: Summary of outputs-Qualitative'!Print_Area
H112: tblBDGrade | I112: Summary Results ESS'!Print_Area
H113: tblBioDiversity | I113: Summary Results TBL'!Print_Area
H114: ThisBookName | I114: T - Tourism'!Print_Area
H115: TotalValue | I115: TC - Traffic calming'!Print_Area
H116: URLHelp1 | I116: User-defined benefits'!Print_Area
H117: URLHelp1Text | I117: Values Library - Yearly Values'!Print_Area
H118: URLHelp2 | I118: ValuesLibrary!Print_Area
H119: URLHelp2Text | I119: WQ - Water quality'!Print_Area
H120: URLHelp3 | I120: progGreen
H121: URLHelp3Text | I121: ProjDetails
H122: URLHelp4 | I122: pumpdrop1
H123: URLHelp4Text | I123: pumpdrop2
H124: Version | I124: pumpEndYr
H125: VersionDate | I125: pumpEnergyRate
H126: VersionTxt | I126: pumpEnergyType
H127: VerTxtFmt | I127: pumpStartYr
I128: pumpTotalEnergySave
I129: pumpTradedCarbon
I130: qtyBenefits
I131: radSections
I132: radValues
I133: rngBenefitDisplay
I134: rngBenefitNames
I135: rngBenefitsWheel
I136: rngChkMoneySelect
I137: rngEvalDescription
I138: rngInputResetArea
I139: rngKeyL1
I140: rngKeyL2
I141: rngKeyPSTK
I142: rngNoiseFrom
I143: rngNoiseTo
I144: rngWaterGrade
I145: rngWaterRegion
I146: rngWaterSubGrade
I147: rngWaterValues
I148: rRibbonXPointer
I149: seqEqns
I150: seqTrees
I151: seqYearsCarbon
I152: shAmber
I153: shGreen
I154: shRed
I155: Stakeholdergreyout
I156: strAboutInfoText
I157: strLocationName
I158: strSchemeType
I159: strSchFunders
I160: strSchmDrivers
I161: strSchSupporters
I162: strVersion
I163: strWelcomeText
I164: strWelcomeTitle
I165: tblBDGrade
I166: tblBioDiversity
I167: ThisBookName
I168: TotalValue
I169: URLHelp1
I170: URLHelp1Text
I171: URLHelp2
I172: URLHelp2Text
I173: URLHelp3
I174: URLHelp3Text
I175: URLHelp4
I176: URLHelp4Text
I177: Version
I178: VersionDate
I179: VersionTxt
I180: VerTxtFmt

Sheet Keys (hidden)
B2: KEY
E3: Input Data | G3: Select Information | I3: Calculation / Ouput
D7: . | J7: .
B9: rngKeyL2 | E9: Input Data | G9: Select Information | I9: Calculation / Ouput
D11: . | J11: .
E13: General Data | G13: Helps select level of detail for impacts / type of impacts | I13: Possibly used in the impact assessment | K13: Tick box selection to appear in rows | N13: Links to impacts / beneficaries / funders work | Q13: Not possible to enter information / not required
D16: . | J16: .
B18: rngKeyL3 | E18: Input Data | G18: Select Information | I18: Calculation / Ouput | K18: Currently not in use
D20: . | J20: . | AB20: INTERESTED STAKEHOLDERS
Y21: Strong potential
Y24: Modest potential or secondary funder requirement
Y28: Low potential
X32: IMPACT CATEGORY
W33: . | AC33: .
AD34: . | AH34: .
AD42: . | AH42: .
AI43: . | AM43: .
AH46: .
AI53: . | AM53: .

Sheet RibbonX (hidden)
B3: 331664464

Sheet Coarse Assessment
L1: Coarse Assessment | R1: >>HIDE_ALONG
B2: =ProjDetails -> PROJECT DETAILS - Name: Roundhay Park SuDS Scheme , Assmt. Version: 1, Date: Feb 2019.
B4: Notes:
B5: This part of the tool gives you an indicative range of benefit values that your scheme may provide. This should not be used to support a business case for investment or to support a funding application. In such case, a detailed assessment using the complete tool should be undertaken. Whilst we have aimed to keep this part of the tool as simple as possible, please read the questions carefully as the estimates you make have a significant impact on the indicative values. The assumptions used are included in the Technical Guidance. We have adjusted the values to consider the potential confidence that a coarse assessment can provide, and this is already included within the calculation. These are fixed values. The timescale for the assessment is over a 40 year period starting from 2020.
B7: Coarse Assessment Results Summary Table | L7: Coarse Screening Results Summary Graph
B9: Benefit category | D9: Present Value Lower Bound Estimate (£) | F9: Present Value Central Estimate (£) | H9: Present Value Upper Bound Estimate (£)
B10: Air quality | D10: =J47 -> 33531.83367 | F10: =L47 -> 45977.17566 | H10: =N47 -> 58422.51766 | X10: Combined confidence value applied
B11: Amenity | D11: =J51 -> 7839.759325 | F11: =L51 -> 13066.26554 | H11: =N51 -> 18292.77176 | X11: =AA47 -> 0.75
B12: Biodiversity and ecology | D12: =J53 -> 290.307864 | F12: =L53 -> 1218.093863 | H12: =N53 -> 2145.879862 | X12: =AA51 -> 0.375
B13: Carbon sequestration | D13: =J55+J57 -> 2110.789187 | F13: =L55+L57 -> 8552.25756 | H13: =N55+N57 -> 14061.25186 | X13: =AA53 -> 0.25
B14: Education | D14: =J59 -> 12887.38214 | F14: =L59 -> 16301.72177 | H14: =N59 -> 19716.0614 | X14: =AA55 -> 0.5
B15: Flood Risk | D15: =J61 -> 1703332.894 | F15: =L61 -> 1703332.894 | H15: =N61 -> 1703332.894 | X15: =AA59 -> 0.25
B16: Flows in watercourses | D16: =J63 -> 0 | F16: =L63 -> 0 | H16: =N63 -> 0 | X16: =AA61 -> 0.25
B17: Health | D17: =J65 -> 34127.84119 | F17: =L65 -> 56464.93323 | H17: =N65 -> 78802.02527 | X17: =AA63 -> 0.125
B18: Recreation | D18: =J67 -> 6377.58199 | F18: =L67 -> 12770.71906 | H18: =N67 -> 19163.85613 | X18: =AA65 -> 0.25
B19: Water quality in watercourse | D19: =J69 -> 0 | F19: =L69 -> 0 | H19: =N69 -> 0 | X19: =AA67 -> 0.25
B20: TOTAL | D20: =SUM(D10:D19) -> 1800498.389 | F20: =SUM(F10:F19) -> 1857684.061 | H20: =SUM(H10:H19) -> 1913937.258 | X20: =AA69 -> 0.125
B23: Coarse Assessment Data Entry Section. | F23: Estimate the quantity (in the orange boxes) related to the question. Record evidence and reasoning.
B25: Question | J25: Estimate quantity | L25: Reasons /evidence for the estimated quantity
B27: How many trees are being planted in urban and suburban areas (not as woodland)? Insert the number of trees to be planted. | J27: 264 | L27: New trees are being planted as part of this scheme
B29: How many trees are being planted as woodland? Insert the area of woodland in hectares. | J29: 0
B31: How many people will benefit from the improvements to green space? Insert the number of people who live or work within 500m of the green space improvement. | J31: 600
B33: How many properties are likely to flood less frequently/severely? Insert the number of properties. | J33: 65 | L33: The flood risk assessment indicates that around 65 properties will benefit from reduced flood risk as a result of implementing the proposed solution.
B35: What area of land is being enhanced that improves biodiversity? Insert the area of land in hectares that is enhanced. | J35: 1.5116 | L35: Combination of swales and basins
B37: What length of watercourse (km) or area of water (km2) is being improved? Insert the length or area (1km also equals 1km2) which will potentially change in ecological (WFD) status.
A39: >>HIDE_BELOW
B40: What time period is the evaluation over (default of 40 years)
B45: Impact | D45: Question | F45: Variable to estimate | H45: Estimate numbers | J45: Lower bound estimate £K | L45: Average estimate and Relative significance (RAG) | N45: Upper bound estimate £K | P45: Confidence - quantity | R45: Confidence money | AA45: Confidence effect | AF45: Evaluate benefits?
B47: Air quality - urban | D47: Will the scheme also change the level of air pollution? | F47: Number of trees planted | H47: =J27 -> 264 | J47: ='Present Value Calcs'!JL13*P47*R47 -> 33531.83367 | L47: ='Present Value Calcs'!JP13*P47*R47 -> 45977.17566 | N47: ='Present Value Calcs'!JN13*P47*R47 -> 58422.51766 | P47: 0.75 | R47: 1 | U47: Trees | AA47: =P47*R47 -> 0.75 | AF47: NO
B49: Air quality - rural | D49: Will the scheme also change the level of air pollution? | F49: Number of trees planted | H49: =J29 -> 0 | J49: ='Present Value Calcs'!JL11 -> 0 | L49: ='Present Value Calcs'!JP11 -> 0 | N49: ='Present Value Calcs'!JN11 -> 0 | U49: Trees | AA49: =P49*R49 -> 0 | AF49: NO
B51: Amenity | D51: Will the scheme also change the attractiveness of the place | F51: Number of people who might benefit in a year. | H51: =J31 -> 600 | J51: ='Present Value Calcs'!JR13*P51*R51 -> 7839.759325 | L51: ='Present Value Calcs'!JS13*P51*R51 -> 13066.26554 | N51: ='Present Value Calcs'!JT13*P51*R51 -> 18292.77176 | P51: 0.5 | R51: 0.75 | U51: People | AA51: =P51*R51 -> 0.375 | AF51: YES
B53: Biodiversity and Ecology | D53: Will the scheme also lead to a change in habitats for plants and animals | F53: Area enhanced (ha) | H53: =J35 -> 1.5116 | J53: ='Present Value Calcs'!JV13*P53*R53 -> 290.307864 | L53: ='Present Value Calcs'!JW13*P53*R53 -> 1218.093863 | N53: ='Present Value Calcs'!JX13*P53*R53 -> 2145.879862 | P53: 0.5 | R53: 0.5 | U53: Area | V53: What 5 could infiltrate that didn’t infiltrate before - groundwater | AA53: =P53*R53 -> 0.25 | AF53: NO
B55: Carbon sequestration - individual | D55: Will the scheme also change the amount of carbon in the atmosphere | F55: Number of trees planted | H55: =J27 -> 264 | J55: ='Present Value Calcs'!LB13*P55*R55 -> 2110.789187 | L55: ='Present Value Calcs'!LH13*P55*R55 -> 8552.25756 | N55: ='Present Value Calcs'!LN13*P55*R55 -> 14061.25186 | P55: 0.5 | R55: 1 | U55: Trees | AA55: =P55*R55 -> 0.5 | AF55: YES
B57: Carbon sequestration - woodland | D57: Will the scheme also change the amount of carbon in the atmosphere | F57: Number of ha of woodland | H57: =J29 -> 0 | J57: ='Present Value Calcs'!LS13*P57*R57 -> 0 | L57: ='Present Value Calcs'!LY13*P57*R57 -> 0 | N57: ='Present Value Calcs'!ME13*P57*R57 -> 0 | P57: 0.5 | R57: 1 | AA57: =P57*R57 -> 0.5
B59: Education | D59: Will the scheme lead to greater awareness of water and stormwater management | F59: Number of pupils who might benefit in a year. | H59: =J31/4 -> 150 | J59: ='Present Value Calcs'!JZ13*'Coarse Assessment'!P59*'Coarse Assessment'!R59 -> 12887.38214 | L59: =P59*R59*'Present Value Calcs'!KA13 -> 16301.72177 | N59: =P59*R59*'Present Value Calcs'!KB13 -> 19716.0614 | P59: 0.5 | R59: 0.5 | U59: People | AA59: =P59*R59 -> 0.25 | AF59: NO
B61: Flood risk | D61: Will the scheme change the impact of flooding | F61: Number of properties protected | H61: =J33 -> 65 | J61: ='Present Value Calcs'!KD13*'Coarse Assessment'!P61*'Coarse Assessment'!R61 -> 1703332.894 | L61: ='Present Value Calcs'!KE13*'Coarse Assessment'!P61*'Coarse Assessment'!R61 -> 1703332.894 | N61: ='Present Value Calcs'!KF13*'Coarse Assessment'!P61*'Coarse Assessment'!R61 -> 1703332.894 | P61: 0.5 | R61: 0.5 | U61: properties | AA61: =P61*R61 -> 0.25 | AF61: NO
B63: Flows in watercourse | D63: Will the scheme help retain or increase flows in the watercourse | F63: Length of watercourse improved | H63: =J37 -> 0 | J63: ='Present Value Calcs'!KH13*'Coarse Assessment'!P63*'Coarse Assessment'!R63 -> 0 | L63: =P63*R63*'Present Value Calcs'!KI13 -> 0 | N63: ='Present Value Calcs'!KJ13*'Coarse Assessment'!P63*'Coarse Assessment'!R63 -> 0 | P63: 0.25 | R63: 0.5 | U63: length | AA63: =P63*R63 -> 0.125 | AF63: NO
B65: Health | D65: Will the scheme also contribute to the health and wellbeing of local residents | F65: Number of people who might benefit in a year. | H65: =J31 -> 600 | J65: =P65*R65*'Present Value Calcs'!KL13 -> 34127.84119 | L65: =P65*R65*'Present Value Calcs'!KM13 -> 56464.93323 | N65: =P65*R65*'Present Value Calcs'!KN13 -> 78802.02527 | P65: 0.5 | R65: 0.5 | U65: People | AA65: =P65*R65 -> 0.25 | AF65: NO
B67: Recreation | D67: Will the scheme also change the available facilities for leisure | F67: Number of people who might benefit in a year. | H67: =J31 -> 600 | J67: =P67*R67*'Present Value Calcs'!KP13 -> 6377.58199 | L67: =P67*R67*'Present Value Calcs'!KQ13 -> 12770.71906 | N67: =P67*R67*'Present Value Calcs'!KR13 -> 19163.85613 | P67: 0.5 | R67: 0.5 | U67: People | AA67: =P67*R67 -> 0.25 | AF67: NO
B69: Water quality of receiving water | D69: Will the scheme change the quality of rivers, lakes or the sea | F69: Length of watercourse improved (km) | H69: =J37 -> 0 | J69: =P69*R69*'Present Value Calcs'!KT13 -> 0 | L69: =P69*R69*'Present Value Calcs'!KU13 -> 0 | N69: =P69*R69*'Present Value Calcs'!KV13 -> 0 | P69: 0.25 | R69: 0.5 | U69: length | AA69: =P69*R69 -> 0.125 | AF69: NO
U74: Convert a voluem to a run time…..
R75: Low credibility and certainty. | U75: Volume of water | AK75: Data for air quality for urban trees
U76: No. of pumpts
U77: Low 2.5kw pump | AV77: Central estimate, 2035, 26268, 60463
U78: High 50kw pumps | AL78: Pollutant removal | AR78: Value
AL79: Low | AN79: High | AP79: Average | AQ79: Conf | AR79: Low | AT79: High | AV79: Average | AW79: Conf
AK81: Pollutant SO2 | AL81: 3.1752e-05 | AN81: 3.1752e-05 | AP81: =AVERAGE(AL81:AN81) -> 3.1752e-05 | AQ81: 0.75 | AR81: 1771 | AT81: 2492 | AV81: =AVERAGE(AR81:AT81) -> 2131.5 | AW81: 1
AK82: Pollutant NO2 | AL82: 7.7112e-05 | AN82: 7.7112e-05 | AP82: =AVERAGE(AL82:AN82) -> 7.7112e-05 | AQ82: 0.75 | AR82: 11318 | AT82: 45272 | AV82: =AVERAGE(AR82:AT82) -> 28295 | AW82: 1
U83: Volume not treated | AK83: Pollutant PM10 | AL83: 0.000131544 | AN83: 0.000131544 | AP83: =AVERAGE(AL83:AN83) -> 0.000131544 | AQ83: 0.75 | AR83: 50994 | AT83: 74011 | AV83: =AVERAGE(AR83:AT83) -> 62502.5 | AW83: 1
U84: No. of works
R85: Low credibility | U85: Low small works
U86: high - large works
AK87: Data for air quality for rural trees trees
U89: Area that has been harvested
U90: no of people using it.

Sheet Screening Questions
M1: Screening Questions | Q1: >>HIDE_ALONG | AB1: Significance of impact / effect of current baseline
B2: =ProjDetails -> PROJECT DETAILS - Name: Roundhay Park SuDS Scheme , Assmt. Version: 1, Date: Feb 2019. | AN2: =SUM(AN6:AN48) -> 9
B4: Impact | D4: Question | F4: Further aspects to consider | H4: Significance | K4: Evaluate benefits? | M4: Reasons /evidence for choosing the scale of the impact | O4: LINKS | R4: Start Year of benefit | S4: End Year of Benefit | T4: Key variable | U4: Low value 50% confidence | V4: Mid value 50% confidence | W4: High value 50% confidence | X4: Urban/Rural | Y4: =OFFSET(AA4,0,Z4,1,1) -> - | Z4: 4 | AB4: ++ | AC4: + | AD4: 0 | AE4: - | AF4: -- | AG4: '?' | AJ4: CORRESPONDING PAGE TO OPEN | AL4: GREY OUT | AN4: OPEN SuDS Used? | AP4: Outcome | BE4: Key variable | BH4: Variable to estimate | BJ4: Estimate numbers | BL4: Stab in Dark Value (Lower) | BN4: Stab in Dark Value (Upper)
B6: Air quality | D6: Will the scheme also change the level of air pollution? | F6: - Is the site in an air quality management area? - Will the scheme involve green infrastructure (e.g. tree planting, green roofs)? - Is the scheme in a populated area or a transport corridor? | H6: + | K6: YES | M6: A number of trees are being planted as part of this scheme. Some potential improvement in local air quality as a result of additional planting | O6: =HYPERLINK(ThisBookName&"'"&AJ6&"'!A1","LINK") -> LINK | R6: 2020 | S6: 2050 | T6: Number of trees | AB6: if selected sends you to the impact worksheet | AC6: if selected possibly sends you to the impact worksheet depending upon when the impact may occur?? - this is more outline thinking currently | AD6: do not consider the impact further | AE6: if selected possibly sends you to the impact worksheet depending upon when the impact may occur?? - this is more outline thinking currently | AF6: if selected sends you to the impact worksheet | AG6: further assessment may be required before this can be considered | AJ6: AQ - Air quality | AL6: =IF(K6="no",B6,"") ->  | AN6: =IF(K6="YES",1,0) -> 1 | AP6: =IF(H6<>"",HLOOKUP(H6,$AB$4:$AG$8,5,0),"") -> not considered at this time, but reconsider with more information | BE6: NO | BH6: Number of trees planted | BJ6: 100 | BL6: 1 | BN6: 10
B8: Amenity | D8: Will the scheme also change the attractiveness of the place | F8: - Does the scheme involve new/improved water bodies, landscaping or greening? - Is the scheme in a populated area, or an area used for recreation, work, commuting, tourism, etc? - Will the scheme components be visible to those living nearby or passing by? | H8: + | K8: YES | M8: There will be new greening as part of this scheme | O8: =HYPERLINK(ThisBookName&"'"&AJ8&"'!A1","LINK") -> LINK | T8: Number of houses withing 400m | AB8: to impact sheet | AC8: not considered at this time, but reconsider with more information | AD8: do not consider | AE8: not considered at this time, but reconsider with more information | AF8: to impact sheet | AG8: unknown, collect further information | AJ8: Am - Amenity | AL8: =IF(K8="no",B8,"") ->  | AN8: =IF(K8="YES",1,0) -> 1 | AP8: =IF(H8<>"",HLOOKUP(H8,$AB$4:$AG$8,5,0),"") -> not considered at this time, but reconsider with more information | BE8: NO | BH8: Number of people who might benefit in a year. | BJ8: 100 | BL8: 1 | BN8: 10
B10: Biodiversity and Ecology | D10: Will the scheme also lead to a change in habitats for plants and animals | F10: - Will the scheme involve components that may enhance biodiversity and ecology? - Will the scheme create new sites that supports the growth of biodiversity and ecology? - Will the scheme significantly improve connectivity between sites? | H10: + | K10: YES | M10: Enhanced water quality and increase in flows to watercourse and lake. Provision of GI to enhance connectivity of green spaces. | O10: =HYPERLINK(ThisBookName&"'"&AJ10&"'!A1","LINK") -> LINK | T10: Number of ha enhanced | AJ10: BE - Biodiversity & Ecology | AL10: =IF(K10="no",B10,"") ->  | AN10: =IF(K10="YES",1,0) -> 1 | AP10: =IF(H10<>"",HLOOKUP(H10,$AB$4:$AG$8,5,0),"") -> not considered at this time, but reconsider with more information | BE10: NO | BH10: Area enhanced (ha) | BJ10: 100 | BL10: 1 | BN10: 10
B12: Building temperature | D12: Will the scheme also change the potential for high temperatures in summer and cold temperatures in winter | F12: - Will the scheme involve the installation of green roofs? - Is the scheme in a built-up area? | H12: 0 | K12: NO | O12: =HYPERLINK(ThisBookName&"'"&AJ12&"'!A1","LINK") -> LINK | T12: Roof area | AJ12: BT - Building Temperature | AL12: =IF(K12="no",B12,"") -> Building temperature | AN12: =IF(K12="YES",1,0) -> 0 | AP12: =IF(H12<>"",HLOOKUP(H12,$AB$4:$AG$8,5,0),"") -> do not consider | BE12: NO | BH12: Green roof size (m2) | BJ12: 100 | BL12: 1 | BN12: 10
B14: Carbon sequestration | D14: Will the scheme also change the amount of carbon in the atmosphere | F14: - Will the scheme involve planting (particularly trees) over and above that which would occur without the scheme? - Will the scheme involve new planting (particularly trees) rather than replacement? | H14: 0 | K14: NO | O14: =HYPERLINK(ThisBookName&"'"&AJ14&"'!A1","LINK") -> LINK | AJ14: CS - Carbon sequestration | AL14: =IF(K14="no",B14,"") -> Carbon sequestration | AN14: =IF(K14="YES",1,0) -> 0 | AP14: =IF(H14<>"",HLOOKUP(H14,$AB$4:$AG$8,5,0),"") -> do not consider | BE14: NO | BH14: Number of trees planted | BJ14: 100 | BL14: 1 | BN14: 10
B16: Education | D16: Will the scheme lead to greater awareness of water and stormwater management | F16: - Could the scheme lead to increase in number of children engaged about SuDS/drainage/NFM? - Could the scheme lead to more educational visits/talks? - Could the scheme lead to increase in number of community events or open days? | H16: + | K16: NO | M16: There may be small educational benefits, but these have not been assessed. | O16: =HYPERLINK(ThisBookName&"'"&AJ16&"'!A1","LINK") -> LINK | AJ16: Edu - Education | AL16: =IF(K16="no",B16,"") -> Education | AN16: =IF(K16="YES",1,0) -> 0 | AP16: =IF(H16<>"",HLOOKUP(H16,$AB$4:$AG$8,5,0),"") -> not considered at this time, but reconsider with more information | BE16: NO | BH16: Number of pupils who might benefit in a year. | BJ16: 100 | BL16: 1 | BN16: 10
B18: Enabling development | D18: Will the scheme reduce demands on sewerage systems providing headroom for new development | F18: - Is growth or development currently occurring or expected in the future? - Will improving the drainage capacity in the sewer system support growth or development? | H18: 0 | K18: NO | O18: =HYPERLINK(ThisBookName&"'"&AJ18&"'!A1","LINK") -> LINK | AJ18: ED - Enabling development | AL18: =IF(K18="no",B18,"") -> Enabling development | AN18: =IF(K18="YES",1,0) -> 0 | AP18: =IF(H18<>"",HLOOKUP(H18,$AB$4:$AG$8,5,0),"") -> do not consider | BE18: NO | BH18: TBC | BJ18: 100 | BL18: 1 | BN18: 10
B20: Flood risk | D20: Will the scheme change the impact of flooding | F20: - Are there properties, buildings, areas or infrastructure (including transport) at risk of surface water flooding or flooding from sewers currently? - Is growth or climate change expected to change the risk of surface water flooding or flooding from sewers in the area? - Is the scheme expected to reduce local flood risk? | H20: + | K20: YES | M20: Schemes across the catchment to manage the risk predicted flooding | O20: =HYPERLINK(ThisBookName&"'"&AJ20&"'!A1","LINK") -> LINK | AJ20: F - Flooding | AL20: =IF(K20="no",B20,"") ->  | AN20: =IF(K20="YES",1,0) -> 1 | AP20: =IF(H20<>"",HLOOKUP(H20,$AB$4:$AG$8,5,0),"") -> not considered at this time, but reconsider with more information | BE20: NO | BH20: Number of properties protected | BJ20: 100 | BL20: 1 | BN20: 10
B22: Flows in watercourse | D22: Will the scheme help retain or increase flows in the watercourse | F22: - Will the scheme help retain or increase flows in the watercourse? - Will the scheme slow the flows arriving at the watercourse? | H22: 0 | K22: NO | O22: =HYPERLINK(ThisBookName&"'"&AJ22&"'!A1","LINK") -> LINK | AJ22: QW1 - Flows | AL22: Flows in watercourse | AN22: =IF(K22="YES",1,0) -> 0 | AP22: =IF(H22<>"",HLOOKUP(H22,$AB$4:$AG$8,5,0),"") -> do not consider | BE22: NO | BH22: TBC | BJ22: 100 | BL22: 1 | BN22: 10
B24: Groundwater recharge | D24: Will the scheme also increase infiltration into the ground | F24: - Is the scheme likely to increase the amount of infiltration to groundwater bodies? - Are groundwater bodies currently used for water abstraction, or expected to be used in the future? | H24: 0 | K24: NO | O24: =HYPERLINK(ThisBookName&"'"&AJ24&"'!A1","LINK") -> LINK | AJ24: QW2 - Groundwater recharge | AL24: =IF(K24="no",B24,"") -> Groundwater recharge | AN24: =IF(K24="YES",1,0) -> 0 | AP24: =IF(H24<>"",HLOOKUP(H24,$AB$4:$AG$8,5,0),"") -> do not consider | BE24: NO | BH24: Area of ground contributing to infiltration | BJ24: 100 | BL24: 1 | BN24: 10
B26: Health | D26: Will the scheme also contribute to the health and wellbeing of local residents | F26: - Will the scheme involve green infrastructure (e.g. tree planting, green roofs)? - Could the scheme encourage residents or others to spend more time outdoors or participating in physical activity/exercise? | H26: + | K26: NO | M26: Some positive benefits to physical and psychological of local residents arising from more attractive areas and better quality of local environment. However, high risk of double counting with amenity and recreation. | O26: =HYPERLINK(ThisBookName&"'"&AJ26&"'!A1","LINK") -> LINK | AJ26: H - Health | AL26: =IF(K26="no",B26,"") -> Health | AN26: =IF(K26="YES",1,0) -> 0 | AP26: =IF(H26<>"",HLOOKUP(H26,$AB$4:$AG$8,5,0),"") -> not considered at this time, but reconsider with more information | BE26: NO | BH26: Number of people who might benefit in a year. | BJ26: 100 | BL26: 1 | BN26: 10
B28: Noise | D28: Will the scheme change the noise levels that households hear? | F28: - Will the scheme create barriers that will reduce noise, in particular from transportation? | H28: 0 | K28: NO | O28: =HYPERLINK(ThisBookName&"'"&AJ28&"'!A1","LINK") -> LINK | AJ28: N - Noise | AL28: =IF(K28="no",B28,"") -> Noise | AN28: =IF(K28="YES",1,0) -> 0 | AP28: =IF(H28<>"",HLOOKUP(H28,$AB$4:$AG$8,5,0),"") -> do not consider | BE28: NO | BJ28: 100 | BL28: 1 | BN28: 10
B30: Pumping | D30: Will the scheme change the demands on sewerage systems saving money in pumping | F30: - Will the scheme lead to a change in the amount of wastewater pumped? - Do proposed schemes require pumping stations to be added that increase energy use? | H30: + | K30: NO | M30: Potentially positive but negligible impact on flows to works | O30: =HYPERLINK(ThisBookName&"'"&AJ30&"'!A1","LINK") -> LINK | AJ30: AP1 - Pumping | AL30: =IF(K30="no",B30,"") -> Pumping | AN30: =IF(K30="YES",1,0) -> 0 | AP30: =IF(H30<>"",HLOOKUP(H30,$AB$4:$AG$8,5,0),"") -> not considered at this time, but reconsider with more information | BE30: NO | BH30: TBC | BJ30: 100 | BL30: 1 | BN30: 10
B32: Rain water harvesting | D32: Will the scheme also harvest water so that it can be put to other uses | F32: - Will the scheme include rain water harvesting that reduces water demand? | H32: + | K32: YES | M32: A number of interventions will allow rainwater harvesting. | O32: =HYPERLINK(ThisBookName&"'"&AJ32&"'!A1","LINK") -> LINK | AJ32: QW3 - Rainwater harvesting | AL32: =IF(K32="no",B32,"") ->  | AN32: =IF(K32="YES",1,0) -> 1 | AP32: =IF(H32<>"",HLOOKUP(H32,$AB$4:$AG$8,5,0),"") -> not considered at this time, but reconsider with more information | BE32: NO | BH32: Roof area being harvested | BJ32: 100 | BL32: 1 | BN32: 10
B34: Recreation | D34: Will the scheme also change the available facilities for leisure | F34: - Is the site currently used for recreation (e.g. walking, fishing, sports - including water sports)? - Is the scheme expected to improve facilities or opportunities for recreation? | H34: + | K34: YES | M34: Impacts on fish assumed to be a function of improvements in both water supply and water quality, which are only considered to be more likely for the SuDS options | O34: =HYPERLINK(ThisBookName&"'"&AJ34&"'!A1","LINK") -> LINK | AJ34: R - Recreation | AL34: =IF(K34="no",B34,"") ->  | AN34: =IF(K34="YES",1,0) -> 1 | AP34: =IF(H34<>"",HLOOKUP(H34,$AB$4:$AG$8,5,0),"") -> not considered at this time, but reconsider with more information | BE34: NO | BH34: Number of people who might benefit in a year. | BJ34: 100 | BL34: 1 | BN34: 10
B36: Traffic calming | D36: Will the scheme enable traffic calming measures to be introduced | F36: - Will the scheme include traffic calming measures that could reduce risk of accidents, improve the liveability of the area or increase journey times? | H36: 0 | K36: NO | O36: =HYPERLINK(ThisBookName&"'"&AJ36&"'!A1","LINK") -> LINK | AJ36: TC - Traffic calming | AL36: =IF(K36="no",B36,"") -> Traffic calming | AN36: =IF(K36="YES",1,0) -> 0 | AP36: =IF(H36<>"",HLOOKUP(H36,$AB$4:$AG$8,5,0),"") -> do not consider | BE36: NO | BH36: Number of accidents reduced | BJ36: 100 | BL36: 1 | BN36: 10
B38: Treating wastewater | D38: Will the scheme change the demands on sewage systems saving money in treatment? | F38: - Will the scheme lead to a change in the amount of wastewater treated? - Is the size of works large and complex enough to make a meaningful impact on treatment costs? - Does the works include pumping stations? | H38: + | K38: YES | M38: Conventional solution will increase flow to works. | O38: =HYPERLINK(ThisBookName&"'"&AJ38&"'!A1","LINK") -> LINK | AJ38: AP2 - Treating wastewater | AL38: =IF(K38="no",B38,"") ->  | AN38: =IF(K38="YES",1,0) -> 1 | AP38: =IF(H38<>"",HLOOKUP(H38,$AB$4:$AG$8,5,0),"") -> not considered at this time, but reconsider with more information | BE38: NO | BH38: Amount of wastewater not treated (m3) | BJ38: 100 | BL38: 1 | BN38: 10
B40: Water quality of receiving water | D40: Will the scheme change the quality of rivers, lakes or the sea | F40: - Are there pollution or water quality issues in the water courses? - Is growth or climate change expected to change risk of pollution or water quality in the area? - Is the scheme expected to reduce pollution or improve water quality (and may result in avoided costs)? | H40: + | K40: YES | M40: Improve the water quality by reducing the pollutant loads. | O40: =HYPERLINK(ThisBookName&"'"&AJ40&"'!A1","LINK") -> LINK | AJ40: WQ - Water quality | AL40: =IF(K40="no",B40,"") ->  | AN40: =IF(K40="YES",1,0) -> 1 | AP40: =IF(H40<>"",HLOOKUP(H40,$AB$4:$AG$8,5,0),"") -> not considered at this time, but reconsider with more information | BE40: NO | BH40: Length of watercourse improved (km) | BJ40: 100 | BL40: 1 | BN40: 10
B42: Crime | D42: Will the scheme GI also change the local environment and thereby contribute to a reduction in crime | F42: - Could the scheme provide a more pleasant environment that may help to reduce crime? | H42: 0 | K42: NO | O42: =HYPERLINK(ThisBookName&"'"&AJ42&"'!A1","LINK") -> LINK | AJ42: CR - Crime | AL42: =IF(K42="no",B42,"") -> Crime | AN42: =IF(K42="YES",1,0) -> 0 | AP42: =IF(H42<>"",HLOOKUP(H42,$AB$4:$AG$8,5,0),"") -> do not consider | BE42: NO | BJ42: 100 | BL42: 1 | BN42: 10
B44: Economic growth | D44: Will the scheme unlock barriers to economic growth or provide new employment and business opportunities | F44: - Could the scheme lead to new jobs or training opportunities (e.g. green economy)? - Could the scheme play a part in regeneration programmes, tourism or other types of economic development? - Could the scheme lead to more productive landscapes or food production? | H44: 0 | K44: NO | O44: =HYPERLINK(ThisBookName&"'"&AJ44&"'!A1","LINK") -> LINK | AJ44: EG - Economic growth | AL44: =IF(K44="no",B44,"") -> Economic growth | AN44: =IF(K44="YES",1,0) -> 0 | AP44: =IF(H44<>"",HLOOKUP(H44,$AB$4:$AG$8,5,0),"") -> do not consider | BE44: NO | BJ44: 100 | BL44: 1 | BN44: 10
B46: Tourism | D46: Will the scheme improve tourism to a specific location of area | F46: - Could the scheme lead to increase in number of visitors? - Could the scheme lead to increase in quality of visitor experience? | H46: 0 | K46: NO | O46: =HYPERLINK(ThisBookName&"'"&AJ46&"'!A1","LINK") -> LINK | AJ46: T - Tourism | AL46: =IF(K46="no",B46,"") -> Tourism | AN46: =IF(K46="YES",1,0) -> 0 | AP46: =IF(H46<>"",HLOOKUP(H46,$AB$4:$AG$8,5,0),"") -> do not consider | BE46: NO | BJ46: 100 | BL46: 1 | BN46: 10
B48: User defined benefits | D48: Benefits that you define and are not specifically included in the tool | F48: n/a | H48: + | K48: YES | O48: =HYPERLINK(ThisBookName&"'"&AJ48&"'!A1","LINK") -> LINK | AJ48: User-defined benefits | AL48: =IF(K48="no",B48,"") ->  | AN48: =IF(K48="YES",1,0) -> 1 | AP48: =IF(H48<>"",HLOOKUP(H48,$AB$4:$AG$8,5,0),"") -> not considered at this time, but reconsider with more information | BE48: NO | BJ48: 100 | BL48: 1 | BN48: 10
D50: Do you want to undertake scenario planning | K50: NO | AJ50: Scenarios Assessment | AN50: =IF(K50="YES",1,0) -> 0
A52: >>HIDE_BELOW
B54: PR – business / CSR | D54: - under consideration | F54: to be developed | M54: to add in | AP54: =IF(H54<>"",HLOOKUP(H54,$AB$4:$AG$8,5,0),"") -> 
B58: Flexible infrastructure / CCA | D58: Will the scheme enable the area to be more resilient and adaptable to future climate and societal changes | F58: - Is the scheme expected to defer or delay investment in piped systems? - Will it create a more adaptable system resilient to future changes? | H58: 0 | K58: NO | M58: Note that this benefit is still under development and is not available. | O58: =HYPERLINK(ThisBookName&"'"&AJ58&"'!A1","LINK") -> LINK | AJ58: ??? | AL58: =IF(K58="no",B58,"") -> Flexible infrastructure / CCA | AN58: =IF(K58="YES",1,0) -> 0 | AP58: =IF(H58<>"",HLOOKUP(H58,$AB$4:$AG$8,5,0),"") -> do not consider | BE58: NO | BJ58: 1 | BL58: 1 | BN58: 10
B64: Category 1 | D64: Category 1 info | F64: More info | H64: 0 | K64: NO | O64: =HYPERLINK(ThisBookName&"'"&AJ64&"'!A1","LINK") -> LINK | AJ64: CAT1 - Category 1 | AL64: =IF(K64="no",B64,"") -> Category 1 | AN64: =IF(K64="YES",1,0) -> 0 | AP64: =IF(H64<>"",HLOOKUP(H64,$AB$4:$AG$8,5,0),"") -> do not consider | BE64: NO | BJ64: 100 | BL64: 1 | BN64: 10
B66: Category 2 | D66: Category 2 info | F66: More info | H66: 0 | K66: NO | O66: =HYPERLINK(ThisBookName&"'"&AJ66&"'!A1","LINK") -> LINK | AJ66: CAT2 - Category 2 | AL66: =IF(K66="no",B66,"") -> Category 2 | AN66: =IF(K66="YES",1,0) -> 0 | AP66: =IF(H66<>"",HLOOKUP(H66,$AB$4:$AG$8,5,0),"") -> do not consider | BE66: NO | BJ66: 100 | BL66: 1 | BN66: 10
B68: Category 3 | D68: Category 3 info | F68: More info | H68: 0 | K68: NO | O68: =HYPERLINK(ThisBookName&"'"&AJ68&"'!A1","LINK") -> LINK | AJ68: CAT3 - Category 3 | AL68: =IF(K68="no",B68,"") -> Category 3 | AN68: =IF(K68="YES",1,0) -> 0 | AP68: =IF(H68<>"",HLOOKUP(H68,$AB$4:$AG$8,5,0),"") -> do not consider | BE68: NO | BJ68: 100 | BL68: 1 | BN68: 10
B70: Category 4 | D70: Category 4 info | F70: More info | H70: 0 | K70: NO | O70: =HYPERLINK(ThisBookName&"'"&AJ70&"'!A1","LINK") -> LINK | AJ70: CAT4 - Category 4 | AL70: =IF(K70="no",B70,"") -> Category 4 | AN70: =IF(K70="YES",1,0) -> 0 | AP70: =IF(H70<>"",HLOOKUP(H70,$AB$4:$AG$8,5,0),"") -> do not consider | BE70: NO | BJ70: 100 | BL70: 1 | BN70: 10

Sheet Example Benefit Help (hidden)
U1: Amenity | AC1: >>HIDE_ALONG | AI1: <<ROWHEIGHTKEY>>
B2: =ProjDetails -> PROJECT DETAILS - Name: Roundhay Park SuDS Scheme , Assmt. Version: 1, Date: Feb 2019.
B6: Evidence: Qualitative summary and written evidence
B7: 1 | AI7: <<ROW_ALT>>
B8: 2 | AI8: <<ROW_ALT>>
B9: 3 | AI9: <<ROW_ALT>>
B10: 4 | AI10: <<ROW_ALT>>
B11: 5 | AI11: <<ROW_ALT>>
D13: Notes
D14: Overview of the sections to help assess the amenity value
D15: Only complete one section.
F18: SECTION AM1 | H18: SECTION AM2
F19: Enables you to enter your own present value calculations as a result of enhancing the amenity / quality of space | H19: Use this section to help you estimate the impact of changing the quality of space / amenity.
B22: SECTION AM1
D24: Notes
D25: If you have calculated the amenity benefits for the option as a present value, enter it here.
H27: Confirm the confidence you have in the calculation method and valuation | P27: Confirm the start and end year of the evaluation
F29: Confirm the present value of the benefit £ | H29: Quantity | J29: Valuation (£) | L29: Present benefit after applying the confidence values | P29: Start | R29: End
L31: =J31*H31*F31 -> 0
B35: SECTION AM2
D37: Notes:
D38: Guidance to assess the character / quality of space to be issued soon
B41: Street improvements through greening | J41: Confirm the confidence you have in the calculation method and valuation
B43: Option Description | F43: Estimated no. of residents living in green streets | H43: Select appropriate monetary value description (or enter used defined) £/yr/resident | J43: Quantity | L43: Valuation (£) | N43: Present value before confidence applied | P43: Present value after confidence applied
B45: Baseline option | D45: ='Project Data'!$D$22 -> Existing | N45: ='Present Value Calcs'!EA13 -> 0 | P45: =N45*L45*J45 -> 0
B47: Proposed option | D47: ='Project Data'!$D$24 -> Highway runoff diverted into SuDS across the catchment through swales and pipes. Storage in detention basin/online pond and geocellular. Raingardens and water butts used on private properties. | N47: ='Present Value Calcs'!EC13 -> 280828.6359 | P47: =N47*L47*J47 -> 0
D49: Confirm the start and end year of the evaluation | L49: Difference | N49: =N47-N45 -> 280828.6359 | P49: =P47-P45 -> 0
D51: Start | F51: End
B57: Permanent body of water | J57: Confirm the confidence you have in the calculation method and valuation
B59: Option Description | F59: Estimated no. of homes overlooking ponds | H59: Select appropriate monetary value description (or enter used defined) £/yr/resident household | J59: Quantity | L59: Valuation (£) | N59: Present value before confidence applied | P59: Present value after confidence applied
B61: Baseline option | D61: ='Project Data'!$D$22 -> Existing | N61: ='Present Value Calcs'!EE13 -> 0 | P61: =N61*L61*J61 -> 0
B63: Proposed option | D63: ='Project Data'!$D$24 -> Highway runoff diverted into SuDS across the catchment through swales and pipes. Storage in detention basin/online pond and geocellular. Raingardens and water butts used on private properties. | N63: ='Present Value Calcs'!EG13 -> 0 | P63: =N63*L63*J63 -> 0
D65: Confirm the start and end year of the evaluation | L65: Difference | N65: =N63-N61 -> 0 | P65: =P63-P61 -> 0
D67: Start | F67: End
B72: Property price increase as a result of enhancements to parks
F74: Average house price, £ | L74: Benefit, £ (one-off) before confidence | N74: Confirm the confidence you have in the calculation method and valuation | R74: Benefit, £ (one-off) after confidence
F76: Detached | H76: Other houses | J76: Flats
N78: Quantity | P78: Valuation (£)
B80: City public park enhancement | D80: No. of detached houses <450m from park | L80: =(0.1997*F78*J80)+(0.0293*H78*J81)+(0.0754*J78*J82) -> 0 | R80: =P80*N80*L80 -> 0
D81: No. of other houses <450m from park
D82: No. of flats <450m from park
B84: Local public park enhancement | D84: No. of detached houses <450m from park | L84: =(0.0962*F78*J84)+(0.0944*H78*J85)+(0.0792*J78*J86) -> 0 | R84: =P84*N84*L84 -> 0
D85: No. of other houses <450m from park
D86: No. of flats <450m from park
B88: Public open green space enhancement | D88: No. of detached houses <450m from park | L88: =(0.0271*F78*J88)+(0.0044*H78*J89)+(0.047*J78*J90) -> 0 | R88: =P88*N88*L88 -> 0
D89: No. of other houses <450m from park
D90: No. of flats <450m from park
D92: Confirm the year the impact will occur | J92: Annual Value | L92: =SUM(L80:L90) -> 0
D94: Start | F94: End | N94: Average confidence values
F96: =D96 -> 0 | J96: Present value of benefit | L96: ='Present Value Calcs'!EM13 -> 19533078.26 | N96: =IFERROR(AVERAGE(N80:N90),"") ->  | P96: =IFERROR(AVERAGE(P80:P90),"") ->  | R96: =PRODUCT(L96,N96,P96) -> 19533078.26
A98: >>HIDE_BELOW

Sheet SuDS Used (hidden)
J1: Interventions | X1: Area and SuDS Type | AJ1: Area and SuDS Type | AT1: >>HIDE_ALONG
B2: =ProjDetails -> PROJECT DETAILS - Name: Roundhay Park SuDS Scheme , Assmt. Version: 1, Date: Feb 2019.
B6: NOTE: Complete this section outlining the types of SuDS in the scheme overall or in defined locations if you are assessing Air Quality, Building Temperature and Carbon Sequestration. Note that not all the SuDS components you may be using are listed here, only the ones required to support specific benefit calculations.
B9: Light grey cells contain extra notes when you select the cell | P9: Vegetation swale plan area (m2) | R9: =SUMPRODUCT(P17:P55,R17:R55) -> 0 | T9: Grass swale plan area (m2) | V9: =SUMPRODUCT(T17:T55,V17:V55) -> 0 | X9: Infiltration swale plan area (m2) | Z9: =SUMPRODUCT(X17:X55,Z17:Z55) -> 0
F11: TOTAL | H11: =SUM(H17:H55) -> 0 | J11: =SUM(J17:J55) -> 0 | L11: =SUM(L17:L55) -> 0 | N11: =SUM(N17:N55) -> 0 | P11: =SUM(P17:P41) -> 0 | R11: 0 | T11: 0 | V11: 0 | X11: =SUM(X17:X55) -> 0 | Z11: =SUM(Z17:Z55) -> 0 | AB11: =SUM(AB17:AB55) -> 0 | AD11: =SUM(AD17:AD55) -> 0 | AF11: =SUM(AF17:AF55) -> 0 | AH11: =SUM(AH17:AH55) -> 0 | AJ11: =SUM(AJ17:AJ55) -> 0 | AL11: =SUM(AL17:AL55) -> 0 | AN11: =SUM(AN17:AN55) -> 0 | AP11: =SUM(AP17:AP55) -> 0
H13: Source control | P13: Conveyance | X13: Infiltration | AF13: Storage
B15: Location reference / name | F15: Location summary | H15: Green Roof Intensive (size (m2)) | J15: Green Roof Extensive (size (m2)) | L15: Rain garden (total size) (m2) | N15: Trees (number) | P15: Vegetation - swale (length (m)) | R15: Vegetation - swale (typical width (m)) | T15: Grass - swale (length (m)) | V15: Grass - swale (typical width (m)) | X15: Swale (length (m)) | Z15: Swale (typical width (m)) | AB15: Basin (total size (m2)) | AD15: Basin (surrounding area size (m2)) | AF15: Detention (dry) basin size (m2) | AH15: Detention (dry) basin surrounding area size (m2) | AJ15: Retention (wet) basin size (m2) | AL15: Retention (wet) basin (surrounding area size (m2)) | AN15: Wetland size (m2) | AP15: Wetland surrounding area size (m2)
A59: >>HIDE_BELOW

Sheet Potential Stakeholders (hidden)
BF1: Potential interested stakeholders and organisations | BH1: >>HIDE_ALONG | BJ1: =AN4="YES" -> TRUE | BK1: =AB4="YES" -> TRUE | BL1: =J4="YES" -> TRUE
B2: =ProjDetails -> PROJECT DETAILS - Name: Roundhay Park SuDS Scheme , Assmt. Version: 1, Date: Feb 2019. | BJ2: shRed | BK2: shAmber | BL2: shGreen
C4: Strong potential - Benefit is a priority or qualifying criterion for this stakeholder | J4: YES | M4: Modest potential - Benefit is not a priority but may be linked to another which is | AB4: YES | AE4: Low potential - Benefit is not a specific priority or criterion | AN4: YES
B7: This sheet indicates the potential stakeholders and organisations to discuss the impacts of SuDS & NFM with. It is intended as an initial guide to help direct engagement efforts and relies on assumed values | C7: National, Regional & Local Authority | AB7: EU | AG7: Corporate | AK7: Lottery | AN7: Others | BB7: Services
C8: Flood & Coastal Risk Management Grant in Aid (FCRM GiA) | D8: Local Levy Funding | E8: Community Infrastructure Levy (CIL) | F8: Developer based contributions (S106) | G8: Council Tax (Add. Levies and Precepts) | H8: Public Works Loan Board (PWLB) | I8: Business Rate Supplement | J8: Regional Growth Fund | K8: Tax Increment Funding | L8: Business Rate Retention | M8: LEP's | N8: New Homes Bonus* | O8: Business Improvement Districts | P8: Asset backed financing | Q8: PPI / PFI | R8: DEFRA one-off grants & pilot projects | S8: WFD funding | T8: Clinical Commissions Groups (NHS) | U8: Housing Association | V8: Forestry Commision | W8: Natural England | X8: National Park Authority | Y8: Flood and Coastal Committee | AB8: ERDF | AC8: LIFE + | AD8: ESF | AE8: European Investment Bank | AG8: Volunteering | AH8: Sponsorship CSR | AI8: Private Beneficiary Funding | AK8: Heritage Lottery Fund | AL8: Big Lottery | AN8: Grant Making Trusts | AO8: Landfill Community Fund | AP8: Volunteering | AQ8: The National Trust | AR8: Wildlife Trusts | AS8: Rivers Trust | AT8: Woodland Trusts | AU8: RSPB | AV8: Landowners (e.g. Local Farmers) | AW8: Public Appeal | AX8: General Drainage Charge | AY8: Walking / Cycling / Angling groups etc | AZ8: Not-for-profits & Charities | BB8: Water | BC8: Power | BD8: Insurers | BE8: Network Rail | BF8: Highways Agency
B10: Air quality | C10: R | D10: R | E10: A | F10: A | G10: R | H10: A | I10: r | J10: r | K10: r | L10: r | M10: r | N10: a | O10: r | P10: R | Q10: R | R10: G | S10: R | T10: G | U10: r | V10: a | W10: a | X10: r | Y10: r | AB10: A | AC10: G | AD10: A | AE10: a | AG10: A | AH10: A | AI10: G | AK10: R | AL10: a | AN10: A | AO10: A | AP10: A | AQ10: a | AR10: r | AS10: r | AT10: a | AU10: r | AV10: r | AW10: A | AX10: R | AY10: A | AZ10: a | BB10: R | BC10: R | BD10: r | BE10: R | BF10: a
B11: Amenity | C11: A | D11: A | E11: A | F11: G | G11: R | H11: A | I11: A | J11: r | K11: A | L11: A | M11: A | N11: G | O11: A | P11: R | Q11: R | R11: R | S11: R | T11: g | U11: a | V11: a | W11: a | X11: r | Y11: r | AB11: A | AC11: R | AD11: A | AE11: R | AG11: A | AH11: A | AI11: A | AK11: G | AL11: G | AN11: G | AO11: G | AP11: A | AQ11: g | AR11: a | AS11: a | AT11: a | AU11: a | AV11: a | AW11: A | AX11: R | AY11: A | AZ11: A | BB11: A | BC11: A | BD11: r | BE11: a | BF11: a
B12: Biodiversity and Ecology | C12: A | D12: A | E12: a | F12: a | G12: R | H12: A | I12: R | J12: r | K12: r | L12: R | M12: r | N12: a | O12: R | P12: R | Q12: R | R12: G | S12: a | T12: R | U12: R | V12: g | W12: g | X12: g | Y12: a | AB12: A | AC12: G | AD12: r | AE12: g | AG12: A | AH12: A | AI12: A | AK12: G | AL12: G | AN12: G | AO12: G | AP12: A | AQ12: g | AR12: g | AS12: g | AT12: g | AU12: g | AV12: g | AW12: A | AX12: R | AY12: A | AZ12: a | BB12: a | BC12: a | BD12: a | BE12: A | BF12: A
B13: Building temperature | C13: a | D13: a | E13: a | F13: A | G13: R | H13: A | I13: r | J13: r | K13: R | L13: R | M13: r | N13: a | O13: r | P13: R | Q13: R | R13: G | S13: R | T13: G | U13: R | V13: r | W13: r | X13: r | Y13: r | AB13: r | AC13: a | AD13: r | AE13: R | AG13: A | AH13: A | AI13: G | AK13: R | AL13: R | AN13: G | AO13: R | AP13: A | AQ13: r | AR13: r | AS13: r | AT13: r | AU13: r | AV13: r | AW13: A | AX13: R | AY13: A | AZ13: A | BB13: R | BC13: G | BD13: r | BE13: R | BF13: R
B14: Carbon sequestration | C14: A | D14: A | E14: A | F14: A | G14: R | H14: A | I14: r | J14: r | K14: R | L14: R | M14: r | N14: a | O14: R | P14: R | Q14: R | R14: G | S14: R | T14: R | U14: R | V14: g | W14: g | X14: g | Y14: a | AB14: r | AC14: G | AD14: r | AE14: A | AG14: A | AH14: A | AI14: G | AK14: R | AL14: G | AN14: G | AO14: A | AP14: A | AQ14: g | AR14: r | AS14: r | AT14: g | AU14: r | AV14: r | AW14: A | AX14: R | AY14: R | AZ14: a | BB14: A | BC14: a | BD14: a | BE14: a | BF14: a
B15: Crime | C15: a | D15: a | E15: A | F15: A | G15: G | H15: A | I15: a | J15: R | K15: a | L15: a | M15: a | N15: A | O15: A | P15: R | Q15: R | R15: R | S15: R | T15: R | U15: a | V15: r | W15: r | X15: r | Y15: r | AB15: r | AC15: R | AD15: A | AE15: R | AG15: A | AH15: A | AI15: R | AK15: r | AL15: A | AN15: G | AO15: R | AP15: A | AQ15: r | AR15: r | AS15: r | AT15: r | AU15: r | AV15: r | AW15: A | AX15: R | AY15: A | AZ15: a | BB15: R | BC15: R | BD15: r | BE15: r | BF15: R
B16: Economic growth | C16: A | D16: A | E16: G | F16: A | G16: G | H16: G | I16: G | J16: G | K16: G | L16: G | M16: G | N16: A | O16: G | P16: G | Q16: R | R16: R | S16: R | T16: R | U16: R | V16: g | W16: g | X16: g | Y16: a | AB16: A | AC16: R | AD16: g | AE16: G | AG16: R | AH16: R | AI16: G | AK16: r | AL16: A | AN16: G | AO16: R | AP16: A | AQ16: a | AR16: r | AS16: r | AT16: g | AU16: r | AV16: r | AW16: A | AX16: R | AY16: R | AZ16: A | BB16: a | BC16: a | BD16: r | BE16: a | BF16: a
B17: Education | C17: A | D17: A | E17: A | F17: A | G17: R | H17: G | I17: A | J17: R | K17: a | L17: a | M17: A | N17: A | O17: a | P17: R | Q17: R | R17: R | S17: R | T17: R | U17: R | V17: r | W17: r | X17: r | Y17: r | AB17: A | AC17: A | AD17: g | AE17: a | AG17: A | AH17: A | AI17: R | AK17: G | AL17: A | AN17: G | AO17: G | AP17: A | AQ17: g | AR17: g | AS17: g | AT17: r | AU17: g | AV17: r | AW17: A | AX17: R | AY17: A | AZ17: a | BB17: a | BC17: a | BD17: r | BE17: A | BF17: R
B18: Enabling development | C18: A | D18: A | E18: G | F18: g | G18: G | H18: g | I18: a | J18: a | K18: a | L18: a | M18: a | N18: g | O18: a | P18: G | Q18: R | R18: R | S18: R | T18: R | U18: R | V18: r | W18: r | X18: r | Y18: a | AB18: A | AC18: R | AD18: A | AE18: G | AG18: R | AH18: R | AI18: G | AK18: R | AL18: A | AN18: G | AO18: R | AP18: A | AQ18: r | AR18: r | AS18: r | AT18: r | AU18: r | AV18: a | AW18: A | AX18: R | AY18: R | AZ18: R | BB18: A | BC18: a | BD18: r | BE18: a | BF18: a
B19: Flows in watercourses (QW1) | C19: g | D19: a | E19: a | F19: r | G19: g | H19: a | I19: r | J19: r | K19: r | L19: r | M19: a | N19: a | O19: a | P19: r | Q19: r | R19: a | S19: g | T19: r | U19: r | V19: a | W19: g | X19: a | Y19: g | AB19: a | AC19: a | AD19: a | AE19: a | AG19: a | AH19: a | AI19: a | AK19: a | AL19: a | AN19: g | AO19: a | AP19: a | AQ19: r | AR19: g | AS19: g | AT19: a | AU19: g | AV19: r | AW19: a | AX19: a | AY19: g | AZ19: a | BB19: a | BC19: r | BD19: r | BE19: a | BF19: a
B20: Flood risk | C20: G | D20: G | E20: G | F20: G | G20: G | H20: G | I20: a | J20: a | K20: a | L20: a | M20: a | N20: g | O20: a | P20: G | Q20: G | R20: G | S20: R | T20: a | U20: a | V20: g | W20: g | X20: a | Y20: g | AB20: A | AC20: A | AD20: r | AE20: G | AG20: A | AH20: A | AI20: G | AK20: A | AL20: R | AN20: G | AO20: A | AP20: A | AQ20: r | AR20: r | AS20: a | AT20: g | AU20: r | AV20: a | AW20: A | AX20: G | AY20: A | AZ20: A | BB20: G | BC20: a | BD20: g | BE20: a | BF20: a
B21: Groundwater recharge (QW2) | C21: a | D21: a | E21: a | F21: A | G21: R | H21: A | I21: R | J21: R | K21: R | L21: R | M21: R | N21: a | O21: R | P21: R | Q21: R | R21: G | S21: G | T21: R | U21: r | V21: r | W21: a | X21: r | Y21: a | AB21: r | AC21: A | AD21: r | AE21: A | AG21: A | AH21: A | AI21: A | AK21: R | AL21: R | AN21: G | AO21: R | AP21: A | AQ21: r | AR21: r | AS21: a | AT21: r | AU21: r | AV21: r | AW21: A | AX21: G | AY21: A | AZ21: A | BB21: G | BC21: R | BD21: r | BE21: R | BF21: R
B22: Health | C22: A | D22: A | E22: a | F22: A | G22: R | H22: A | I22: r | J22: r | K22: r | L22: r | M22: r | N22: A | O22: R | P22: R | Q22: R | R22: R | S22: R | T22: G | U22: r | V22: a | W22: a | X22: a | Y22: a | AB22: a | AC22: R | AD22: A | AE22: R | AG22: A | AH22: A | AI22: A | AK22: R | AL22: G | AN22: G | AO22: A | AP22: A | AQ22: g | AR22: a | AS22: a | AT22: a | AU22: a | AV22: a | AW22: A | AX22: R | AY22: A | AZ22: a | BB22: r | BC22: r | BD22: r | BE22: R | BF22: r
B23: Noise | C23: r | D23: r | E23: r | F23: a | G23: r | H23: a | I23: r | J23: r | K23: r | L23: r | M23: a | N23: a | O23: a | P23: r | Q23: r | R23: a | S23: r | T23: a | U23: a | V23: g | W23: r | X23: r | Y23: r | AB23: a | AC23: r | AD23: a | AE23: a | AG23: a | AH23: r | AI23: a | AK23: r | AL23: r | AN23: a | AO23: r | AP23: a | AQ23: r | AR23: r | AS23: r | AT23: g | AU23: r | AV23: r | AW23: a | AX23: a | AY23: a | AZ23: a | BB23: r | BC23: a | BD23: r | BE23: a | BF23: a
B24: Pumping (AP1) | C24: A | D24: A | E24: A | F24: A | G24: R | H24: a | I24: r | J24: r | K24: R | L24: R | M24: R | N24: a | O24: R | P24: R | Q24: G | R24: R | S24: G | T24: R | U24: R | V24: r | W24: r | X24: r | Y24: r | AB24: r | AC24: r | AD24: r | AE24: r | AG24: A | AH24: A | AI24: G | AK24: R | AL24: R | AN24: G | AO24: A | AP24: A | AQ24: r | AR24: r | AS24: r | AT24: r | AU24: r | AV24: r | AW24: A | AX24: G | AY24: A | AZ24: R | BB24: G | BC24: R | BD24: r | BE24: R | BF24: R
B25: Rain water harvesting (QW3) | C25: r | D25: A | E25: a | F25: a | G25: A | H25: A | I25: R | J25: R | K25: a | L25: R | M25: a | N25: a | O25: r | P25: R | Q25: R | R25: G | S25: G | T25: R | U25: A | V25: r | W25: r | X25: r | Y25: r | AB25: r | AC25: a | AD25: r | AE25: A | AG25: A | AH25: A | AI25: A | AK25: R | AL25: a | AN25: G | AO25: R | AP25: A | AQ25: r | AR25: r | AS25: r | AT25: r | AU25: r | AV25: r | AW25: A | AX25: G | AY25: A | AZ25: a | BB25: G | BC25: R | BD25: r | BE25: R | BF25: R
B26: Recreation | C26: A | D26: A | E26: A | F26: G | G26: R | H26: A | I26: R | J26: r | K26: a | L26: a | M26: a | N26: g | O26: a | P26: R | Q26: R | R26: R | S26: R | T26: G | U26: G | V26: g | W26: g | X26: g | Y26: a | AB26: A | AC26: R | AD26: r | AE26: R | AG26: A | AH26: A | AI26: R | AK26: G | AL26: G | AN26: G | AO26: G | AP26: A | AQ26: g | AR26: g | AS26: g | AT26: g | AU26: g | AV26: a | AW26: A | AX26: R | AY26: A | AZ26: a | BB26: A | BC26: A | BD26: r | BE26: a | BF26: A
B27: Tourism | C27: A | D27: A | E27: G | F27: a | G27: R | H27: G | I27: R | J27: R | K27: r | L27: r | M27: r | N27: a | O27: R | P27: R | Q27: R | R27: R | S27: R | T27: R | U27: R | V27: r | W27: a | X27: a | Y27: a | AB27: A | AC27: R | AD27: A | AE27: a | AG27: A | AH27: A | AI27: R | AK27: A | AL27: R | AN27: R | AO27: R | AP27: A | AQ27: a | AR27: r | AS27: r | AT27: r | AU27: r | AV27: a | AW27: A | AX27: R | AY27: A | AZ27: A | BB27: R | BC27: R | BD27: r | BE27: G | BF27: R
B28: Traffic calming | C28: A | D28: A | E28: a | F28: G | G28: R | H28: G | I28: a | J28: R | K28: a | L28: a | M28: a | N28: a | O28: a | P28: R | Q28: r | R28: R | S28: R | T28: R | U28: a | V28: r | W28: r | X28: r | Y28: r | AB28: r | AC28: R | AD28: r | AE28: R | AG28: R | AH28: R | AI28: R | AK28: R | AL28: R | AN28: R | AO28: R | AP28: A | AQ28: r | AR28: r | AS28: r | AT28: r | AU28: r | AV28: r | AW28: A | AX28: R | AY28: R | AZ28: A | BB28: R | BC28: R | BD28: r | BE28: R | BF28: G
B29: Treating wastewater (AP2) | C29: A | D29: A | E29: A | F29: A | G29: R | H29: a | I29: r | J29: r | K29: R | L29: R | M29: R | N29: a | O29: R | P29: R | Q29: G | R29: R | S29: G | T29: R | U29: R | V29: r | W29: r | X29: r | Y29: r | AB29: r | AC29: a | AD29: r | AE29: A | AG29: A | AH29: A | AI29: G | AK29: R | AL29: R | AN29: G | AO29: A | AP29: A | AQ29: r | AR29: r | AS29: r | AT29: r | AU29: r | AV29: r | AW29: A | AX29: G | AY29: A | AZ29: R | BB29: G | BC29: R | BD29: r | BE29: R | BF29: R
B30: Water quality of receiving water | C30: A | D30: A | E30: A | F30: G | G30: R | H30: a | I30: r | J30: r | K30: R | L30: r | M30: r | N30: a | O30: r | P30: R | Q30: R | R30: G | S30: G | T30: A | U30: r | V30: r | W30: g | X30: a | Y30: a | AB30: A | AC30: G | AD30: r | AE30: A | AG30: A | AH30: A | AI30: G | AK30: R | AL30: R | AN30: G | AO30: G | AP30: A | AQ30: a | AR30: g | AS30: g | AT30: r | AU30: g | AV30: a | AW30: A | AX30: G | AY30: A | AZ30: R | BB30: G | BC30: G | BD30: r | BE30: G | BF30: G
C34: * Finishes in 2016
A38: >>HIDE_BELOW
B44: Noise | C44: A | D44: A | E44: A | F44: A | G44: R | H44: A | I44: A | J44: A | K44: R | L44: R | M44: G | N44: G | O44: A | P44: R | Q44: R | R44: R | S44: R | T44: A | U44: G | V44: G | W44: G | X44: G | Y44: G | Z44: G | AB44: A | AC44: R | AD44: A | AE44: A | AG44: A | AH44: A | AI44: G | AK44: R | AL44: R | AN44: G | AO44: R | AP44: A | AQ44: G | AT44: G | AU44: G | AV44: G | AW44: A | AX44: R | AY44: A | AZ44: G | BB44: R | BC44: G | BE44: G | BF44: G | BM44: A | BN44: A | BO44: A | BP44: A | BQ44: R | BR44: A | BS44: A | BT44: A | BU44: R | BV44: R | BW44: G | BX44: G | BY44: A | BZ44: R | CA44: R | CB44: R | CC44: R | CD44: A | CE44: G | CG44: A | CH44: R | CI44: A | CJ44: A | CL44: A | CM44: A | CN44: G | CP44: R | CQ44: R | CS44: G | CT44: R | CU44: A | CV44: A | CW44: R | CX44: A | CY44: G | DA44: R | DB44: G | DC44: G | DD44: G
B47: CSR | C47: R | D47: R | E47: R | F47: R | G47: R | H47: R | I47: R | J47: R | K47: R | L47: R | M47: R | N47: R | O47: R | P47: R | Q47: R | R47: R | S47: R | T47: R | U47: G | V47: G | W47: G | X47: G | Y47: G | Z47: G | AB47: A | AC47: R | AD47: A | AE47: R | AG47: A | AH47: A | AI47: G | AK47: R | AL47: R | AN47: R | AO47: R | AP47: A | AQ47: G | AT47: G | AU47: G | AV47: G | AW47: A | AX47: R | AY47: A | AZ47: A | BB47: G | BC47: G | BE47: G | BF47: G | BM47: R | BN47: R | BO47: R | BP47: R | BQ47: R | BR47: R | BS47: R | BT47: R | BU47: R | BV47: R | BW47: R | BX47: R | BY47: R | BZ47: R | CA47: R | CB47: R | CC47: R | CD47: R | CE47: G | CG47: A | CH47: R | CI47: A | CJ47: R | CL47: A | CM47: A | CN47: G | CP47: R | CQ47: R | CS47: R | CT47: R | CU47: A | CV47: A | CW47: R | CX47: A | CY47: A | DA47: G | DB47: G | DC47: G | DD47: G

Sheet AQ - Air quality
V1: Air Quality | X1: >>HIDE_ALONG | Z1: <<ROWHEIGHTKEY>>
B2: =ProjDetails -> PROJECT DETAILS - Name: Roundhay Park SuDS Scheme , Assmt. Version: 1, Date: Feb 2019.
B6: Evidence: Qualitative summary and written evidence
B7: 1 | C7: =IF('Screening Questions'!M6<=0,"Summary from screening questions",'Screening Questions'!M6) -> A number of trees are being planted as part of this scheme. Some potential improvement in local air quality as a result of additional planting | Z7: <<ROW_ALT>>
B8: 2 | Z8: <<ROW_ALT>>
B9: 3 | Z9: <<ROW_ALT>>
B10: 4 | Z10: <<ROW_ALT>>
B11: 5 | Z11: <<ROW_ALT>>
C13: Notes
C14: Overview of the sections to help choose which one to capture the impact on air quality
C15: Only complete one section.
C16: Retrofit or redevelopment only like to create an impact in improving air quality. Where comparing with a conventional scheme, this is the additional benefit the interventions proposed bring.
C17: Further help is provided in the guidance on how to estimate the impact depending upon the available data
E19: SECTION AQ1 | K19: SECTION AQ2
E20: If you have already calculated the impact on air quality from the schemes, enter the data here. | K20: Use this section if you need to estimate the impact on air quality
B23: SECTION AQ1 - use this if you have already calculated the impact
C25: Notes:
C26: If you have calculated the impact of the proposals on air quality enter the present values here. Its likely that a retrofit will contribute to an improvement in air quality. Note it is important to select a numeric value from the down lists in this benefit (a default value is shown if only a single value is available from the Values Library).
Q28: Confirm the start and end year of the evaluation
E30: Option description | G30: Present value before confidence applied | I30: Level of confidence of the quantity calculated (select from list) | K30: Level of confidence of the monetary value selected/used | M30: Present value after confidence applied | Q30: Start | S30: End
C32: Proposed option | E32: ='Project Data'!$D$24 -> Highway runoff diverted into SuDS across the catchment through swales and pipes. Storage in detention basin/online pond and geocellular. Raingardens and water butts used on private properties. | M32: =G32*I32*K32 -> 0
B36: SECTION AQ2 - use this section to estimate the impact of the proposals
C38: Proposed option
C40: Vegetative interventions excluding trees
C42: Information taken from SuDS Used Sheet for the types of SuDS below | K42: Select vegetation pollutant removal levels (tonnes/year/ha) | O42: GENERAL NOTES
E44: Green roof Intensive | I44: ha | K44: SO2 | M44: 0.01982298965 | O44: Default values shown as single value available | AC44: 10-20 µg /m3 | AE44: Cells automatically up date
O45: Default values shown as single value available
E46: Green roof extensive | I46: ha | K46: NO2 | M46: 0.02328957158 | O46: Default values shown as single value available | AC46: 20-30 µg /m3 | AE46: Cells automatically calculate present value
O47: Default values shown as single value available
E48: New basins (total incl. surrounding) | G48: 0.56 | I48: ha | K48: O3 | M48: 0.04491908984 | O48: Default values shown as single value available | AC48: 30-40 µg /m3
O49: Default values shown as single value available
E50: Area of other interventions e.g. raingardens, swales | G50: 0.9516 | I50: ha | K50: PM-10 | M50: 0.006493737987 | O50: Default values shown as single value available | AC50: 40-50 µg /m3 | AE50: Further work required
AC51: 50-60 µg /m3
E52: Total contributing vegetative interventions area | G52: =SUM(G44+G50+G48+G128+G46) -> 1.5116 | I52: ha | K52: CO | AC52: > 60 µg /m3
C55: New trees planted
M56: GENERAL NOTES
E58: Tree size | G58: Tree type (small) | I58: Tree type (medium) | K58: Tree type (large) | M58: Size of tree (species) when it has matured
E60: Numbers | G60: 264 | M60: Distribute the total number of trees across the size range
C62: Default tree pollutant removal levels from ranges (tonnes/year/tree): Low, Central, High, User defined | E62: SO2 | G62: 1.3608e-05 | I62: 3.1752e-05 | K62: 4.536e-05 | M62: Default values shown as single value available
M63: Default values shown as single value available
E64: NO2 | G64: 3.6288e-05 | I64: 7.7112e-05 | K64: 0.000127008 | M64: Default values shown as single value available
M65: Default values shown as single value available
E66: O3 | G66: 6.3504e-05 | I66: 0.000122472 | K66: 0.000195048 | M66: Default values shown as single value available
M67: Default values shown as single value available
E68: PM-10 | G68: 6.804e-05 | I68: 0.000131544 | K68: 0.00020412 | M68: Default values shown as single value available
E70: CO | M70: Values to be added at a later date
C73: Pollutant removal monetary values
I74: GENERAL NOTES | O74: Evaluation time frame (year)
C76: Select pollutant removal health benefit values (£/tonnes) | E76: SO2 | G76: 2040.273497 | O76: Start | Q76: End
E78: NO2 | G78: 26339.97257 | O78: 2019 | Q78: 2059
E80: O3 | I80: Values not yet available, to be added at a later date
E82: PM-10 | G82: 60629.29295
E84: CO | I84: Values not yet available, to be added at a later date
C86: Benefit estimation
K87: Confirm the confidence you have in the calculation method and valuation
E89: Annual pollutant removal estimates (vegetation) tonnes | G89: Annual pollutant removal estimates (trees) tonnes | I89: Annual pollutant removal benefit (£) | K89: Quantity for all pollution removal values | M89: Valuation (£) for all monetary values | O89: Present value before confidence applied | Q89: Present value after confidence applied
C91: SO2 | E91: =$G$52*M44 -> 0.02996443115 | G91: =$G$60*G62+$I$60*I62+$K$60*K62 -> 0.003592512 | I91: =(E91+G91)*G76 -> 68.46534174 | K91: 0.5 | M91: 0.5 | O91: ='Present Value Calcs'!CP13 -> 2091.787617 | Q91: =O91*M91*K91 -> 522.9469042
C93: NO2 | E93: =$G$52*M46 -> 0.0352045164 | G93: =$G$60*G64+$I$60*I64+$K$60*K64 -> 0.009580032 | I93: =(E93+G93)*G78 -> 1179.623776 | K93: 0.5 | M93: 0.5 | O93: ='Present Value Calcs'!CR13 -> 36040.45996 | Q93: =O93*M93*K93 -> 9010.114991
C95: O3 | E95: =$G$52*M48 -> 0.0678996962 | G95: =$G$60*G66+$I$60*I66+$K$60*K66 -> 0.016765056 | I95: =(E95+G95)*G80 -> 0 | K95: 0.5 | M95: 0.5 | Q95: =O95*M95*K95 -> 0
C97: PM-10 | E97: =$G$52*M50 -> 0.009815934342 | G97: =$G$60*G68+$I$60*I68+$K$60*K68 -> 0.01796256 | I97: =(E97+G97)*G82 -> 1684.190471 | K97: 0.5 | M97: 0.5 | O97: ='Present Value Calcs'!CT13 -> 51456.23585 | Q97: =O97*M97*K97 -> 12864.05896
C99: CO | E99: =$G$52*M52 -> 0 | G99: =$I$60*I70 -> 0 | I99: =E99+G99 -> 0 | Q99: =O99*M99*K99 -> 0
M101: Difference | O101: =SUM(O91:O99) -> 89588.48343 | Q101: =SUM(Q91:Q99) -> 22397.12086
A105: >>HIDE_BELOW
C109: Existing context to understand if air pollution is a problem
C111: Air pollution levels (from available data) to indicate pollution levels and the extent of the problem | M111: http://naei.defra.gov.uk/data/gis-mapping
C112: SO2
C113: NO2
C114: O3
C115: PM-10
C116: CO
E122: Likely size at full growth | G122: Please select | I122: Please select | K122: Please select | M122: Currently considering if to include for size of tree type and the impact this has on the value
E124: Pollutant removal type | G124: Please select | I124: Please select | K124: Please select
E128: New green walls | I128: ha

Sheet Am - Amenity
V1: Amenity | X1: >>HIDE_ALONG | AC1: <<ROWHEIGHTKEY>>
B2: =ProjDetails -> PROJECT DETAILS - Name: Roundhay Park SuDS Scheme , Assmt. Version: 1, Date: Feb 2019.
B6: Evidence: Qualitative summary and written evidence
B7: 1 | C7: =IF('Screening Questions'!M8<=0,"Summary from screening questions",'Screening Questions'!M8) -> There will be new greening as part of this scheme | AC7: <<ROW_ALT>>
B8: 2 | AC8: <<ROW_ALT>>
B9: 3 | AC9: <<ROW_ALT>>
B10: 4 | AC10: <<ROW_ALT>>
B11: 5 | AC11: <<ROW_ALT>>
D13: Notes
D14: Overview of the sections to help assess the amenity value
D15: Only complete one section.
F18: SECTION AM1 | H18: SECTION AM2
F19: Enables you to enter your own present value calculations as a result of enhancing the amenity / quality of space | H19: Use this section to help you estimate the impact of changing the quality of space / amenity.
B22: SECTION AM1
D24: Notes
D25: If you have calculated the amenity benefits for the option as a present value, enter it here.
H27: Confirm the confidence you have in the calculation method and valuation | P27: Confirm the start and end year of the evaluation
F29: Confirm the present value of the benefit £ | H29: Quantity | J29: Valuation (£) | L29: Present benefit after applying the confidence values | P29: Start | R29: End
L31: =J31*H31*F31 -> 0
B35: SECTION AM2
D37: Notes:
D38: Guidance to assess the character / quality of space to be issued soon
B41: Street improvements through greening | J41: Confirm the confidence you have in the calculation method and valuation
B43: Option Description | F43: Estimated no. of residents living in green streets | H43: Select appropriate monetary value description (or enter used defined) £/yr/resident | J43: Quantity | L43: Valuation (£) | N43: Confirm the start and end year of the evaluation | R43: Present value before confidence applied | T43: Present value after confidence applied
B45: Baseline option | D45: ='Project Data'!$D$22 -> Existing | F45: 0 | H45: 21.56277181 | J45: 1 | L45: 1 | N45: Start | P45: End | R45: ='Present Value Calcs'!EA13 -> 0 | T45: =R45*L45*J45 -> 0 | AD45: =ValuesLibrary!J37 -> 21.56277181 | AE45: =ValuesLibrary!K37 -> 24.8699454 | AF45: =ValuesLibrary!L37 -> 30.82285786 | AG45: =ValuesLibrary!M37 -> User not defined
B47: Proposed option | D47: ='Project Data'!$D$24 -> Highway runoff diverted into SuDS across the catchment through swales and pipes. Storage in detention basin/online pond and geocellular. Raingardens and water butts used on private properties. | F47: 600 | H47: 21.56277181 | J47: 1 | L47: 1 | N47: 2019 | P47: 2059 | R47: ='Present Value Calcs'!EC13 -> 280828.6359 | T47: =R47*L47*J47 -> 280828.6359 | AD47: =ValuesLibrary!J37 -> 21.56277181 | AE47: =ValuesLibrary!K37 -> 24.8699454 | AF47: =ValuesLibrary!L37 -> 30.82285786 | AG47: =ValuesLibrary!M37 -> User not defined
P49: Difference | R49: =R47-R45 -> 280828.6359 | T49: =T47-T45 -> 280828.6359
B54: Permanent body of water | J54: Confirm the confidence you have in the calculation method and valuation
B56: Option Description | F56: Estimated no. of homes overlooking ponds | H56: Select appropriate monetary value description (or enter used defined) £/yr/resident household | J56: Quantity | L56: Valuation (£) | N56: Confirm the start and end year of the evaluation | R56: Present value before confidence applied | T56: Present value after confidence applied
B58: Baseline option | D58: ='Project Data'!$D$22 -> Existing | N58: Start | P58: End | R58: ='Present Value Calcs'!EE13 -> 0 | T58: =R58*L58*J58 -> 0 | AD58: =ValuesLibrary!J38 -> 74.34526231 | AE58: =ValuesLibrary!K38 -> 144.8542033 | AF58: =ValuesLibrary!L38 -> 247.5088715 | AG58: =ValuesLibrary!M38 -> User not defined
B60: Proposed option | D60: ='Project Data'!$D$24 -> Highway runoff diverted into SuDS across the catchment through swales and pipes. Storage in detention basin/online pond and geocellular. Raingardens and water butts used on private properties. | R60: ='Present Value Calcs'!EG13 -> 0 | T60: =R60*L60*J60 -> 0
P62: Difference | R62: =R60-R58 -> 0 | T62: =T60-T58 -> 0
B66: Commonly visited local park or green space | L66: Confirm the confidence you have in the calculation method and valuation
B68: Option Description | F68: Estimated no. of people visiting park per year | H68: Location of park or green space | J68: Monetary value of visit | L68: Quantity | N68: Valuation (£) | P68: Confirm the start and end year of the evaluation | T68: Present value before confidence applied | V68: Present value after confidence applied
B70: Baseline option | D70: ='Project Data'!$D$22 -> Existing | J70: =IFERROR(VLOOKUP(H70,$AF$112:$AG$124,2,0),"") ->  | P70: Start | R70: End | T70: =IFERROR(('Present Value Calcs'!EI13),0) -> 0 | V70: =T70*N70*L70 -> 0
B72: Proposed option | D72: ='Project Data'!$D$24 -> Highway runoff diverted into SuDS across the catchment through swales and pipes. Storage in detention basin/online pond and geocellular. Raingardens and water butts used on private properties. | J72: =IFERROR(VLOOKUP(H72,$AF$112:$AG$124,2,0),"") ->  | T72: ='Present Value Calcs'!EK13 -> 0 | V72: =T72*N72*L72 -> 0
R74: Difference | T74: =T72-T70 -> 0 | V74: =V72-V70 -> 0
B77: Property price increase as a result of enhancements to parks
D79: Average property price, £ | L79: Benefit, £ (one-off) before confidence | N79: Confirm the confidence you have in the calculation method and valuation | R79: Benefit, £ (one-off) after confidence
D81: Detached | F81: Other houses | H81: Flats | J81: Commercial
D83: 300000 | F83: 220000 | H83: 110000 | N83: Quantity | P83: Valuation (£)
B85: City public park enhancement | D85: No. of detached houses <450m from park | L85: =(0.1997*D83*J85)+(0.0293*F83*J86)+(0.0754*H83*J87) -> 0 | R85: =P85*N85*L85 -> 0
D86: No. of other houses <450m from park
D87: No. of flats <450m from park
B89: Local public park enhancement | D89: No. of detached houses <450m from park | J89: 74 | L89: =(0.0962*D83*J89)+(0.0944*F83*J90)+(0.0792*H83*J91) -> 20216736 | N89: 0.5 | P89: 0.5 | R89: =P89*N89*L89 -> 5054184
D90: No. of other houses <450m from park | J90: 840
D91: No. of flats <450m from park | J91: 73
B93: Public open green space enhancement | D93: No. of detached houses <450m from park | L93: =(0.0271*D83*J93)+(0.0044*F83*J94)+(0.047*H83*J95) -> 0 | R93: =P93*N93*L93 -> 0
D94: No. of other houses <450m from park
D95: No. of flats <450m from park
B97: New / improved green space | D97: No. of commercial properties overlooking new or improved green space | L97: =H97*J97*J83 -> 0 | R97: =P97*N97*L97 -> 0
D99: Confirm the year the impact will occur | J99: Annual Value | L99: =SUM(L85:L97) -> 20216736
D101: Start | F101: End | N101: Average confidence values
D103: 2019 | F103: =D103 -> 2019 | J103: Present value of benefit | L103: ='Present Value Calcs'!EM13 -> 19533078.26 | N103: =IFERROR(AVERAGE(N85:N97),"") -> 0.5 | P103: =IFERROR(AVERAGE(P85:P97),"") -> 0.5 | R103: =PRODUCT(L103,N103,P103) -> 4883269.565
A105: >>HIDE_BELOW
AF111: Most commonly visited local park or green space | AG111: Value
AF112: London | AG112: =ValuesLibrary!K40 -> 47.04
AF113: North East | AG113: =ValuesLibrary!K41 -> 27.72
AF114: North West | AG114: =ValuesLibrary!K42 -> 26.4
AF115: East Midlands | AG115: =ValuesLibrary!K43 -> 30.48
AF116: East England | AG116: =ValuesLibrary!K44 -> 32.04
AF117: West Midlands | AG117: =ValuesLibrary!K45 -> 31.92
AF118: Yorkshire & Humber | AG118: =ValuesLibrary!K46 -> 20.16
AF119: South East | AG119: =ValuesLibrary!K47 -> 26.76
AF120: South West | AG120: =ValuesLibrary!K48 -> 30.72
AF121: Scotland | AG121: =ValuesLibrary!K49 -> 27.96
AF122: Wales | AG122: =ValuesLibrary!K50 -> 28.92
AF123: Northern Ireland | AG123: =ValuesLibrary!K51 -> 27.96
AF124: User to define | AG124: =ValuesLibrary!K52 -> User not defined

Sheet BE - Biodiversity & Ecology
Q1: Biodiversity and ecology | AA1: >>HIDE_ALONG | AH1: <<ROWHEIGHTKEY>>
B2: =ProjDetails -> PROJECT DETAILS - Name: Roundhay Park SuDS Scheme , Assmt. Version: 1, Date: Feb 2019.
AT4: Designated status | AU4: Habitat type (habitats of principal importance) | AV4: Habitat type (other, locally important) | AX4: Section 41 of the Natural Environment and Rural Communities (NERC) Act 2006 - Habitats and Species of Principal Importance in England
B6: Evidence: Qualitative summary and written evidence | AT6: None | AU6: None | AV6: None | AX6: Broad habitat | AY6: Habitat of principal importance
B7: 1 | C7: =IF('Screening Questions'!M10<=0,"Summary from screening questions",'Screening Questions'!M10) -> Enhanced water quality and increase in flows to watercourse and lake. Provision of GI to enhance connectivity of green spaces. | AH7: <<ROW_ALT>> | AT7: Statutory wildlife site | AU7: Pond | AV7: Ditch/watercourse | AX7: Arable and horticulture | AY7: Arable field margins
B8: 2 | C8: A number of new swales, green roofs and basins | AH8: <<ROW_ALT>> | AT8: Local statutory wildlife site | AU8: Reed bed | AV8: Grassland | AX8: Arable and horticulture | AY8: Traditional orchards
B9: 3 | AH9: <<ROW_ALT>> | AT9: Non-statutory wildlife site | AU9: Wet woodland | AV9: Shrubs/scrub | AX9: Boundary | AY9: Hedgerows
B10: 4 | AH10: <<ROW_ALT>> | AT10: Other designations (not wildlife) - enter type | AU10: Lowland mixed deciduous woodland | AV10: Individual trees | AX10: Coastal | AY10: Coastal saltmarsh
B11: 5 | AH11: <<ROW_ALT>> | AU11: Hedgerows | AV11: Marshy/wet grassland | AX11: Coastal | AY11: Coastal sand dunes
AU12: Other - enter from S41 habitats list (NERC) | AV12: Other - enter other habitat present
C14: Notes: Overview of the sections to help choose which one to use to assess the potential change in biodiversity and ecology. Only complete one section
E16: SECTION BE1 | G16: SECTION BE2
E17: Complete this section it you have already assessed the present value benefit of the change in biodiversity and ecology | G17: Use this section if you need to estimate the impact of the proposals on the ecology and biodiversity
AV18: Other - enter other habitat present | AX18: Coastal | AY18: Coastal vegetated shingle
B20: SECTION BE1
AU21: Other - enter from S41 habitats list (NERC) | AV21: Other - enter other habitat present | AX21: Coastal | AY21: Coastal vegetated shingle
C22: NOTES | AX22: Coastal | AY22: Intertidal mudflats
C23: Have you undertaken an assessment of present value of the enhancement of the Ecology and Biodiversity (e.g. planting woodland assessed using the Carbon Trust Tool)? If Yes please enter the information below. | AT23: Guidance to provide brief explanations of what these designations are & provide photo examples. | AU23: Define in guidance & provide photo examples | AV23: Provide photo examples in guidance | AX23: Coastal | AY23: Maritime cliff and slopes
C24: If not, please go to the section BE2 and consider a detailed or basic assessment of the changes to ecology and biodiversity | AX24: Coastal | AY24: Saline lagoons
C25: For a retrofit / redevelopment only complete the Proposed Scenario Row. For new development, complete both | AX25: Coastal | AY25: Saline lagoons
AX26: Freshwater | AY26: Aquifer-fed naturally fluctuating water bodies
I27: Confirm the confidence you have in the calculation method and valuation
E29: Scenario | G29: Present value of the ecology and biodiversity before confidence applied | I29: Quantity | K29: Monetary | M29: Present value the ecology and biodiversity after confidence applied | Q29: Confirm the start and end year of the evaluation | AT29: Surrounding land use * | AU29: Associated weighting ** | AX29: Freshwater | AY29: Eutrophic standing waters
AT30: Parkland - public open spaces (amenity grassland etc.) | AX30: Grassland | AY30: Lowland calcareous grassland
C31: Baseline scenario | E31: ='Project Data'!$D$22 -> Existing | G31: 0 | M31: =G31*I31*K31 -> 0 | Q31: Start | S31: End | AT31: select from drop-down menu | AU31: Autofill based on landuse selection | AX31: Freshwater | AY31: Mesotrophic lakes
AX32: Grassland | AY32: Lowland calcareous grassland
C33: Proposed scenario | E33: ='Project Data'!$D$24 -> Highway runoff diverted into SuDS across the catchment through swales and pipes. Storage in detention basin/online pond and geocellular. Raingardens and water butts used on private properties. | G33: 0 | M33: =G33*I33*K33 -> 0 | AX33: Freshwater | AY33: Oligotrophic and dystrophic lakes
AT34: Urban - no green space, no trees | AX34: Grassland | AY34: Lowland calcareous grassland
E35: Comparative Present Value of the options | G35: =G33-G31 -> 0 | M35: =M33-M31 -> 0 | AT35: Urban - isolated trees/hedges/grass verges | AX35: Freshwater | AY35: Ponds
AT36: Suburban - domestic gardens, grass verges, some open space | AX36: Freshwater | AY36: Rivers
AT37: Parkland - public open spaces (amenity grassland etc.) | AX37: Grassland | AY37: Lowland calcareous grassland
AT38: Highways - local B and C roads | AX38: Grassland | AY38: Lowland dry acid grassland
AT39: Highways - trunk and major roads (A roads, duel carriageways, motorways) | AX39: Grassland | AY39: Lowland meadows
B41: SECTION BE2 | AT41: Countryside - low intensity farmland, semi-natural habitats (woodlands, meadows, wetlands, rivers etc.)
C43: Notes: Use each evaluation series to evaluate key interventions / change in land use
C46: Changes to biodiversity and ecology land use / type (1) | M46: Confirm the confidence you have in the calculation method and valuation
C48: Option Description | G48: Size of existing area or intervention (ha) | I48: Select the type of area or intervention | K48: Select the type of area or intervention | M48: Quantity | O48: Valuation (£) | Q48: Confirm the start and end year of the evaluation | W48: Present value before confidence applied | Y48: Present value after confidence applied
C50: Baseline option | E50: ='Project Data'!$D$22 -> Existing | I50: Select location | K50: =IFERROR(VLOOKUP(I50,$BC$203:$BD$225,2,0),"") -> Value automatically populated | Q50: Start | S50: End | W50: =IFERROR('Present Value Calcs'!BN13,0) -> 0 | Y50: =W50*O50*M50 -> 0
C52: Proposed option | E52: ='Project Data'!$D$24 -> Highway runoff diverted into SuDS across the catchment through swales and pipes. Storage in detention basin/online pond and geocellular. Raingardens and water butts used on private properties. | G52: 1.5116 | I52: Improved grassland | K52: =IFERROR(VLOOKUP(I52,$BC$203:$BD$222,2,0),"") -> 37.14139999 | M52: 0.5 | O52: 0.5 | Q52: 2019 | S52: 2059 | W52: =IFERROR('Present Value Calcs'!BP13,0) -> 1218.654808 | Y52: =W52*O52*M52 -> 304.6637019
S54: Difference | W54: =W52-W50 -> 1218.654808 | Y54: =Y52-Y50 -> 304.6637019
C56: Changes to biodiversity and ecology land use / type (2) | M56: Confirm the confidence you have in the calculation method and valuation
C58: Option Description | G58: Size of existing area or intervention (ha) | I58: Select the type of area or intervention | K58: Select the type of area or intervention | M58: Quantity | O58: Valuation (£) | Q58: Confirm the start and end year of the evaluation | W58: Present value before confidence applied | Y58: Present value after confidence applied
C60: Baseline option | E60: ='Project Data'!$D$22 -> Existing | I60: Select location | K60: =IFERROR(VLOOKUP(I60,$BC$203:$BD$222,2,0),"") -> Value automatically populated | Q60: Start | S60: End | W60: =IFERROR('Present Value Calcs'!BR13,0) -> 0 | Y60: =W60*O60*M60 -> 0
C62: Proposed option | E62: ='Project Data'!$D$24 -> Highway runoff diverted into SuDS across the catchment through swales and pipes. Storage in detention basin/online pond and geocellular. Raingardens and water butts used on private properties. | I62: Select location | K62: =IFERROR(VLOOKUP(I62,$BC$203:$BD$222,2,0),"") -> Value automatically populated | W62: =IFERROR('Present Value Calcs'!BT13,0) -> 0 | Y62: =W62*O62*M62 -> 0
S64: Difference | W64: =W62-W60 -> 0 | Y64: =Y62-Y60 -> 0
C66: Changes to biodiversity and ecology land use / type (3) | M66: Confirm the confidence you have in the calculation method and valuation
C68: Option Description | G68: Size of existing area or intervention (ha) | I68: Select the type of area or intervention | K68: Select the type of area or intervention | M68: Quantity | O68: Valuation (£) | Q68: Confirm the start and end year of the evaluation | W68: Present value before confidence applied | Y68: Present value after confidence applied
C70: Baseline option | E70: ='Project Data'!$D$22 -> Existing | I70: Select location | K70: =IFERROR(VLOOKUP(I70,$BC$203:$BD$222,2,0),"") -> Value automatically populated | Q70: Start | S70: End | W70: =IFERROR('Present Value Calcs'!BV13,0) -> 0 | Y70: =W70*O70*M70 -> 0
C72: Proposed option | E72: ='Project Data'!$D$24 -> Highway runoff diverted into SuDS across the catchment through swales and pipes. Storage in detention basin/online pond and geocellular. Raingardens and water butts used on private properties. | I72: Select location | K72: =IFERROR(VLOOKUP(I72,$BC$203:$BD$222,2,0),"") -> Value automatically populated | W72: =IFERROR('Present Value Calcs'!BX13,0) -> 0 | Y72: =W72*O72*M72 -> 0
S74: Difference | W74: =W72-W70 -> 0 | Y74: =Y72-Y70 -> 0
C76: Changes to biodiversity and ecology land use / type (4) | M76: Confirm the confidence you have in the calculation method and valuation
C78: Option Description | G78: Size of existing area or intervention (ha) | I78: Select the type of area or intervention | K78: Select the type of area or intervention | M78: Quantity | O78: Valuation (£) | Q78: Confirm the start and end year of the evaluation | W78: Present value before confidence applied | Y78: Present value after confidence applied
C80: Baseline option | E80: ='Project Data'!$D$22 -> Existing | I80: Select location | K80: =IFERROR(VLOOKUP(I80,$BC$203:$BD$222,2,0),"") -> Value automatically populated | Q80: Start | S80: End | W80: =IFERROR('Present Value Calcs'!BZ13,0) -> 0 | Y80: =W80*O80*M80 -> 0
C82: Proposed option | E82: ='Project Data'!$D$24 -> Highway runoff diverted into SuDS across the catchment through swales and pipes. Storage in detention basin/online pond and geocellular. Raingardens and water butts used on private properties. | I82: Select location | K82: =IFERROR(VLOOKUP(I82,$BC$203:$BD$222,2,0),"") -> Value automatically populated | W82: =IFERROR('Present Value Calcs'!CB13,0) -> 0 | Y82: =W82*O82*M82 -> 0
S84: Difference | W84: =W82-W80 -> 0 | Y84: =Y82-Y80 -> 0
C86: Changes to biodiversity and ecology land use / type (5) | M86: Confirm the confidence you have in the calculation method and valuation
C88: Option Description | G88: Size of existing area or intervention (ha) | I88: Select the type of area or intervention | K88: Select the type of area or intervention | M88: Quantity | O88: Valuation (£) | Q88: Confirm the start and end year of the evaluation | W88: Present value before confidence applied | Y88: Present value after confidence applied
C90: Baseline option | E90: ='Project Data'!$D$22 -> Existing | I90: Select location | K90: =IFERROR(VLOOKUP(I90,$BC$203:$BD$222,2,0),"") -> Value automatically populated | Q90: Start | S90: End | W90: =IFERROR('Present Value Calcs'!CD13,0) -> 0 | Y90: =W90*O90*M90 -> 0
C92: Proposed option | E92: ='Project Data'!$D$24 -> Highway runoff diverted into SuDS across the catchment through swales and pipes. Storage in detention basin/online pond and geocellular. Raingardens and water butts used on private properties. | I92: Select location | K92: =IFERROR(VLOOKUP(I92,$BC$203:$BD$222,2,0),"") -> Value automatically populated | W92: =IFERROR('Present Value Calcs'!CF13,0) -> 0 | Y92: =W92*O92*M92 -> 0
S94: Difference | W94: =W92-W90 -> 0 | Y94: =Y92-Y90 -> 0
A97: >>HIDE_BELOW
AT98: Countryside - intensively farmed land (arable, grazed pasture) | AX98: Grassland | AY98: Purple moor-grass and rush pastures
B99: SECTION BE2 | AT99: Countryside - low intensity farmland, semi-natural habitats (woodlands, meadows, wetlands, rivers etc.)
AU100: Other - enter from S41 habitats list (NERC) | AV100: Other - enter other habitat present | AX100: Coastal | AY100: Coastal vegetated shingle
C101: NOTES | AX101: Grassland | AY101: Upland calcareous grassland
C102: Use the following structure to help record your decisions and estimate the change in ecology and biodiversity before estimating the monetary value | AX102: Grassland | AY102: Upland hay meadows
C103: Use the structure whether following a detailed or basic assessment approach | AX103: Grassland | AY103: Upland hay meadows
C104: Use the supporting guidance to help you complete this assessment (being drafted). | AX104: Heathland | AY104: Lowland heathland
C105: For a retrofit / redevelopment only complete the Proposed Scenario Rows. For new development, complete both | AX105: Coastal | AY105: Saline lagoons
C109: Baseline option | E109: ='Project Data'!$D$22 -> Existing | W109: Enter user defined value OR select value (not both) | AX109: Heathland | AY109: Mountain heaths and willow scrub
AT110: Parkland - public open spaces (amenity grassland etc.) | AX110: Grassland | AY110: Lowland calcareous grassland
C111: Location (describe or reference from map) | E111: Existing land use | G111: Designated status | I111: Dominant habitat type (habitats of principal importance) | K111: Dominant habitat type (other, locally important) | M111: Quality of habitat | O111: Habitat connectivity | Q111: Additional information * | S111: Enter the quantity (to match the monetary value units, e.g. Ha ) | U111: Select appropriate monetary value description (or enter user defined) | W111: User defined value if available (to match the monetary value units) | Y111: Select low, average or high monetary value | AA111: Enter Monetary Value (or enter user defined) | AC111: Units | AE111: Annual Value £ | AX111: Heathland | AY111: Upland heathland
AT112: Parkland - public open spaces (amenity grassland etc.) | AX112: Grassland | AY112: Lowland calcareous grassland
AA113: =IF(ISNUMBER($W113),$W113,IFERROR(VLOOKUP($U113,tblBioDiversity,HLOOKUP($Y113,tblBDGrade,2,0),0),"-")) -> - | AC113: =IFERROR(SUBSTITUTE(VLOOKUP($U113,tblBioDiversity,6,0),"/"," / "),"") ->  | AE113: =IFERROR(AA113*S113,"") ->  | AX113: Inland rock | AY113: Calaminarian grasslands
AT114: Parkland - public open spaces (amenity grassland etc.) | AX114: Grassland | AY114: Lowland calcareous grassland
AA115: - | AT115: * Categories above need to be consistent with existing landuse categories from other tools. | AX115: Heathland | AY115: Lowland heathland
AT116: Parkland - public open spaces (amenity grassland etc.) | AX116: Grassland | AY116: Lowland calcareous grassland
AA117: - | AX117: Heathland | AY117: Mountain heaths and willow scrub
AT118: Parkland - public open spaces (amenity grassland etc.) | AX118: Grassland | AY118: Lowland calcareous grassland
AA119: - | AT119: ** Need to allocate a weighting to overall biodiversity scores, based on existing landuse and therefore context with surrounding land e.g. creating a pond, or green roof in an area otherwise devoid of all habitat could be 'valued' higher than similar measures within a parkland where there is existing habitat. This is linked to habitat connectivity. | AX119: Heathland | AY119: Upland heathland
AT120: Parkland - public open spaces (amenity grassland etc.) | AX120: Grassland | AY120: Lowland calcareous grassland
AA121: - | AX121: Inland rock | AY121: Calaminarian grasslands
AT122: Parkland - public open spaces (amenity grassland etc.) | AX122: Grassland | AY122: Lowland calcareous grassland
AA123: - | AT123: * Categories above need to be consistent with existing landuse categories from other tools. | AX123: Heathland | AY123: Lowland heathland
AT124: Parkland - public open spaces (amenity grassland etc.) | AX124: Grassland | AY124: Lowland calcareous grassland
AA125: - | AX125: Heathland | AY125: Mountain heaths and willow scrub
AT126: Parkland - public open spaces (amenity grassland etc.) | AX126: Grassland | AY126: Lowland calcareous grassland
AA127: - | AT127: ** Need to allocate a weighting to overall biodiversity scores, based on existing landuse and therefore context with surrounding land e.g. creating a pond, or green roof in an area otherwise devoid of all habitat could be 'valued' higher than similar measures within a parkland where there is existing habitat. This is linked to habitat connectivity. | AX127: Heathland | AY127: Upland heathland
AT128: Parkland - public open spaces (amenity grassland etc.) | AX128: Grassland | AY128: Lowland calcareous grassland
AA129: - | AX129: Inland rock | AY129: Calaminarian grasslands
AT130: Parkland - public open spaces (amenity grassland etc.) | AX130: Grassland | AY130: Lowland calcareous grassland
AA131: - | AT131: * Categories above need to be consistent with existing landuse categories from other tools. | AX131: Inland rock | AY131: Inland rock outcrop and scree habitats
AT132: Parkland - public open spaces (amenity grassland etc.) | AX132: Grassland | AY132: Lowland calcareous grassland
AA133: - | AX133: Inland rock | AY133: Limestone pavements
AT134: Parkland - public open spaces (amenity grassland etc.) | AX134: Grassland | AY134: Lowland calcareous grassland
AA135: - | AT135: ** Need to allocate a weighting to overall biodiversity scores, based on existing landuse and therefore context with surrounding land e.g. creating a pond, or green roof in an area otherwise devoid of all habitat could be 'valued' higher than similar measures within a parkland where there is existing habitat. This is linked to habitat connectivity. | AX135: Inland rock | AY135: Open mosaic habitats on previously developed land
AT136: Parkland - public open spaces (amenity grassland etc.) | AX136: Grassland | AY136: Lowland calcareous grassland
AA137: - | AX137: Marine | AY137: Blue mussel beds
AT138: Parkland - public open spaces (amenity grassland etc.) | AX138: Grassland | AY138: Lowland calcareous grassland
AA139: - | AX139: Marine | AY139: Estuarine rocky habitats
AC140: TOTAL | AE140: =SUM(AE113:AE139) -> 0 | AT140: Habitat quality | AU140: Definition (subjective assessment, based on professional judgement) | AX140: Marine | AY140: Fragile sponge and anthozoan communities on subtidal rocky habitats
AX141: Marine | AY141: Horse mussel beds
AX142: Marine | AY142: Intertidal boulder communities
C143: Proposed option | E143: ='Project Data'!$D$24 -> Highway runoff diverted into SuDS across the catchment through swales and pipes. Storage in detention basin/online pond and geocellular. Raingardens and water butts used on private properties. | W143: Enter user defined value OR select value (not both) | AX143: Marine | AY143: Intertidal chalk
AT144: Parkland - public open spaces (amenity grassland etc.) | AX144: Grassland | AY144: Lowland calcareous grassland
C145: Location (describe or reference from map) | E145: Land use | G145: Designated status | I145: Dominant habitat type (habitats of principal importance) | K145: Dominant habitat type (other, locally important) | M145: Quality of habitat | O145: Habitat connectivity | Q145: Additional information * | S145: Enter the quantity (to match the monetary value units) | U145: Select appropriate monetary value description (or enter user defined) | W145: User defined value if available | Y145: Select low, average or high monetary value | AA145: Enter Monetary Value (or enter user defined) | AC145: Units | AE145: Annual Value £ | AX145: Marine | AY145: Maërl beds
AT146: Parkland - public open spaces (amenity grassland etc.) | AX146: Grassland | AY146: Lowland calcareous grassland
AA147: =IF(ISNUMBER($W147),$W147,IFERROR(VLOOKUP($U147,tblBioDiversity,HLOOKUP($Y147,tblBDGrade,2,0),0),"-")) -> - | AC147: =IFERROR(SUBSTITUTE(VLOOKUP($U147,tblBioDiversity,6,0),"/"," / "),"") ->  | AE147: =IFERROR(AA147*S147,"") ->  | AX147: Marine | AY147: Mud habitats in deep water
AT148: Parkland - public open spaces (amenity grassland etc.) | AX148: Grassland | AY148: Lowland calcareous grassland
AA149: =IF(ISNUMBER($W149),$W149,IFERROR(VLOOKUP($U149,tblBioDiversity,HLOOKUP($Y149,tblBDGrade,2,0),0),"-")) -> - | AX149: Marine | AY149: Peat and clay exposures
AT150: Parkland - public open spaces (amenity grassland etc.) | AX150: Grassland | AY150: Lowland calcareous grassland
AA151: - | AX151: Marine | AY151: Sabellaria alveolata reefs
AT152: Parkland - public open spaces (amenity grassland etc.) | AX152: Grassland | AY152: Lowland calcareous grassland
AA153: - | AX153: Marine | AY153: Sabellaria spinulosa reefs
AT154: Parkland - public open spaces (amenity grassland etc.) | AX154: Grassland | AY154: Lowland calcareous grassland
AA155: - | AX155: Marine | AY155: Seagrass beds
AT156: Parkland - public open spaces (amenity grassland etc.) | AX156: Grassland | AY156: Lowland calcareous grassland
AA157: - | AX157: Marine | AY157: Sheltered muddy gravels
AT158: Parkland - public open spaces (amenity grassland etc.) | AX158: Grassland | AY158: Lowland calcareous grassland
AA159: - | AX159: Marine | AY159: Subtidal chalk
AT160: Parkland - public open spaces (amenity grassland etc.) | AX160: Grassland | AY160: Lowland calcareous grassland
AA161: - | AX161: Marine | AY161: Subtidal sands and gravels
AT162: Parkland - public open spaces (amenity grassland etc.) | AX162: Grassland | AY162: Lowland calcareous grassland
AA163: - | AX163: Marine | AY163: Tide-swept channels
AT164: Parkland - public open spaces (amenity grassland etc.) | AX164: Grassland | AY164: Lowland calcareous grassland
AA165: - | AX165: Wetland | AY165: Blanket bog
AT166: Parkland - public open spaces (amenity grassland etc.) | AX166: Grassland | AY166: Lowland calcareous grassland
AA167: - | AX167: Wetland | AY167: Coastal and floodplain grazing marsh
AT168: Parkland - public open spaces (amenity grassland etc.) | AX168: Grassland | AY168: Lowland calcareous grassland
AA169: - | AX169: Wetland | AY169: Lowland fens
AT170: Parkland - public open spaces (amenity grassland etc.) | AX170: Grassland | AY170: Lowland calcareous grassland
AA171: - | AX171: Wetland | AY171: Lowland raised bog
AT172: Parkland - public open spaces (amenity grassland etc.) | AX172: Grassland | AY172: Lowland calcareous grassland
AA173: - | AX173: Wetland | AY173: Reedbeds
AT174: Parkland - public open spaces (amenity grassland etc.) | AX174: Grassland | AY174: Lowland calcareous grassland
AC175: TOTAL | AE175: =SUM(AE147:AE173) -> 0 | AX175: Wetland | AY175: Upland flushes, fens and swamps
AT176: Parkland - public open spaces (amenity grassland etc.) | AX176: Grassland | AY176: Lowland calcareous grassland
U177: Comparative Annual Value of the SuDS Proposed | AE177: =AE175-AE140 -> 0 | AX177: Woodland | AY177: Upland mixed ashwoods
AX178: Woodland | AY178: Upland oakwood
AX179: Woodland | AY179: Wet woodland
AT180: High - Botanically rich or provides excellent potential habitat for range of species | AX180: Woodland | AY180: Wood-pasture and parkland
E181: Confirm the start and end year of the evaluation | M181: Confirm the confidence you have in the calculation method and valuation | AT181: Medium - Provides good potential habitat for range of species.
AT182: Parkland - public open spaces (amenity grassland etc.) | AX182: Grassland | AY182: Lowland calcareous grassland
E183: Start | G183: End | K183: Present value damage before certainty confidence applied | M183: Quantity | O183: Monetary | Q183: Present value damage after certainty / confidence applied | AT183: Low - Botanically poor (e.g. monoculture grassland) or provides poor potential habitat for range of species
AT184: Parkland - public open spaces (amenity grassland etc.) | AX184: Grassland | AY184: Lowland calcareous grassland
K185: =IFERROR(('Present Value Calcs'!BL13),"0") -> 0 | Q185: =K185*M185*O185 -> 0
AT186: Note - no standard categories readily available, as definition of habitat quality will vary depending on habitat type.
AT188: Guidance to provide brief explanation of each category & provide photo examples . Need to ensure guidance stresses need for professional ecological judgement for defining habitat quality.
AT192: Habitat connectivity
AT193: Excellent - (unmanaged green space) - connected to other habitats via ditches, hedges, grass verges, gardens
AT194: Good - (managed green space) - connected to other habitats via heavily managed grass verges, amenity grassland etc.)
AT195: Poor - surrounded by hard-standing areas (concrete, paths, roads). No 'green space' present.
AT197: Note - no standard categories readily available. To reduce subjectiveness, this requires clear definition.
AT199: Guidance to provide brief explanation of each category & provide photo examples .
BC201: 2018 VALUES
BC203: Select location | BD203: Value automatically populated
BC204: Arable margins | BD204: =ValuesLibrary!K69 -> 15.10594089
BC205: Blanket bog | BD205: =ValuesLibrary!K70 -> 309.2834081
BC206: Hedgerows | BD206: =ValuesLibrary!K71 -> 119.5904021
AU207: Suggested values (2013 prices) | BC207: Limestone pavement | BD207: =ValuesLibrary!K72 -> 155.7199698
AT208: Evaluation description | AU208: Low | AV208: Central / Average | AW208: High | AX208: Units | BC208: Low calc grassland | BD208: =ValuesLibrary!K73 -> 24.37596009
AS209: 6 | AT209: Inland marsh or similar | AU209: =ValuesLibrary!J260 -> 0 | AV209: =ValuesLibrary!K260 -> 5.087792947 | AW209: =ValuesLibrary!L260 -> High not defined | AX209: £/ha/year | BC209: Low dry acid grass | BD209: =ValuesLibrary!K74 -> 6.387830212
AT210: Woodlands/wetlands or similar | AU210: n/a | AV210: =ValuesLibrary!F121 -> 0 | AW210: n/a | AX210: £/ha/household/yr | BC210: Lowland heath | BD210: =ValuesLibrary!K75 -> 194.4353311
AT211: All habitats | AU211: n/a | AV211: =ValuesLibrary!F35 -> 0 | AW211: n/a | AX211: £/ha/year | BC211: Low hay meadow | BD211: =ValuesLibrary!K76 -> 98.53611373
BC212: Purple moor, grass | BD212: =ValuesLibrary!K77 -> 256.6579077
BC213: Upland calc grass | BD213: =ValuesLibrary!K78 -> 59.71854709
BC214: Upland hay meadow | BD214: =ValuesLibrary!K79 -> 37.48889795
BC215: Upland heath | BD215: =ValuesLibrary!K80 -> 166.5843914
BC216: Coastal floodplain | BD216: =ValuesLibrary!K81 -> 240.4379292
BC217: Fens | BD217: =ValuesLibrary!K82 -> 26.71646108
BC218: Lowland raised bog | BD218: =ValuesLibrary!K83 -> 59.20752067
O219: Enter the area or number of measures | BC219: Wet reed beds | BD219: =ValuesLibrary!K84 -> 168.6898203
BC220: Native woodland | BD220: =ValuesLibrary!K85 -> 274.5438323
BC221: Arable fields | BD221: =ValuesLibrary!K86 -> 2.473367858
BC222: Improved grassland | BD222: =ValuesLibrary!K87 -> 37.14139999
BC223: User defined 1 | BD223: =ValuesLibrary!M88 -> User to define
BC224: User defined 2 | BD224: =ValuesLibrary!M89 -> User to define
BC225: User defined 3 | BD225: =ValuesLibrary!M90 -> User to define
AT226: Inland marsh or similar
AT227: Inland marsh or similar
AT228: Inland marsh or similar
O238: Enter the area or number of measures

Sheet BT - Building Temperature (hidden)
S1: Building temperature | AC1: >>HIDE_ALONG | AE1: <<ROWHEIGHTKEY>>
B2: =ProjDetails -> PROJECT DETAILS - Name: Roundhay Park SuDS Scheme , Assmt. Version: 1, Date: Feb 2019.
B6: Evidence: Qualitative summary and written evidence
B7: 1 | C7: =IF('Screening Questions'!M12<=0,"Summary from screening questions",'Screening Questions'!M12) -> Summary from screening questions | AE7: <<ROW_ALT>>
B8: 2 | AE8: <<ROW_ALT>>
B9: 3 | AE9: <<ROW_ALT>>
B10: 4 | AE10: <<ROW_ALT>>
B11: 5 | AE11: <<ROW_ALT>>
C13: Notes
C14: Overview of the sections to help choose which section to assess the potential impact on buildings
C15: Only complete one section.
C16: The expected impact from green roofs will only occur under a SuDS scenario, therefore no scenarios are shown for section BT1 and BT2.
D18: SECTION BT1 | F18: SECTION BT2
D19: If you have know the annual energy savings for heating and cooling, then enter the values in this section | F19: Use this section if you need to estimate the impact of green roofs on buildings
B22: SECTION BT1 - Benefits of green roofs on buildings
C24: Notes
C25: If you have calculated the energy savings to buildings from green roofs for heating and cooling, please enter the information here
F27: Confirm the confidence you have in the calculation method and valuation | N27: Confirm the start and end year of the evaluation
D29: Energy saving to buildings through installing green roofs (Kw/year) for heating and cooling | F29: Quantity | H29: Valuation (£) | J29: Proportion (%) of properties heated through electricity | L29: Proportion (%) of properties heated through gas | N29: Start | P29: End | AC29: 1 square foot = x square metre
AC31: 0.09290304
F33: Properties using electricity | J33: Properties using gas
D35: Traded Carbon | F35: Energy Type | H35: Energy Rate | J35: Energy Type | L35: Energy Rate | N35: Discount rate | AC35: 11.34 sqft | AD35: =AC31*11.34/1.8 -> 0.585289152 | AE35: co-efficient for m2
N37: ='Project Data'!D34 -> 0.035
AC38: 23.4 sqft | AD38: =AC31*23.4/1.8 -> 1.20773952 | AE38: co-efficient for m2
H40: Estimated present value before confidence scores | J40: Estimated present value after confidence scores | AC40: 1 kw = 3412 Btu
D42: Energy savings through electricity | H42: ='Present Value Calcs'!Y13 -> 0 | J42: =H42*$F$31*$H$31 -> 0
D44: Energy savings through gas | H44: ='Present Value Calcs'!AC13 -> 0 | J44: =H44*$F$31*$H$31 -> 0
D46: Carbon Savings through not generating energy over evaluation period | H46: ='Present Value Calcs'!AA13 -> 0 | J46: =H46*$F$31*$H$31 -> 0
D48: Carbon Savings through not generating gas over evaluation period | H48: ='Present Value Calcs'!AE13 -> 0 | J48: =H48*$F$31*$H$31 -> 0
B52: SECTION BT2
C54: Notes
C55: Use this section to estimate the present value benefit of installing green roofs for cooling and heating if you have not undertaken this calculation. Daily heating and cooling days can be found from 77 UK Weather Stations
C56: http://www.eci.ox.ac.uk/research/energy/degreedays.php
C61: Input data for green roofs
D63: Green Roof Size for all buildings (m2)
D65: Green Roof Size for buildings using air conditioning (m2) | N65: Confirm the start and end year of the evaluation
D67: Annual number of heating degree days (Degrees Celsius) | N67: Start | P67: End
D69: Annual number of cooling degree days (if air conditioning is used) (Degrees Celsius)
C71: Energy saving through heating
F73: Confirm the confidence you have in the calculation method and valuation
D75: Energy saving to buildings through installing green roofs for heating (Kwh) | F75: Quantity | H75: Valuation (£) | J75: Proportion (%) of properties heated through electricity | L75: Proportion (%) of properties heated through gas
D77: =J63*((J67*24/AD35)-(J67*24/AD38))/3412.142 -> 0
F79: Properties using electricity | J79: Properties using gas
D81: Traded Carbon | F81: Energy Type | H81: Energy Rate | J81: Energy Type | L81: Energy Rate
H86: Estimated present value before confidence scores | J86: Estimated present value after confidence scores
D88: Energy savings through electricity | H88: ='Present Value Calcs'!Q13 -> 0 | J88: =H88*$F$77*$H$77 -> 0
D90: Energy savings through gas | H90: ='Present Value Calcs'!U13 -> 0 | J90: =H90*$F$77*$H$77 -> 0
D92: Carbon Savings through not generating electricity over evaluation period | H92: ='Present Value Calcs'!S13 -> 0 | J92: =H92*$F$77*$H$77 -> 0
D94: Carbon Savings through not generating gas over evaluation period | H94: ='Present Value Calcs'!W13 -> 0 | J94: =H94*$F$77*$H$77 -> 0
C97: Energy saving through cooling
F99: Confirm the confidence you have in the calculation method and valuation
D101: Energy saving to buildings through installing green roofs for cooling (kwh) | F101: Quantity | H101: Valuation (£)
D103: =(J65*((J69*24/AD35)-(J69*24/AD38)))/3412.142 -> 0
D105: Traded Carbon | F105: Energy Type | H105: Energy Rate
H110: Estimated present value before confidence scores | J110: Estimated present value after confidence scores
D112: Energy savings | H112: ='Present Value Calcs'!M13 -> 0 | J112: =H112*$F$103*$H$103 -> 0
D114: Carbon Savings through not generating energy over evaluation period | H114: ='Present Value Calcs'!O13 -> 0 | J114: =H114*$F$103*$H$103 -> 0
A117: >>HIDE_BELOW
B121: Benefits of trees to buildings | F121: Under development
C123: If you have calculated the energy savings to buildings from trees planted in specific locations for heating and cooling, please enter the information here
F125: Confirm the confidence you have in the calculation method and valuation | J125: Confirm the start and end year of the evaluation
D126: Energy saving to buildings through planting trees (Kw/year) for heating and cooling | F126: Quantity | H126: Valuation (£) | J126: Start | L126: End
D127: insert value
D129: Energy Type | F129: Energy Rate | H129: Discount rate
D130: Services | F130: High | H130: ='Project Data'!$D$34 -> 0.035
H133: Estimated present value before confidence scores | J133: Estimated present value after confidence scores
D134: Energy savings | H134: auto calc | J134: auto calc
D135: Carbon Savings through not generating energy over evaluation period | H135: Auto calculate | J135: Auto calculate
F145: Average for BT2
F146: Quantity | H146: Valuation (£)
F148: =IFERROR(AVERAGE(F103,F77),0) -> 0 | H148: =IFERROR(AVERAGE(H103,H77),0) -> 0

Sheet CS - Carbon sequestration (hidden)
T1: Carbon sequestration | W1: >>HIDE_ALONG | AE1: <<ROWHEIGHTKEY>>
B2: =ProjDetails -> PROJECT DETAILS - Name: Roundhay Park SuDS Scheme , Assmt. Version: 1, Date: Feb 2019.
B6: Evidence: Qualitative summary and written evidence
B7: 1 | C7: =IF('Screening Questions'!M14<=0,"Summary from screening questions",'Screening Questions'!M14) -> Summary from screening questions | AE7: <<ROW_ALT>>
B8: 2 | AE8: <<ROW_ALT>>
B9: 3 | AE9: <<ROW_ALT>>
B10: 4 | AE10: <<ROW_ALT>>
B11: 5 | AE11: <<ROW_ALT>>
C13: Notes
C14: Overview of the sections to help assess the sequestered carbon value
C15: Only complete one section.
C16: Trees should be planted for a long time period. New trees only, not as part of a like for like replacement strategy.
D18: SECTION CS1 | F18: SECTION CS2 | J18: SECTION CS3 | N18: Section CS4
D19: You have undertaken an independent or more detailed assessment of carbon sequestration as a result of planting | F19: You require support to assess the carbon sequestration from trees planted as part of the scheme | J19: You require support to assess the carbon sequestration from restoring flood plains | N19: You have assessed the amount of carbon for woodlands (e.g. using the Forestry Commission Woodlands Carbon CO2DE Calculator) and wish to estimate the monetised value
B22: SECTION CS1
C24: Notes
C25: If you have calculated the sequestered carbon as a present value, enter it here. This should be the difference between the two options.
C26: We recommend using 100% for the confidence in the price of carbon (valuation).
F28: Confirm the confidence you have in the calculation method and valuation | N28: Confirm the start and end year of the evaluation
AY29: 9 | AZ29: =BA$93+$AY29-1 -> 8 | BA29: =IF($AY29<=VLOOKUP(BB$90,seqYearsCarbon,2,0),(((VLOOKUP(BB$90,seqEqns,2,0)*$AY29^4)+(VLOOKUP(BB$90,seqEqns,3,0)*$AY29^3)+(VLOOKUP(BB$90,seqEqns,4,0)*$AY29^2)+(VLOOKUP(BB$90,seqEqns,5,0)*$AY29))*(VLOOKUP(BB$90,seqTrees,2,0)/100)),(VLOOKUP(BB$90,seqYearsCarbon,4,0)*VLOOKUP(BB$90,seqTrees,2,0)/100)) ->  | BB29: =BB28+BA29 ->  | BC29: =(BA29/1000)*BE29*BF29 ->  | BD29: =BC29+BD28 ->  | BE29: =VLOOKUP(AZ29,discYears,2,0) ->  | BF29: =SUMPRODUCT((cNonTradeLevels=$AR$68)*(cNonTradeYears=AZ29)*(cNonTrade)) -> 0 | BH29: =BI$93+$AY29-1 -> 8 | BI29: =IF($AY29<=VLOOKUP(BJ$90,seqYearsCarbon,2,0),(((VLOOKUP(BJ$90,seqEqns,2,0)*$AY29^4)+(VLOOKUP(BJ$90,seqEqns,3,0)*$AY29^3)+(VLOOKUP(BJ$90,seqEqns,4,0)*$AY29^2)+(VLOOKUP(BJ$90,seqEqns,5,0)*$AY29))*(VLOOKUP(BJ$90,seqTrees,2,0)/100)),(VLOOKUP(BJ$90,seqYearsCarbon,4,0)*VLOOKUP(BJ$90,seqTrees,2,0)/100)) ->  | BJ29: =BJ28+BI29 ->  | BK29: =(BI29/1000)*BM29*BN29 ->  | BL29: =BK29+BL28 ->  | BM29: =VLOOKUP(BH29,discYears,2,0) ->  | BN29: =SUMPRODUCT((cNonTradeLevels=$AR$68)*(cNonTradeYears=BH29)*(cNonTrade)) -> 0 | BP29: =BQ$93+$AY29-1 -> 8 | BQ29: =IF($AY29<=VLOOKUP(BR$90,seqYearsCarbon,2,0),(((VLOOKUP(BR$90,seqEqns,2,0)*$AY29^4)+(VLOOKUP(BR$90,seqEqns,3,0)*$AY29^3)+(VLOOKUP(BR$90,seqEqns,4,0)*$AY29^2)+(VLOOKUP(BR$90,seqEqns,5,0)*$AY29))*(VLOOKUP(BR$90,seqTrees,2,0)/100)),(VLOOKUP(BR$90,seqYearsCarbon,4,0)*VLOOKUP(BR$90,seqTrees,2,0)/100)) ->  | BR29: =BR28+BQ29 ->  | BS29: =(BQ29/1000)*BU29*BV29 ->  | BT29: =BS29+BT28 ->  | BU29: =VLOOKUP(BP29,discYears,2,0) ->  | BV29: =SUMPRODUCT((cNonTradeLevels=$AR$68)*(cNonTradeYears=BP29)*(cNonTrade)) -> 0 | BX29: =BY$93+$AY29-1 -> 8 | BY29: =IF($AY29<=VLOOKUP(BZ$90,seqYearsCarbon,2,0),(((VLOOKUP(BZ$90,seqEqns,2,0)*$AY29^4)+(VLOOKUP(BZ$90,seqEqns,3,0)*$AY29^3)+(VLOOKUP(BZ$90,seqEqns,4,0)*$AY29^2)+(VLOOKUP(BZ$90,seqEqns,5,0)*$AY29))*(VLOOKUP(BZ$90,seqTrees,2,0)/100)),(VLOOKUP(BZ$90,seqYearsCarbon,4,0)*VLOOKUP(BZ$90,seqTrees,2,0)/100)) ->  | BZ29: =BZ28+BY29 ->  | CA29: =(BY29/1000)*CC29*CD29 ->  | CB29: =CA29+CB28 ->  | CC29: =VLOOKUP(BX29,discYears,2,0) ->  | CD29: =SUMPRODUCT((cNonTradeLevels=$AR$68)*(cNonTradeYears=BX29)*(cNonTrade)) -> 0 | CF29: =CG$93+$AY29-1 -> 8 | CG29: =IF($AY29<=VLOOKUP(CH$90,seqYearsCarbon,2,0),(((VLOOKUP(CH$90,seqEqns,2,0)*$AY29^4)+(VLOOKUP(CH$90,seqEqns,3,0)*$AY29^3)+(VLOOKUP(CH$90,seqEqns,4,0)*$AY29^2)+(VLOOKUP(CH$90,seqEqns,5,0)*$AY29))*(VLOOKUP(CH$90,seqTrees,2,0)/100)),(VLOOKUP(CH$90,seqYearsCarbon,4,0)*VLOOKUP(CH$90,seqTrees,2,0)/100)) ->  | CH29: =CH28+CG29 ->  | CI29: =(CG29/1000)*CK29*CL29 ->  | CJ29: =CI29+CJ28 ->  | CK29: =VLOOKUP(CF29,discYears,2,0) ->  | CL29: =SUMPRODUCT((cNonTradeLevels=$AR$68)*(cNonTradeYears=CF29)*(cNonTrade)) -> 0
D30: Confirm the present value of the benefit £ | F30: Quantity | H30: Valuation (£) | J30: Present benefit after applying the confidence values | N30: Start | P30: End
AY31: 9 | AZ31: =BA$93+$AY31-1 -> 8 | BA31: =IF($AY31<=VLOOKUP(BB$90,seqYearsCarbon,2,0),(((VLOOKUP(BB$90,seqEqns,2,0)*$AY31^4)+(VLOOKUP(BB$90,seqEqns,3,0)*$AY31^3)+(VLOOKUP(BB$90,seqEqns,4,0)*$AY31^2)+(VLOOKUP(BB$90,seqEqns,5,0)*$AY31))*(VLOOKUP(BB$90,seqTrees,2,0)/100)),(VLOOKUP(BB$90,seqYearsCarbon,4,0)*VLOOKUP(BB$90,seqTrees,2,0)/100)) ->  | BB31: =BB30+BA31 ->  | BC31: =(BA31/1000)*BE31*BF31 ->  | BD31: =BC31+BD30 ->  | BE31: =VLOOKUP(AZ31,discYears,2,0) ->  | BF31: =SUMPRODUCT((cNonTradeLevels=$AR$68)*(cNonTradeYears=AZ31)*(cNonTrade)) -> 0 | BH31: =BI$93+$AY31-1 -> 8 | BI31: =IF($AY31<=VLOOKUP(BJ$90,seqYearsCarbon,2,0),(((VLOOKUP(BJ$90,seqEqns,2,0)*$AY31^4)+(VLOOKUP(BJ$90,seqEqns,3,0)*$AY31^3)+(VLOOKUP(BJ$90,seqEqns,4,0)*$AY31^2)+(VLOOKUP(BJ$90,seqEqns,5,0)*$AY31))*(VLOOKUP(BJ$90,seqTrees,2,0)/100)),(VLOOKUP(BJ$90,seqYearsCarbon,4,0)*VLOOKUP(BJ$90,seqTrees,2,0)/100)) ->  | BJ31: =BJ30+BI31 ->  | BK31: =(BI31/1000)*BM31*BN31 ->  | BL31: =BK31+BL30 ->  | BM31: =VLOOKUP(BH31,discYears,2,0) ->  | BN31: =SUMPRODUCT((cNonTradeLevels=$AR$68)*(cNonTradeYears=BH31)*(cNonTrade)) -> 0 | BP31: =BQ$93+$AY31-1 -> 8 | BQ31: =IF($AY31<=VLOOKUP(BR$90,seqYearsCarbon,2,0),(((VLOOKUP(BR$90,seqEqns,2,0)*$AY31^4)+(VLOOKUP(BR$90,seqEqns,3,0)*$AY31^3)+(VLOOKUP(BR$90,seqEqns,4,0)*$AY31^2)+(VLOOKUP(BR$90,seqEqns,5,0)*$AY31))*(VLOOKUP(BR$90,seqTrees,2,0)/100)),(VLOOKUP(BR$90,seqYearsCarbon,4,0)*VLOOKUP(BR$90,seqTrees,2,0)/100)) ->  | BR31: =BR30+BQ31 ->  | BS31: =(BQ31/1000)*BU31*BV31 ->  | BT31: =BS31+BT30 ->  | BU31: =VLOOKUP(BP31,discYears,2,0) ->  | BV31: =SUMPRODUCT((cNonTradeLevels=$AR$68)*(cNonTradeYears=BP31)*(cNonTrade)) -> 0 | BX31: =BY$93+$AY31-1 -> 8 | BY31: =IF($AY31<=VLOOKUP(BZ$90,seqYearsCarbon,2,0),(((VLOOKUP(BZ$90,seqEqns,2,0)*$AY31^4)+(VLOOKUP(BZ$90,seqEqns,3,0)*$AY31^3)+(VLOOKUP(BZ$90,seqEqns,4,0)*$AY31^2)+(VLOOKUP(BZ$90,seqEqns,5,0)*$AY31))*(VLOOKUP(BZ$90,seqTrees,2,0)/100)),(VLOOKUP(BZ$90,seqYearsCarbon,4,0)*VLOOKUP(BZ$90,seqTrees,2,0)/100)) ->  | BZ31: =BZ30+BY31 ->  | CA31: =(BY31/1000)*CC31*CD31 ->  | CB31: =CA31+CB30 ->  | CC31: =VLOOKUP(BX31,discYears,2,0) ->  | CD31: =SUMPRODUCT((cNonTradeLevels=$AR$68)*(cNonTradeYears=BX31)*(cNonTrade)) -> 0 | CF31: =CG$93+$AY31-1 -> 8 | CG31: =IF($AY31<=VLOOKUP(CH$90,seqYearsCarbon,2,0),(((VLOOKUP(CH$90,seqEqns,2,0)*$AY31^4)+(VLOOKUP(CH$90,seqEqns,3,0)*$AY31^3)+(VLOOKUP(CH$90,seqEqns,4,0)*$AY31^2)+(VLOOKUP(CH$90,seqEqns,5,0)*$AY31))*(VLOOKUP(CH$90,seqTrees,2,0)/100)),(VLOOKUP(CH$90,seqYearsCarbon,4,0)*VLOOKUP(CH$90,seqTrees,2,0)/100)) ->  | CH31: =CH30+CG31 ->  | CI31: =(CG31/1000)*CK31*CL31 ->  | CJ31: =CI31+CJ30 ->  | CK31: =VLOOKUP(CF31,discYears,2,0) ->  | CL31: =SUMPRODUCT((cNonTradeLevels=$AR$68)*(cNonTradeYears=CF31)*(cNonTrade)) -> 0
J32: =H32*F32*D32 -> 0
B36: SECTION CS2
C38: Notes:
C39: Carbon sequestered is estimated using values from the SMUD Tree Benefits Estimator https://usage.smud.org/treebenefit/calculate.aspx
C40: When using this estimation we suggest a confidence value of 50% for the quantity to account for tree mortality and the simplified approach and 100% for the price of carbon
P43: Confirm the confidence you have in the calculation method and valuation
D45: Type of Trees | F45: Number of trees planted | H45: Start Year for life of tree | J45: Finish Year for life of tree | L45: Total Carbon Sequestered (tonnes) | N45: Present Value of Carbon £ | P45: Quantity | R45: Valuation (£)
D47: Deciduous - Small | L47: =AU85 -> 0 | N47: =AV85 -> 0
D49: Deciduous - Medium | L49: =AU86 -> 0 | N49: =AV86 -> 0
D51: Deciduous - Large | L51: =AU87 -> 0 | N51: =AV87 -> 0
D53: Conifer | L53: =AU88 -> 0 | N53: =AV88 -> 0
F55: Non-traded Carbon | H55: Estimated present value before confidence scores | J55: Estimated present value after confidence scores
H57: =SUM(N47:N53) -> 0 | J57: =SUMPRODUCT(N47:N53,P47:P53,R47:R53) -> 0
P59: Average confidence score
H61: Average start year | J61: Average Finish Year | L61: for the summary of outputs | P61: Quantity | R61: Valuation (£) | S61: for the summary of outputs
H63: =IFERROR((AVERAGE(H47:H53)),"0") -> 0 | J63: =IFERROR((AVERAGE(J47:J53)),"0") -> 0 | P63: =IFERROR((AVERAGE(P47:P53)),"0") -> 0 | R63: =IFERROR((AVERAGE(R47:R53)),"0") -> 0
AT64: 367
AT65: 5525
AT66: 10929
AT67: 11646
B68: SECTION CS3 | AQ68: Traded Carbon | AR68: =F57 -> 0 | AT68: 11560
AQ69: seqYearsCarbon
C70: Notes | AQ70: Type of Trees | AR70: max year - after that it is fixed | AS70: Carbon | AT70: > max year use max value | AU70: up to yr | AW70: .
C71: Use this section to estimate the value of carbon stored within restored flood plains | AQ71: Deciduous - Small | AR71: 60 | AT71: 0 | AU71: 60 | AW71: .
C72: We recommend using 100% for the confidence in the price of carbon (valuation). | AQ72: Deciduous - Medium | AR72: 60 | AT72: 0 | AU72: 80 | AW72: .
AQ73: Deciduous - Large | AR73: 60 | AT73: 0 | AU73: 100 | AV73: amended to be 0.00067 rather than 0.0007 | AW73: .
J74: Confirm the confidence you have in the calculation method and valuation | AQ74: Broadleaf Evergreen - Large | AR74: 60 | AT74: 0 | AU74: 100 | AW74: .
AQ75: Confier - Large | AR75: 60 | AT75: 0 | AU75: 100 | AW75: .
B76: Option description | F76: Size of flood plain restoration (ha) | H76: Traded Carbon | J76: Quantity | L76: Valuation (£) | N76: Confirm the start and end year of the evaluation | R76: Present value before confidence applied | T76: Present value after confidence applied | AW76: .
N78: Start | P78: End
B80: Proposed option | D80: ='Project Data'!$D$24 -> Highway runoff diverted into SuDS across the catchment through swales and pipes. Storage in detention basin/online pond and geocellular. Raingardens and water butts used on private properties. | R80: ='Present Value Calcs'!DK13 -> 0 | T80: =R80*L80*J80 -> 0
AW83: .
AQ84: seqTrees | AR84: Number of trees | AS84: Start Year | AT84: Finish Year | AU84: Total Carbon Sequested (tonnes) | AV84: Present Value of Carbon £ | AW84: Main | AX84: seqCarb | AY84: pvCarb
AQ85: Deciduous - Small | AR85: =F47 -> 0 | AS85: =H47 -> 0 | AT85: =J47 -> 0 | AU85: =VLOOKUP(AT85,OFFSET($AZ$93,0,AW85,100,AX85-AW85+1),AX85-AW85,0)*AR85 -> 0 | AV85: =IFERROR((VLOOKUP(AT85,OFFSET($AZ$93,0,AW85,100,AY85-AW85+1),AY85-AW85+1,0)),"0") -> 0 | AW85: =MATCH(AW$84&$AQ85,$BA$88:$CM$88,0) -> 1 | AX85: 3 | AY85: 5
AQ86: Deciduous - Medium | AR86: =F49 -> 0 | AS86: =H49 -> 0 | AT86: =J49 -> 0 | AU86: =VLOOKUP(AT86,OFFSET($AZ$93,0,AW86,100,AX86-AW86+1),AX86-AW86,0)*AR86 -> 0 | AV86: =IFERROR((VLOOKUP(AT86,OFFSET($AZ$93,0,AW86,100,AY86-AW86+1),AY86-AW86+1,0)),"0") -> 0 | AW86: 9 | AX86: 11 | AY86: 13
B87: SECTION CS4 | AQ87: Deciduous - Large | AR87: =F51 -> 0 | AS87: =H51 -> 0 | AT87: =J51 -> 0 | AU87: =VLOOKUP(AT87,OFFSET($AZ$93,0,AW87,100,AX87-AW87+1),AX87-AW87,0)*AR87 -> 0 | AV87: =IFERROR((VLOOKUP(AT87,OFFSET($AZ$93,0,AW87,100,AY87-AW87+1),AY87-AW87+1,0)),"0") -> 0 | AW87: 17 | AX87: 19 | AY87: 21
AQ88: Confier - Large | AR88: =F53 -> 0 | AS88: =H53 -> 0 | AT88: =J53 -> 0 | AU88: =VLOOKUP(AT88,OFFSET($AZ$93,0,AW88,100,AX88-AW88+1),AX88-AW88,0)*AR88 -> 0 | AV88: =IFERROR((VLOOKUP(AT88,OFFSET($AZ$93,0,AW88,100,AY88-AW88+1),AY88-AW88+1,0)),"0") -> 0 | AW88: 25 | AX88: 27 | AY88: 29 | BA88: =BA89&BA90 -> MainDeciduous - Small | BB88: =BB89&BB90 -> Deciduous - Small | BC88: seqCarbDeciduous - Small | BD88: Deciduous - Small | BE88: pvCarbDeciduous - Small | BI88: MainDeciduous - Medium | BJ88: Deciduous - Medium | BK88: seqCarbDeciduous - Medium | BL88: Deciduous - Medium | BM88: pvCarbDeciduous - Medium | BQ88: MainDeciduous - Large | BR88: Deciduous - Large | BS88: seqCarbDeciduous - Large | BT88: Deciduous - Large | BU88: pvCarbDeciduous - Large | BY88: MainConfier - Large | BZ88: Confier - Large | CA88: seqCarbConfier - Large | CB88: Confier - Large | CC88: pvCarbConfier - Large
C89: Notes | BA89: Main | BC89: seqCarb | BE89: pvCarb | BI89: Main | BK89: seqCarb | BM89: pvCarb | BQ89: Main | BS89: seqCarb | BU89: pvCarb | BY89: Main | CA89: seqCarb | CC89: pvCarb
C90: Use this section to estimate the value of carbon stored within woodlands. | BA90: Deciduous - Small | BB90: =BA90 -> Deciduous - Small | BC90: =BB90 -> Deciduous - Small | BD90: =BC90 -> Deciduous - Small | BE90: =BD90 -> Deciduous - Small | BI90: Deciduous - Medium | BJ90: =BI90 -> Deciduous - Medium | BK90: =BJ90 -> Deciduous - Medium | BL90: =BK90 -> Deciduous - Medium | BM90: =BL90 -> Deciduous - Medium | BQ90: Deciduous - Large | BR90: =BQ90 -> Deciduous - Large | BS90: =BR90 -> Deciduous - Large | BT90: =BS90 -> Deciduous - Large | BU90: =BT90 -> Deciduous - Large | BY90: Confier - Large | BZ90: =BY90 -> Confier - Large | CA90: =BZ90 -> Confier - Large | CB90: =CA90 -> Confier - Large | CC90: =CB90 -> Confier - Large
C91: The Forestry Commission Woodlands Carbon CO2DE Calculator can be used to provide tcumulative net carbon values over a time period. | N91: https://www.forestry.gov.uk/forestry/infd-8hut6v
C92: We recommend using 100% for the confidence in the price of carbon (valuation). | AQ92: seqEqns2 | AR92: x | AS92: power | AZ92: Year | BB92: Carbon per year per no trees (kg) (C-Total for 1 tree) | BC92: Cumulative Carbon | BD92: Present value /yr | BE92: Cumulative PV | BJ92: Carbon per year per no trees (kg) | BK92: Cumulative Carbon | BL92: Present value /yr | BM92: Cumulative PV | BR92: Carbon per year per no trees (kg) | BS92: Cumulative Carbon | BT92: Present value /yr | BU92: Cumulative PV | BZ92: Carbon per year per no trees (kg) | CA92: Cumulative Carbon | CB92: Present value /yr | CC92: Cumulative PV
AQ93: Deciduous - Small | AR93: 0.0018 | AS93: 1.5319 | AZ93: 1 | BA93: =VLOOKUP(BA90,$AQ$85:$AS$88,3,0) -> 0 | BB93: =IF($AZ93<=VLOOKUP(BB$90,seqYearsCarbon,2,0),(VLOOKUP(BB$90,seqEqns,2,0)*$AZ93^VLOOKUP(BB$90,seqEqns,3,0)),(VLOOKUP(BB$90,seqYearsCarbon,4,0)*VLOOKUP(BB$90,seqTrees,2,0)/100)) -> 0.0018 | BC93: =BB93*$AR$85 -> 0 | BD93: =BC93*BF93*BG93 -> 0 | BE93: =BD93 -> 0 | BF93: =IFERROR(VLOOKUP(BA93,discYears,2,0),0) -> 0 | BG93: =SUMPRODUCT((cNonTradeLevels=$AR$68)*(cNonTradeYears=BA93)*(cNonTrade)) -> 0 | BI93: =VLOOKUP(BI90,$AQ$85:$AS$88,3,0) -> 0 | BJ93: =IF($AZ93<=VLOOKUP(BJ$90,seqYearsCarbon,2,0),(VLOOKUP(BJ$90,seqEqns,2,0)*$AZ93^VLOOKUP(BJ$90,seqEqns,3,0)),(VLOOKUP(BJ$90,seqYearsCarbon,4,0)*VLOOKUP(BJ$90,seqTrees,2,0)/100)) -> 0.0005 | BK93: =BJ93*$AR$86 -> 0 | BL93: =BK93*BN93*BO93 -> 0 | BM93: =BL93 -> 0 | BN93: =IFERROR(VLOOKUP(BI93,discYears,2,0),0) -> 0 | BO93: =SUMPRODUCT((cNonTradeLevels=$AR$68)*(cNonTradeYears=BI93)*(cNonTrade)) -> 0 | BQ93: =VLOOKUP(BQ90,$AQ$85:$AS$88,3,0) -> 0 | BR93: =IF($AZ93<=VLOOKUP(BR$90,seqYearsCarbon,2,0),(VLOOKUP(BR$90,seqEqns,2,0)*$AZ93^VLOOKUP(BR$90,seqEqns,3,0)),(VLOOKUP(BR$90,seqYearsCarbon,4,0)*VLOOKUP(BR$90,seqTrees,2,0)/100)) -> 0.0007 | BS93: =BR93*$AR$87 -> 0 | BT93: =BS93*BV93*BW93 -> 0 | BU93: =BT93 -> 0 | BV93: =IFERROR(VLOOKUP(BQ93,discYears,2,0),0) -> 0 | BW93: =SUMPRODUCT((cNonTradeLevels=$AR$68)*(cNonTradeYears=BQ93)*(cNonTrade)) -> 0 | BY93: =VLOOKUP(BY90,$AQ$85:$AS$88,3,0) -> 0 | BZ93: =IF($AZ93<=VLOOKUP(BZ$90,seqYearsCarbon,2,0),(VLOOKUP(BZ$90,seqEqns,2,0)*$AZ93^VLOOKUP(BZ$90,seqEqns,3,0)),(VLOOKUP(BZ$90,seqYearsCarbon,4,0)*VLOOKUP(BZ$90,seqTrees,2,0)/100)) -> 0.00014 | CA93: =BZ93*$AR$88 -> 0 | CB93: =CA93*CD93*CE93 -> 0 | CC93: =CB93 -> 0 | CD93: =IFERROR(VLOOKUP(BY93,discYears,2,0),0) -> 0 | CE93: =SUMPRODUCT((cNonTradeLevels=$AR$68)*(cNonTradeYears=BY93)*(cNonTrade)) -> 0
J94: Confirm the confidence you have in the calculation method and valuation | AQ94: Deciduous - Medium | AR94: 0.0005 | AS94: 2.0336 | AZ94: 2 | BA94: =BA$93+$AZ94-1 -> 1 | BB94: =IF($AZ94<=VLOOKUP(BB$90,seqYearsCarbon,2,0),(VLOOKUP(BB$90,seqEqns,2,0)*$AZ94^VLOOKUP(BB$90,seqEqns,3,0)),(VLOOKUP(BB$90,seqYearsCarbon,4,0)*VLOOKUP(BB$90,seqTrees,2,0)/100)) -> 0.005204995465 | BC94: =IF(BB94=0,0,(BB94-BB93)*$AR$85) -> 0 | BD94: =BC94*BF94*BG94 -> 0 | BE94: =BD94+BE93 -> 0 | BF94: 0 | BG94: 0 | BI94: =BI$93+$AZ94-1 -> 1 | BJ94: =IF($AZ94<=VLOOKUP(BJ$90,seqYearsCarbon,2,0),(VLOOKUP(BJ$90,seqEqns,2,0)*$AZ94^VLOOKUP(BJ$90,seqEqns,3,0)),(VLOOKUP(BJ$90,seqYearsCarbon,4,0)*VLOOKUP(BJ$90,seqTrees,2,0)/100)) -> 0.002047126138 | BK94: =IF(BJ94=0,0,(BJ94-BJ93)*$AR$86) -> 0 | BL94: =BK94*BN94*BO94 -> 0 | BM94: =BL94+BM93 -> 0 | BN94: =IFERROR(VLOOKUP(BI94,discYears,2,0),0) -> 0 | BO94: 0 | BQ94: =BQ$93+$AZ94-1 -> 1 | BR94: 0.002952274416 | BS94: =IF(BR94=0,0,(BR94-BR93)*$AR$87) -> 0 | BT94: =BS94*BV94*BW94 -> 0 | BU94: =BT94+BU93 -> 0 | BV94: 0 | BW94: 0 | BY94: =BY$93+$AZ94-1 -> 1 | BZ94: 0.0005958820657 | CA94: =IF(BZ94=0,0,(BZ94-BZ93)*$AR$88) -> 0 | CB94: =CA94*CD94*CE94 -> 0 | CC94: =CB94+CC93 -> 0 | CD94: 0 | CE94: 0
AQ95: Deciduous - Large | AR95: 0.0007 | AS95: 2.0764 | AZ95: 3 | BA95: 2 | BB95: 0.009686671127 | BC95: =IF(BB95=0,0,(BB95-BB94)*$AR$85) -> 0 | BD95: 0 | BE95: =BD95+BE94 -> 0 | BF95: 0 | BG95: 0 | BI95: 2 | BJ95: 0.004669214096 | BK95: =IF(BJ95=0,0,(BJ95-BJ94)*$AR$86) -> 0 | BL95: =BK95*BN95*BO95 -> 0 | BM95: =BL95+BM94 -> 0 | BN95: 0 | BO95: 0 | BQ95: 2 | BR95: 0.006851609665 | BS95: =IF(BR95=0,0,(BR95-BR94)*$AR$87) -> 0 | BT95: =BS95*BV95*BW95 -> 0 | BU95: =BT95+BU94 -> 0 | BV95: 0 | BW95: 0 | BY95: 2 | BZ95: 0.001390338694 | CA95: =IF(BZ95=0,0,(BZ95-BZ94)*$AR$88) -> 0 | CB95: =CA95*CD95*CE95 -> 0 | CC95: =CB95+CC94 -> 0 | CD95: 0 | CE95: 0
B96: Option description | H96: Traded Carbon | J96: Quantity | L96: Valuation (£) | N96: Present value before confidence applied | P96: Present value after confidence applied | R96: Confirm the start and end year of the evaluation | AQ96: Confier - Large | AR96: 0.00014 | AS96: 2.0896 | AZ96: 4 | BA96: 3 | BB96: 0.01505109877 | BC96: 0 | BD96: 0 | BE96: 0 | BF96: 0 | BG96: 0 | BI96: 3 | BJ96: 0.008381450852 | BK96: 0 | BL96: 0 | BM96: 0 | BN96: 0 | BO96: 0 | BQ96: 3 | BR96: 0.01245132033 | BS96: 0 | BT96: 0 | BU96: 0 | BV96: 0 | BW96: 0 | BY96: 3 | BZ96: 0.002536253116 | CA96: 0 | CB96: 0 | CC96: 0 | CD96: 0 | CE96: 0
AZ97: 5 | BA97: 4 | BB97: 0.02118481397 | BC97: 0 | BD97: 0 | BE97: 0 | BF97: 0 | BG97: 0 | BI97: 4 | BJ97: 0.01319457497 | BK97: 0 | BL97: 0 | BM97: 0 | BN97: 0 | BO97: 0 | BQ97: 4 | BR97: 0.01978970667 | BS97: 0 | BT97: 0 | BU97: 0 | BV97: 0 | BW97: 0 | BY97: 4 | BZ97: 0.004042925669 | CA97: 0 | CB97: 0 | CC97: 0 | CD97: 0 | CE97: 0
R98: Start | T98: End | AU98: 1 | AZ98: 6 | BA98: 5 | BB98: 0.0280105996 | BC98: 0 | BD98: 0 | BE98: 0 | BF98: 0 | BG98: 0 | BI98: 5 | BJ98: 0.01911694044 | BK98: 0 | BL98: 0 | BM98: 0 | BN98: 0 | BO98: 0 | BQ98: 5 | BR98: 0.02889690275 | BS98: 0 | BT98: 0 | BU98: 0 | BV98: 0 | BW98: 0 | BY98: 5 | BZ98: 0.005917699234 | CA98: 0 | CB98: 0 | CC98: 0 | CD98: 0 | CE98: 0
AZ99: 7 | BA99: 6 | BB99: 0.0354713888 | BC99: 0 | BD99: 0 | BE99: 0 | BF99: 0 | BG99: 0 | BI99: 6 | BJ99: 0.02615540074 | BK99: 0 | BL99: 0 | BM99: 0 | BN99: 0 | BO99: 0 | BQ99: 6 | BR99: 0.03979784995 | BS99: 0 | BT99: 0 | BU99: 0 | BV99: 0 | BW99: 0 | BY99: 6 | BZ99: 0.008166667991 | CA99: 0 | CB99: 0 | CC99: 0 | CD99: 0 | CE99: 0
B100: Proposed option | D100: ='Project Data'!$D$24 -> Highway runoff diverted into SuDS across the catchment through swales and pipes. Storage in detention basin/online pond and geocellular. Raingardens and water butts used on private properties. | N100: ='Present Value Calcs'!DG13 -> 0 | P100: =N100*L100*J100 -> 0 | AU100: 2 | AZ100: 8 | BA100: 7 | BB100: 0.0435227227 | BC100: 0 | BD100: 0 | BE100: 0 | BF100: 0 | BG100: =SUMPRODUCT((cNonTradeLevels=$AR$68)*(cNonTradeYears=BA100)*(cNonTrade)) -> 0 | BI100: 7 | BJ100: 0.03431577423 | BK100: 0 | BL100: 0 | BM100: 0 | BN100: 0 | BO100: 0 | BQ100: 7 | BR100: 0.05251387777 | BS100: 0 | BT100: 0 | BU100: 0 | BV100: 0 | BW100: 0 | BY100: 7 | BZ100: 0.01079505533 | CA100: 0 | CB100: 0 | CC100: 0 | CD100: 0 | CE100: 0
AU101: 3 | AZ101: 9 | BA101: 8 | BB101: 0.05212866529 | BC101: 0 | BD101: 0 | BE101: 0 | BF101: 0 | BG101: 0 | BI101: 8 | BJ101: 0.04360312054 | BK101: 0 | BL101: 0 | BM101: 0 | BN101: 0 | BO101: 0 | BQ101: 8 | BR101: 0.06706365 | BS101: 0 | BT101: 0 | BU101: 0 | BV101: 0 | BW101: 0 | BY101: 8 | BZ101: 0.0138074406 | CA101: 0 | CB101: 0 | CC101: 0 | CD101: 0 | CE101: 0
B102: Years | D102: Enter 5 yearly cumulative carbon sequested values from Woodlands Carbon Code Calculator (tonnes) | AZ102: 10 | BA102: 9 | BB102: 0.06125936703 | BC102: 0 | BD102: 0 | BE102: 0 | BF102: 0 | BG102: 0 | BI102: 9 | BJ102: 0.05402191862 | BK102: 0 | BL102: 0 | BM102: 0 | BN102: 0 | BO102: 0 | BQ102: 9 | BR102: 0.08346377815 | BS102: 0 | BT102: 0 | BU102: 0 | BV102: 0 | BW102: 0 | BY102: 9 | BZ102: 0.01720790642 | CA102: 0 | CB102: 0 | CC102: 0 | CD102: 0 | CE102: 0
AZ103: 11 | BA103: 10 | BB103: 0.07088950756 | BC103: 0 | BD103: 0 | BE103: 0 | BF103: 0 | BG103: 0 | BI103: 10 | BJ103: 0.06557618826 | BK103: 0 | BL103: 0 | BM103: 0 | BN103: 0 | BO103: 0 | BQ103: 10 | BR103: 0.1017292427 | BS103: 0 | BT103: 0 | BU103: 0 | BV103: 0 | BW103: 0 | BY103: 10 | BZ103: 0.02100014003 | CA103: 0 | CB103: 0 | CC103: 0 | CD103: 0 | CE103: 0
B104: 0-5 | AZ104: 12 | BA104: 11 | BB104: 0.08099724662 | BC104: 0 | BD104: 0 | BE104: 0 | BF104: 0 | BG104: 0 | BI104: 11 | BJ104: 0.07826957692 | BK104: 0 | BL104: 0 | BM104: 0 | BN104: 0 | BO104: 0 | BQ104: 11 | BR104: 0.1218736953 | BS104: 0 | BT104: 0 | BU104: 0 | BV104: 0 | BW104: 0 | BY104: 11 | BZ104: 0.02518750603 | CA104: 0 | CB104: 0 | CC104: 0 | CD104: 0 | CE104: 0
B105: 6-10 | AZ105: 13 | BA105: 12 | BB105: 0.09156348763 | BC105: 0 | BD105: 0 | BE105: 0 | BF105: 0 | BG105: 0 | BI105: 12 | BJ105: 0.09210542388 | BK105: 0 | BL105: 0 | BM105: 0 | BN105: 0 | BO105: 0 | BQ105: 12 | BR105: 0.1439096831 | BS105: 0 | BT105: 0 | BU105: 0 | BV105: 0 | BW105: 0 | BY105: 12 | BZ105: 0.02977310059 | CA105: 0 | CB105: 0 | CC105: 0 | CD105: 0 | CE105: 0
B106: 11-15 | AZ106: 14 | BA106: 13 | BB106: 0.1025713432 | BC106: 0 | BD106: 0 | BE106: 0 | BF106: 0 | BG106: 0 | BI106: 13 | BJ106: 0.107086809 | BK106: 0 | BL106: 0 | BM106: 0 | BN106: 0 | BO106: 0 | BQ106: 13 | BR106: 0.1678488203 | BS106: 0 | BT106: 0 | BU106: 0 | BV106: 0 | BW106: 0 | BY106: 13 | BZ106: 0.0347597928 | CA106: 0 | CB106: 0 | CC106: 0 | CD106: 0 | CE106: 0
B107: 16-20 | AZ107: 15 | BA107: 14 | BB107: 0.1140057366 | BC107: 0 | BD107: 0 | BE107: 0 | BF107: 0 | BG107: 0 | BI107: 14 | BJ107: 0.1232165909 | BK107: 0 | BL107: 0 | BM107: 0 | BN107: 0 | BO107: 0 | BQ107: 14 | BR107: 0.1937019221 | BS107: 0 | BT107: 0 | BU107: 0 | BV107: 0 | BW107: 0 | BY107: 14 | BZ107: 0.0401502571 | CA107: 0 | CB107: 0 | CC107: 0 | CD107: 0 | CE107: 0
B108: 21-25 | AZ108: 16 | BA108: 15 | BB108: 0.1258530968 | BC108: 0 | BD108: 0 | BE108: 0 | BF108: 0 | BG108: 0 | BI108: 15 | BJ108: 0.1404974368 | BK108: 0 | BL108: 0 | BM108: 0 | BN108: 0 | BO108: 0 | BQ108: 15 | BR108: 0.2214791112 | BS108: 0 | BT108: 0 | BU108: 0 | BV108: 0 | BW108: 0 | BY108: 15 | BZ108: 0.04594699905 | CA108: 0 | CB108: 0 | CC108: 0 | CD108: 0 | CE108: 0
B109: 26-30 | AZ109: 17 | BA109: 16 | BB109: 0.1381011222 | BC109: 0 | BD109: 0 | BE109: 0 | BF109: 0 | BG109: 0 | BI109: 16 | BJ109: 0.1589318471 | BK109: 0 | BL109: 0 | BM109: 0 | BN109: 0 | BO109: 0 | BQ109: 16 | BR109: 0.2511899042 | BS109: 0 | BT109: 0 | BU109: 0 | BV109: 0 | BW109: 0 | BY109: 16 | BZ109: 0.05215237632 | CA109: 0 | CB109: 0 | CC109: 0 | CD109: 0 | CE109: 0
B110: 31-35 | AZ110: 18 | BA110: 17 | BB110: 0.1507385925 | BC110: 0 | BD110: 0 | BE110: 0 | BF110: 0 | BG110: 0 | BI110: 17 | BJ110: 0.1785221756 | BK110: 0 | BL110: 0 | BM110: 0 | BN110: 0 | BO110: 0 | BQ110: 17 | BR110: 0.2828432831 | BS110: 0 | BT110: 0 | BU110: 0 | BV110: 0 | BW110: 0 | BY110: 17 | BZ110: 0.05876861588 | CA110: 0 | CB110: 0 | CC110: 0 | CD110: 0 | CE110: 0
B111: 36-40 | AZ111: 19 | BA111: 18 | BB111: 0.1637552176 | BC111: 0 | BD111: 0 | BE111: 0 | BF111: 0 | BG111: 0 | BI111: 18 | BJ111: 0.1992706453 | BK111: 0 | BL111: 0 | BM111: 0 | BN111: 0 | BO111: 0 | BQ111: 18 | BR111: 0.3164477536 | BS111: 0 | BT111: 0 | BU111: 0 | BV111: 0 | BW111: 0 | BY111: 18 | BZ111: 0.06579782838 | CA111: 0 | CB111: 0 | CC111: 0 | CD111: 0 | CE111: 0
B112: 41-45 | AQ112: Traded Carbon | AR112: =F76 -> Size of flood plain restoration (ha) | AZ112: 20 | BA112: 19 | BB112: 0.1771415153 | BC112: 0 | BD112: 0 | BE112: 0 | BF112: 0 | BG112: 0 | BI112: 19 | BJ112: 0.2211793633 | BK112: 0 | BL112: 0 | BM112: 0 | BN112: 0 | BO112: 0 | BQ112: 19 | BR112: 0.3520113956 | BS112: 0 | BT112: 0 | BU112: 0 | BV112: 0 | BW112: 0 | BY112: 19 | BZ112: 0.07324202018 | CA112: 0 | CB112: 0 | CC112: 0 | CD112: 0 | CE112: 0
B113: 46-50 | AQ113: seqYearsCarbon | AZ113: 21 | BA113: 20 | BB113: 0.1908887098 | BC113: 0 | BD113: 0 | BE113: 0 | BF113: 0 | BG113: 0 | BI113: 20 | BJ113: 0.2442503317 | BK113: 0 | BL113: 0 | BM113: 0 | BN113: 0 | BO113: 0 | BQ113: 20 | BR113: 0.3895419048 | BS113: 0 | BT113: 0 | BU113: 0 | BV113: 0 | BW113: 0 | BY113: 20 | BZ113: 0.08110310362 | CA113: 0 | CB113: 0 | CC113: 0 | CD113: 0 | CE113: 0
B114: 51-55 | AW114: . | AZ114: 22 | BA114: 21 | BB114: 0.2049886474 | BC114: 0 | BD114: 0 | BE114: 0 | BF114: 0 | BG114: 0 | BI114: 21 | BJ114: 0.2684854581 | BK114: 0 | BL114: 0 | BM114: 0 | BN114: 0 | BO114: 0 | BQ114: 21 | BR114: 0.4290466294 | BS114: 0 | BT114: 0 | BU114: 0 | BV114: 0 | BW114: 0 | BY114: 21 | BZ114: 0.08938290585 | CA114: 0 | CB114: 0 | CC114: 0 | CD114: 0 | CE114: 0
B115: 56-60 | AW115: . | AZ115: 23 | BA115: 22 | BB115: 0.2194337258 | BC115: 0 | BD115: 0 | BE115: 0 | BF115: 0 | BG115: 0 | BI115: 22 | BJ115: 0.2938865642 | BK115: 0 | BL115: 0 | BM115: 0 | BN115: 0 | BO115: 0 | BQ115: 22 | BR115: 0.4705326007 | BS115: 0 | BT115: 0 | BU115: 0 | BV115: 0 | BW115: 0 | BY115: 22 | BZ115: 0.09808317638 | CA115: 0 | CB115: 0 | CC115: 0 | CD115: 0 | CE115: 0
B116: 61-65 | AW116: . | AZ116: 24 | BA116: 23 | BB116: 0.2342168341 | BC116: 0 | BD116: 0 | BE116: 0 | BF116: 0 | BG116: 0 | BI116: 23 | BJ116: 0.3204553935 | BK116: 0 | BL116: 0 | BM116: 0 | BN116: 0 | BO116: 0 | BQ116: 23 | BR116: 0.5140065607 | BS116: 0 | BT116: 0 | BU116: 0 | BV116: 0 | BW116: 0 | BY116: 23 | BZ116: 0.1072055937 | CA116: 0 | CB116: 0 | CC116: 0 | CD116: 0 | CE116: 0
B117: 66-70 | AW117: . | AZ117: 25 | BA117: 24 | BB117: 0.2493313017 | BC117: 0 | BD117: 0 | BE117: 0 | BF117: 0 | BG117: 0 | BI117: 24 | BJ117: 0.3481936174 | BK117: 0 | BL117: 0 | BM117: 0 | BN117: 0 | BO117: 0 | BQ117: 24 | BR117: 0.5594749859 | BS117: 0 | BT117: 0 | BU117: 0 | BV117: 0 | BW117: 0 | BY117: 24 | BZ117: 0.1167517712 | CA117: 0 | CB117: 0 | CC117: 0 | CD117: 0 | CE117: 0
B118: 71-75 | AW118: . | AZ118: 26 | BA118: 25 | BB118: 0.2647708544 | BC118: 0 | BD118: 0 | BE118: 0 | BF118: 0 | BG118: 0 | BI118: 25 | BJ118: 0.3771028414 | BK118: 0 | BL118: 0 | BM118: 0 | BN118: 0 | BO118: 0 | BQ118: 25 | BR118: 0.6069441079 | BS118: 0 | BT118: 0 | BU118: 0 | BV118: 0 | BW118: 0 | BY118: 25 | BZ118: 0.126723262 | CA118: 0 | CB118: 0 | CC118: 0 | CD118: 0 | CE118: 0
B119: 75-80 | AW119: . | AZ119: 27 | BA119: 26 | BB119: 0.2805295761 | BC119: 0 | BD119: 0 | BE119: 0 | BF119: 0 | BG119: 0 | BI119: 26 | BJ119: 0.4071846101 | BK119: 0 | BL119: 0 | BM119: 0 | BN119: 0 | BO119: 0 | BQ119: 26 | BR119: 0.6564199322 | BS119: 0 | BT119: 0 | BU119: 0 | BV119: 0 | BW119: 0 | BY119: 26 | BZ119: 0.1371215637 | CA119: 0 | CB119: 0 | CC119: 0 | CD119: 0 | CE119: 0
B120: 81-85 | AW120: . | AZ120: 28 | BA120: 27 | BB120: 0.2966018758 | BC120: 0 | BD120: 0 | BE120: 0 | BF120: 0 | BG120: 0 | BI120: 27 | BJ120: 0.4384404117 | BK120: 0 | BL120: 0 | BM120: 0 | BN120: 0 | BO120: 0 | BQ120: 27 | BR120: 0.7079082543 | BS120: 0 | BT120: 0 | BU120: 0 | BV120: 0 | BW120: 0 | BY120: 27 | BZ120: 0.1479481224 | CA120: 0 | CB120: 0 | CC120: 0 | CD120: 0 | CE120: 0
B121: 85-90 | AW121: . | AZ121: 29 | BA121: 28 | BB121: 0.3129824588 | BC121: 0 | BD121: 0 | BE121: 0 | BF121: 0 | BG121: 0 | BI121: 28 | BJ121: 0.4708716819 | BK121: 0 | BL121: 0 | BM121: 0 | BN121: 0 | BO121: 0 | BQ121: 28 | BR121: 0.761414675 | BS121: 0 | BT121: 0 | BU121: 0 | BV121: 0 | BW121: 0 | BY121: 28 | BZ121: 0.1592043361 | CA121: 0 | CB121: 0 | CC121: 0 | CD121: 0 | CE121: 0
B122: 91-95 | AW122: . | AZ122: 30 | BA122: 29 | BB122: 0.329666301 | BC122: 0 | BD122: 0 | BE122: 0 | BF122: 0 | BG122: 0 | BI122: 29 | BJ122: 0.5044798078 | BK122: 0 | BL122: 0 | BM122: 0 | BN122: 0 | BO122: 0 | BQ122: 29 | BR122: 0.8169446129 | BS122: 0 | BT122: 0 | BU122: 0 | BV122: 0 | BW122: 0 | BY122: 29 | BZ122: 0.1708915581 | CA122: 0 | CB122: 0 | CC122: 0 | CD122: 0 | CE122: 0
B123: 95-100 | AW123: . | AZ123: 31 | BA123: 30 | BB123: 0.3466486266 | BC123: 0 | BD123: 0 | BE123: 0 | BF123: 0 | BG123: 0 | BI123: 30 | BJ123: 0.5392661309 | BK123: 0 | BL123: 0 | BM123: 0 | BN123: 0 | BO123: 0 | BQ123: 30 | BR123: 0.874503317 | BS123: 0 | BT123: 0 | BU123: 0 | BV123: 0 | BW123: 0 | BY123: 30 | BZ123: 0.1830110999 | CA123: 0 | CB123: 0 | CC123: 0 | CD123: 0 | CE123: 0
AD124: Western oregong and washington tree guide | AW124: . | AX124: <<< amended to be 0.00067 rather than 0.0007 | AZ124: 32 | BA124: 31 | BB124: 0.3639248879 | BC124: 0 | BD124: 0 | BE124: 0 | BF124: 0 | BG124: 0 | BI124: 31 | BJ124: 0.5752319504 | BK124: 0 | BL124: 0 | BM124: 0 | BN124: 0 | BO124: 0 | BQ124: 31 | BR124: 0.9340958767 | BS124: 0 | BT124: 0 | BU124: 0 | BV124: 0 | BW124: 0 | BY124: 31 | BZ124: 0.1955642336 | CA124: 0 | CB124: 0 | CC124: 0 | CD124: 0 | CE124: 0
AD125: Values in pounds lbs | AI125: value in kgs and 1000 trees | AZ125: 33 | BA125: 32 | BB125: =IF($AZ125<=VLOOKUP(BB$90,seqYearsCarbon,2,0),(VLOOKUP(BB$90,seqEqns,2,0)*$AZ125^VLOOKUP(BB$90,seqEqns,3,0)),(VLOOKUP(BB$90,seqYearsCarbon,4,0)*VLOOKUP(BB$90,seqTrees,2,0)/100)) -> 0.3814907478 | BC125: 0 | BD125: 0 | BE125: 0 | BF125: =IFERROR(VLOOKUP(BA125,discYears,2,0),0) -> 0 | BG125: =SUMPRODUCT((cNonTradeLevels=$AR$68)*(cNonTradeYears=BA125)*(cNonTrade)) -> 0 | BI125: 32 | BJ125: =IF($AZ125<=VLOOKUP(BJ$90,seqYearsCarbon,2,0),(VLOOKUP(BJ$90,seqEqns,2,0)*$AZ125^VLOOKUP(BJ$90,seqEqns,3,0)),(VLOOKUP(BJ$90,seqYearsCarbon,4,0)*VLOOKUP(BJ$90,seqTrees,2,0)/100)) -> 0.6123785251 | BK125: 0 | BL125: 0 | BM125: 0 | BN125: =IFERROR(VLOOKUP(BI125,discYears,2,0),0) -> 0 | BO125: =SUMPRODUCT((cNonTradeLevels=$AR$68)*(cNonTradeYears=BI125)*(cNonTrade)) -> 0 | BQ125: 32 | BR125: =IF($AZ125<=VLOOKUP(BR$90,seqYearsCarbon,2,0),(VLOOKUP(BR$90,seqEqns,2,0)*$AZ125^VLOOKUP(BR$90,seqEqns,3,0)),(VLOOKUP(BR$90,seqYearsCarbon,4,0)*VLOOKUP(BR$90,seqTrees,2,0)/100)) -> 0.9957272321 | BS125: 0 | BT125: 0 | BU125: 0 | BV125: =IFERROR(VLOOKUP(BQ125,discYears,2,0),0) -> 0 | BW125: =SUMPRODUCT((cNonTradeLevels=$AR$68)*(cNonTradeYears=BQ125)*(cNonTrade)) -> 0 | BY125: 32 | BZ125: =IF($AZ125<=VLOOKUP(BZ$90,seqYearsCarbon,2,0),(VLOOKUP(BZ$90,seqEqns,2,0)*$AZ125^VLOOKUP(BZ$90,seqEqns,3,0)),(VLOOKUP(BZ$90,seqYearsCarbon,4,0)*VLOOKUP(BZ$90,seqTrees,2,0)/100)) -> 0.2085521947 | CA125: 0 | CB125: 0 | CC125: 0 | CD125: =IFERROR(VLOOKUP(BY125,discYears,2,0),0) -> 0 | CE125: =SUMPRODUCT((cNonTradeLevels=$AR$68)*(cNonTradeYears=BY125)*(cNonTrade)) -> 0
AD126: Years | AE126: Small | AF126: Medium | AG126: large | AI126: Small | AJ126: Medium | AK126: large | AZ126: 34 | BA126: =BA$93+$AZ126-1 -> 33 | BB126: 0.3993420639 | BC126: 0 | BD126: 0 | BE126: 0 | BF126: 0 | BG126: 0 | BI126: =BI$93+$AZ126-1 -> 33 | BJ126: 0.6507070769 | BK126: 0 | BL126: 0 | BM126: 0 | BN126: 0 | BO126: 0 | BQ126: =BQ$93+$AZ126-1 -> 33 | BR126: 1.059402183 | BS126: 0 | BT126: 0 | BU126: 0 | BV126: 0 | BW126: 0 | BY126: =BY$93+$AZ126-1 -> 33 | BZ126: 0.2219761838 | CA126: 0 | CB126: 0 | CC126: 0 | CD126: 0 | CE126: 0
AD127: 5 | AE127: 0 | AF127: 0 | AG127: 6 | AI127: =100*AE127*0.454 -> 0 | AJ127: =100*AF127*0.454 -> 0 | AK127: =100*AG127*0.454 -> 272.4 | AZ127: 35 | BA127: 34 | BB127: 0.4174748739 | BC127: 0 | BD127: 0 | BE127: 0 | BF127: 0 | BG127: 0 | BI127: 34 | BJ127: 0.6902187921 | BK127: 0 | BL127: 0 | BM127: 0 | BN127: 0 | BO127: 0 | BQ127: 34 | BR127: 1.125125395 | BS127: 0 | BT127: 0 | BU127: 0 | BV127: 0 | BW127: 0 | BY127: 34 | BZ127: 0.235837369 | CA127: 0 | CB127: 0 | CC127: 0 | CD127: 0 | CE127: 0
AD128: 10 | AE128: 2 | AF128: 11 | AG128: 58 | AI128: =100*AE128*0.454 -> 90.8 | AJ128: 499.4 | AK128: 2633.2 | AZ128: 36 | BA128: 35 | BB128: 0.4358853834 | BC128: 0 | BD128: 0 | BE128: 0 | BF128: 0 | BG128: 0 | BI128: 35 | BJ128: 0.7309148237 | BK128: 0 | BL128: 0 | BM128: 0 | BN128: 0 | BO128: 0 | BQ128: 35 | BR128: 1.192901412 | BS128: 0 | BT128: 0 | BU128: 0 | BV128: 0 | BW128: 0 | BY128: 35 | BZ128: 0.2501368874 | CA128: 0 | CB128: 0 | CC128: 0 | CD128: 0 | CE128: 0
AD129: 15 | AE129: 8 | AF129: 31 | AG129: 143 | AI129: 363.2 | AJ129: 1407.4 | AK129: 6492.2 | AZ129: 37 | BA129: 36 | BB129: 0.4545699537 | BC129: 0 | BD129: 0 | BE129: 0 | BF129: 0 | BG129: 0 | BI129: 36 | BJ129: 0.7727962934 | BK129: 0 | BL129: 0 | BM129: 0 | BN129: 0 | BO129: 0 | BQ129: 36 | BR129: 1.262734656 | BS129: 0 | BT129: 0 | BU129: 0 | BV129: 0 | BW129: 0 | BY129: 36 | BZ129: 0.2648758469 | CA129: 0 | CB129: 0 | CC129: 0 | CD129: 0 | CE129: 0
AD130: 20 | AE130: 15 | AF130: 54 | AG130: 236 | AI130: 681 | AJ130: 2451.6 | AK130: 10714.4 | AZ130: 38 | BA130: 37 | BB130: 0.4735250916 | BC130: 0 | BD130: 0 | BE130: 0 | BF130: 0 | BG130: 0 | BI130: 37 | BJ130: 0.8158642933 | BK130: 0 | BL130: 0 | BM130: 0 | BN130: 0 | BO130: 0 | BQ130: 37 | BR130: 1.334629438 | BS130: 0 | BT130: 0 | BU130: 0 | BV130: 0 | BW130: 0 | BY130: 37 | BZ130: 0.2800553278 | CA130: 0 | CB130: 0 | CC130: 0 | CD130: 0 | CE130: 0
AD131: 25 | AE131: 20 | AF131: 76 | AG131: 321 | AI131: 908 | AJ131: 3450.4 | AK131: 14573.4 | AZ131: 39 | BA131: 38 | BB131: 0.49274744 | BC131: 0 | BD131: 0 | BE131: 0 | BF131: 0 | BG131: 0 | BI131: 38 | BJ131: 0.860119887 | BK131: 0 | BL131: 0 | BM131: 0 | BN131: 0 | BO131: 0 | BQ131: 38 | BR131: 1.408589965 | BS131: 0 | BT131: 0 | BU131: 0 | BV131: 0 | BW131: 0 | BY131: 38 | BZ131: 0.2956763841 | CA131: 0 | CB131: 0 | CC131: 0 | CD131: 0 | CE131: 0
AD132: 30 | AE132: 24 | AF132: 93 | AG132: 390 | AI132: 1089.6 | AJ132: 4222.2 | AK132: 17706 | AZ132: 40 | BA132: 39 | BB132: =IF($AZ132<=VLOOKUP(BB$90,seqYearsCarbon,2,0),(VLOOKUP(BB$90,seqEqns,2,0)*$AZ132^VLOOKUP(BB$90,seqEqns,3,0)),(VLOOKUP(BB$90,seqYearsCarbon,4,0)*VLOOKUP(BB$90,seqTrees,2,0)/100)) -> 0.5122337689 | BC132: 0 | BD132: 0 | BE132: 0 | BF132: 0 | BG132: 0 | BI132: 39 | BJ132: 0.9055641117 | BK132: 0 | BL132: 0 | BM132: 0 | BN132: 0 | BO132: 0 | BQ132: 39 | BR132: 1.484620339 | BS132: 0 | BT132: 0 | BU132: 0 | BV132: 0 | BW132: 0 | BY132: 39 | BZ132: 0.3117400449 | CA132: 0 | CB132: 0 | CC132: 0 | CD132: 0 | CE132: 0
AD133: 35 | AE133: 27 | AF133: 106 | AG133: 439 | AI133: 1225.8 | AJ133: 4812.4 | AK133: 19930.6 | AT133: =IFERROR((((1.846*(D66*E66*F66)^1.061)/((G66^0.0424)*(H66^0.0217)*(C66^0.0854)))*I66),"0") | AZ133: 41 | BA133: 40 | BB133: 0.5319809678 | BC133: 0 | BD133: 0 | BE133: 0 | BF133: 0 | BG133: 0 | BI133: 40 | BJ133: 0.952197979 | BK133: 0 | BL133: 0 | BM133: 0 | BN133: 0 | BO133: 0 | BQ133: 40 | BR133: 1.562724569 | BS133: 0 | BT133: 0 | BU133: 0 | BV133: 0 | BW133: 0 | BY133: 40 | BZ133: 0.3282473153 | CA133: 0 | CB133: 0 | CC133: 0 | CD133: 0 | CE133: 0
AD134: 40 | AE134: 27 | AF134: 113 | AG134: 466 | AI134: 1225.8 | AJ134: 5130.2 | AK134: 21156.4 | AZ134: 42 | BA134: 41 | BB134: 0.5519860384 | BC134: 0 | BD134: 0 | BE134: 0 | BF134: 0 | BG134: 0 | BI134: 41 | BJ134: 1.000022476 | BK134: 0 | BL134: 0 | BM134: 0 | BN134: 0 | BO134: 0 | BQ134: 41 | BR134: 1.642906571 | BS134: 0 | BT134: 0 | BU134: 0 | BV134: 0 | BW134: 0 | BY134: 41 | BZ134: 0.345199178 | CA134: 0 | CB134: 0 | CC134: 0 | CD134: 0 | CE134: 0
AZ135: 43 | BA135: 42 | BB135: 0.5722460877 | BC135: 0 | BD135: 0 | BE135: 0 | BF135: 0 | BG135: 0 | BI135: 42 | BJ135: 1.049038569 | BK135: 0 | BL135: 0 | BM135: 0 | BN135: 0 | BO135: 0 | BQ135: 42 | BR135: 1.725170174 | BS135: 0 | BT135: 0 | BU135: 0 | BV135: 0 | BW135: 0 | BY135: 42 | BZ135: 0.3625965941 | CA135: 0 | CB135: 0 | CC135: 0 | CD135: 0 | CE135: 0
AZ136: 44 | BA136: 43 | BB136: 0.5927583224 | BC136: 0 | BD136: 0 | BE136: 0 | BF136: 0 | BG136: 0 | BI136: 43 | BJ136: 1.099247198 | BK136: 0 | BL136: 0 | BM136: 0 | BN136: 0 | BO136: 0 | BQ136: 43 | BR136: 1.809519125 | BS136: 0 | BT136: 0 | BU136: 0 | BV136: 0 | BW136: 0 | BY136: 43 | BZ136: 0.3804405041 | CA136: 0 | CB136: 0 | CC136: 0 | CD136: 0 | CE136: 0
AD137: Pper coefficient | AZ137: 45 | BA137: 44 | BB137: 0.6135200427 | BC137: 0 | BD137: 0 | BE137: 0 | BF137: 0 | BG137: 0 | BI137: 44 | BJ137: 1.150649286 | BK137: 0 | BL137: 0 | BM137: 0 | BN137: 0 | BO137: 0 | BQ137: 44 | BR137: 1.895957088 | BS137: 0 | BT137: 0 | BU137: 0 | BV137: 0 | BW137: 0 | BY137: 44 | BZ137: 0.3987318286 | CA137: 0 | CB137: 0 | CC137: 0 | CD137: 0 | CE137: 0
AD138: x coefficen | AZ138: 46 | BA138: 45 | BB138: 0.6345286376 | BC138: 0 | BD138: 0 | BE138: 0 | BF138: 0 | BG138: 0 | BI138: 45 | BJ138: 1.203245735 | BK138: 0 | BL138: 0 | BM138: 0 | BN138: 0 | BO138: 0 | BQ138: 45 | BR138: 1.984487655 | BS138: 0 | BT138: 0 | BU138: 0 | BV138: 0 | BW138: 0 | BY138: 45 | BZ138: 0.4174714696 | CA138: 0 | CB138: 0 | CC138: 0 | CD138: 0 | CE138: 0
AZ139: 47 | BA139: 46 | BB139: 0.6557815799 | BC139: 0 | BD139: 0 | BE139: 0 | BF139: 0 | BG139: 0 | BI139: 46 | BJ139: 1.257037426 | BK139: 0 | BL139: 0 | BM139: 0 | BN139: 0 | BO139: 0 | BQ139: 46 | BR139: 2.075114343 | BS139: 0 | BT139: 0 | BU139: 0 | BV139: 0 | BW139: 0 | BY139: 46 | BZ139: 0.4366603109 | CA139: 0 | CB139: 0 | CC139: 0 | CD139: 0 | CE139: 0
AD140: Number trees | AE140: no. of trees | AJ140: traded carbon for the righ year. | AN140: Monetised carbon value per year | AZ140: 48 | BA140: 47 | BB140: 0.6772764218 | BC140: 0 | BD140: 0 | BE140: 0 | BF140: 0 | BG140: 0 | BI140: 47 | BJ140: 1.312025224 | BK140: 0 | BL140: 0 | BM140: 0 | BN140: 0 | BO140: 0 | BQ140: 47 | BR140: 2.167840598 | BS140: 0 | BT140: 0 | BU140: 0 | BV140: 0 | BW140: 0 | BY140: 47 | BZ140: 0.4562992189 | CA140: 0 | CB140: 0 | CC140: 0 | CD140: 0 | CE140: 0
AE141: Small | AF141: med | AG141: large | AH141: conifer | AJ141: small | AK141: med lar | AL141: conf | AN141: small | AO141: med | AP141: lar | AQ141: con | AZ141: 49 | BA141: 48 | BB141: 0.6990107908 | BC141: 0 | BD141: 0 | BE141: 0 | BF141: 0 | BG141: 0 | BI141: 48 | BJ141: 1.368209976 | BK141: 0 | BL141: 0 | BM141: 0 | BN141: 0 | BO141: 0 | BQ141: 48 | BR141: 2.262669801 | BS141: 0 | BT141: 0 | BU141: 0 | BV141: 0 | BW141: 0 | BY141: 48 | BZ141: 0.4763890434 | CA141: 0 | CB141: 0 | CC141: 0 | CD141: 0 | CE141: 0
AD142: 1 | AE142: polynomial | AJ142: =2020 -> 2020 | AK142: 2025 | AZ142: 50 | BA142: 49 | BB142: 0.7209823859 | BC142: 0 | BD142: 0 | BE142: 0 | BF142: 0 | BG142: 0 | BI142: 49 | BJ142: 1.425592511 | BK142: 0 | BL142: 0 | BM142: 0 | BN142: 0 | BO142: 0 | BQ142: 49 | BR142: 2.359605268 | BS142: 0 | BT142: 0 | BU142: 0 | BV142: 0 | BW142: 0 | BY142: 49 | BZ142: 0.4969306185 | CA142: 0 | CB142: 0 | CC142: 0 | CD142: 0 | CE142: 0
AD143: 2 | AZ143: 51 | BA143: 50 | BB143: 0.7431889741 | BC143: 0 | BD143: 0 | BE143: 0 | BF143: 0 | BG143: 0 | BI143: 50 | BJ143: 1.484173642 | BK143: 0 | BL143: 0 | BM143: 0 | BN143: 0 | BO143: 0 | BQ143: 50 | BR143: 2.458650251 | BS143: 0 | BT143: 0 | BU143: 0 | BV143: 0 | BW143: 0 | BY143: 50 | BZ143: 0.5179247626 | CA143: 0 | CB143: 0 | CC143: 0 | CD143: 0 | CE143: 0
A144: >>HIDE_BELOW | AD144: 3 | AZ144: 52 | BA144: 51 | BB144: 0.7656283869 | BC144: 0 | BD144: 0 | BE144: 0 | BF144: 0 | BG144: 0 | BI144: 51 | BJ144: 1.543954167 | BK144: 0 | BL144: 0 | BM144: 0 | BN144: 0 | BO144: 0 | BQ144: 51 | BR144: 2.559807945 | BS144: 0 | BT144: 0 | BU144: 0 | BV144: 0 | BW144: 0 | BY144: 51 | BZ144: 0.5393722795 | CA144: 0 | CB144: 0 | CC144: 0 | CD144: 0 | CE144: 0
B145: Evidence notes | AD145: 4 | AZ145: 53 | BA145: 52 | BB145: 0.7882985174 | BC145: 0 | BD145: 0 | BE145: 0 | BF145: 0 | BG145: 0 | BI145: 52 | BJ145: 1.604934869 | BK145: 0 | BL145: 0 | BM145: 0 | BN145: 0 | BO145: 0 | BQ145: 52 | BR145: 2.663081488 | BS145: 0 | BT145: 0 | BU145: 0 | BV145: 0 | BW145: 0 | BY145: 52 | BZ145: 0.5612739587 | CA145: 0 | CB145: 0 | CC145: 0 | CD145: 0 | CE145: 0
C146: Whitford et al paper uses a simple methodology of % of tree cover of x ha. This is based on work from Noavke and Flemming. Look back at the novak work to come up with appropriate values. | AE146: yearly value | AZ146: 54 | BA146: 53 | BB146: 0.8111973174 | BC146: 0 | BD146: 0 | BE146: 0 | BF146: 0 | BG146: 0 | BI146: 53 | BJ146: 1.667116517 | BK146: 0 | BL146: 0 | BM146: 0 | BN146: 0 | BO146: 0 | BQ146: 53 | BR146: 2.76847396 | BS146: 0 | BT146: 0 | BU146: 0 | BV146: 0 | BW146: 0 | BY146: 53 | BZ146: 0.583630576 | CA146: 0 | CB146: 0 | CC146: 0 | CD146: 0 | CE146: 0
C147: GINW does not calculate Carbon sequested for non woodland landscpaes (i.e. urban areas) | AZ147: 55 | BA147: 54 | BB147: 0.8343227946 | BC147: 0 | BD147: 0 | BE147: 0 | BF147: 0 | BG147: 0 | BI147: 54 | BJ147: 1.730499865 | BK147: 0 | BL147: 0 | BM147: 0 | BN147: 0 | BO147: 0 | BQ147: 54 | BR147: 2.87598839 | BS147: 0 | BT147: 0 | BU147: 0 | BV147: 0 | BW147: 0 | BY147: 54 | BZ147: 0.6064428941 | CA147: 0 | CB147: 0 | CC147: 0 | CD147: 0 | CE147: 0
C148: CNT uses values from Michigan state university (Getter et al 2009) (pg40) for green roofs | AZ148: 56 | BA148: 55 | BB148: 0.8576730103 | BC148: 0 | BD148: 0 | BE148: 0 | BF148: 0 | BG148: 0 | BI148: 55 | BJ148: 1.795085654 | BK148: 0 | BL148: 0 | BM148: 0 | BN148: 0 | BO148: 0 | BQ148: 55 | BR148: 2.985627754 | BS148: 0 | BT148: 0 | BU148: 0 | BV148: 0 | BW148: 0 | BY148: 55 | BZ148: 0.6297116628 | CA148: 0 | CB148: 0 | CC148: 0 | CD148: 0 | CE148: 0
C149: CNT uses values from the tree guides to estimate the carbon impact of trees (pg40) | AZ149: 57 | BA149: 56 | BB149: 0.8812460767 | BC149: 0 | BD149: 0 | BE149: 0 | BF149: 0 | BG149: 0 | BI149: 56 | BJ149: 1.860874612 | BK149: 0 | BL149: 0 | BM149: 0 | BN149: 0 | BO149: 0 | BQ149: 56 | BR149: 3.097394981 | BS149: 0 | BT149: 0 | BU149: 0 | BV149: 0 | BW149: 0 | BY149: 56 | BZ149: 0.6534376198 | CA149: 0 | CB149: 0 | CC149: 0 | CD149: 0 | CE149: 0
C150: CNT highlights further research required from other SuDS such as swales etc before placing a carbon value on them | AJ150: 2060 | AK150: 2065 | AZ150: 58 | BA150: 57 | BB150: 0.9050401549 | BC150: 0 | BD150: 0 | BE150: 0 | BF150: 0 | BG150: 0 | BI150: 57 | BJ150: 1.927867456 | BK150: 0 | BL150: 0 | BM150: 0 | BN150: 0 | BO150: 0 | BQ150: 57 | BR150: 3.21129295 | BS150: 0 | BT150: 0 | BU150: 0 | BV150: 0 | BW150: 0 | BY150: 57 | BZ150: 0.6776214905 | CA150: 0 | CB150: 0 | CC150: 0 | CD150: 0 | CE150: 0
AZ151: 59 | BA151: 58 | BB151: 0.9290534529 | BC151: 0 | BD151: 0 | BE151: 0 | BF151: 0 | BG151: 0 | BI151: 58 | BJ151: 1.996064888 | BK151: 0 | BL151: 0 | BM151: 0 | BN151: 0 | BO151: 0 | BQ151: 58 | BR151: 3.327324493 | BS151: 0 | BT151: 0 | BU151: 0 | BV151: 0 | BW151: 0 | BY151: 58 | BZ151: 0.7022639893 | CA151: 0 | CB151: 0 | CC151: 0 | CD151: 0 | CE151: 0
C152: waiting for I tool installation | AZ152: 60 | BA152: 59 | BB152: 0.9532842233 | BC152: 0 | BD152: 0 | BE152: 0 | BF152: 0 | BG152: 0 | BI152: 59 | BJ152: 2.065467602 | BK152: 0 | BL152: 0 | BM152: 0 | BN152: 0 | BO152: 0 | BQ152: 59 | BR152: 3.4454924 | BS152: 0 | BT152: 0 | BU152: 0 | BV152: 0 | BW152: 0 | BY152: 59 | BZ152: 0.727365819 | CA152: 0 | CB152: 0 | CC152: 0 | CD152: 0 | CE152: 0
C153: waiting for feedback from Neil McL colleague | AZ153: 61 | BA153: 60 | BB153: 0 | BC153: 0 | BD153: 0 | BE153: 0 | BF153: 0 | BG153: 0 | BI153: 60 | BJ153: 0 | BK153: 0 | BL153: 0 | BM153: 0 | BN153: 0 | BO153: 0 | BQ153: 60 | BR153: 0 | BS153: 0 | BT153: 0 | BU153: 0 | BV153: 0 | BW153: 0 | BY153: 60 | BZ153: 0 | CA153: 0 | CB153: 0 | CC153: 0 | CD153: 0 | CE153: 0
J154: large | L154: conifer | AZ154: 62 | BA154: 61 | BB154: 0 | BC154: 0 | BD154: 0 | BE154: 0 | BF154: 0 | BG154: 0 | BI154: 61 | BJ154: 0 | BK154: 0 | BL154: 0 | BM154: 0 | BN154: 0 | BO154: 0 | BQ154: 61 | BR154: 0 | BS154: 0 | BT154: 0 | BU154: 0 | BV154: 0 | BW154: 0 | BY154: 61 | BZ154: 0 | CA154: 0 | CB154: 0 | CC154: 0 | CD154: 0 | CE154: 0
J155: medium | L155: decidous | AD155: 40 | AF155: 40 | AG155: 50 | AZ155: 63 | BA155: 62 | BB155: 0 | BC155: 0 | BD155: 0 | BE155: 0 | BF155: 0 | BG155: 0 | BI155: 62 | BJ155: 0 | BK155: 0 | BL155: 0 | BM155: 0 | BN155: 0 | BO155: 0 | BQ155: 62 | BR155: 0 | BS155: 0 | BT155: 0 | BU155: 0 | BV155: 0 | BW155: 0 | BY155: 62 | BZ155: 0 | CA155: 0 | CB155: 0 | CC155: 0 | CD155: 0 | CE155: 0
AZ156: 64 | BA156: 63 | BB156: 0 | BC156: 0 | BD156: 0 | BE156: 0 | BF156: 0 | BG156: 0 | BI156: 63 | BJ156: 0 | BK156: 0 | BL156: 0 | BM156: 0 | BN156: 0 | BO156: 0 | BQ156: 63 | BR156: 0 | BS156: 0 | BT156: 0 | BU156: 0 | BV156: 0 | BW156: 0 | BY156: 63 | BZ156: 0 | CA156: 0 | CB156: 0 | CC156: 0 | CD156: 0 | CE156: 0
B157: SMUD tool | D157: https://usage.smud.org/treebenefit/default.aspx | AZ157: 65 | BA157: 64 | BB157: =IF($AZ157<=VLOOKUP(BB$90,seqYearsCarbon,2,0),(VLOOKUP(BB$90,seqEqns,2,0)*$AZ157^VLOOKUP(BB$90,seqEqns,3,0)),(VLOOKUP(BB$90,seqYearsCarbon,4,0)*VLOOKUP(BB$90,seqTrees,2,0)/100)) -> 0 | BC157: 0 | BD157: 0 | BE157: 0 | BF157: =IFERROR(VLOOKUP(BA157,discYears,2,0),0) -> 0 | BG157: =SUMPRODUCT((cNonTradeLevels=$AR$68)*(cNonTradeYears=BA157)*(cNonTrade)) -> 0 | BI157: 64 | BJ157: =IF($AZ157<=VLOOKUP(BJ$90,seqYearsCarbon,2,0),(VLOOKUP(BJ$90,seqEqns,2,0)*$AZ157^VLOOKUP(BJ$90,seqEqns,3,0)),(VLOOKUP(BJ$90,seqYearsCarbon,4,0)*VLOOKUP(BJ$90,seqTrees,2,0)/100)) -> 0 | BK157: 0 | BL157: 0 | BM157: 0 | BN157: =IFERROR(VLOOKUP(BI157,discYears,2,0),0) -> 0 | BO157: =SUMPRODUCT((cNonTradeLevels=$AR$68)*(cNonTradeYears=BI157)*(cNonTrade)) -> 0 | BQ157: 64 | BR157: =IF($AZ157<=VLOOKUP(BR$90,seqYearsCarbon,2,0),(VLOOKUP(BR$90,seqEqns,2,0)*$AZ157^VLOOKUP(BR$90,seqEqns,3,0)),(VLOOKUP(BR$90,seqYearsCarbon,4,0)*VLOOKUP(BR$90,seqTrees,2,0)/100)) -> 0 | BS157: 0 | BT157: 0 | BU157: 0 | BV157: =IFERROR(VLOOKUP(BQ157,discYears,2,0),0) -> 0 | BW157: =SUMPRODUCT((cNonTradeLevels=$AR$68)*(cNonTradeYears=BQ157)*(cNonTrade)) -> 0 | BY157: 64 | BZ157: =IF($AZ157<=VLOOKUP(BZ$90,seqYearsCarbon,2,0),(VLOOKUP(BZ$90,seqEqns,2,0)*$AZ157^VLOOKUP(BZ$90,seqEqns,3,0)),(VLOOKUP(BZ$90,seqYearsCarbon,4,0)*VLOOKUP(BZ$90,seqTrees,2,0)/100)) -> 0 | CA157: 0 | CB157: 0 | CC157: 0 | CD157: =IFERROR(VLOOKUP(BY157,discYears,2,0),0) -> 0 | CE157: =SUMPRODUCT((cNonTradeLevels=$AR$68)*(cNonTradeYears=BY157)*(cNonTrade)) -> 0
AZ158: 66 | BA158: =BA$93+$AZ158-1 -> 65 | BB158: 0 | BC158: 0 | BD158: =BC158*BF158*BG158 -> 0 | BE158: 0 | BF158: 0 | BG158: 0 | BI158: =BI$93+$AZ158-1 -> 65 | BJ158: 0 | BK158: 0 | BL158: 0 | BM158: 0 | BN158: 0 | BO158: 0 | BQ158: =BQ$93+$AZ158-1 -> 65 | BR158: 0 | BS158: 0 | BT158: 0 | BU158: 0 | BV158: 0 | BW158: 0 | BY158: =BY$93+$AZ158-1 -> 65 | BZ158: 0 | CA158: 0 | CB158: 0 | CC158: 0 | CD158: 0 | CE158: 0
B159: Approach taken | AZ159: 67 | BA159: 66 | BB159: 0 | BC159: =IF(BB159=0,0,(BB159-BB158)*$AR$85) -> 0 | BD159: 0 | BE159: =BD159+BE158 -> 0 | BF159: 0 | BG159: 0 | BI159: 66 | BJ159: 0 | BK159: =IF(BJ159=0,0,(BJ159-BJ158)*$AR$86) -> 0 | BL159: =BK159*BN159*BO159 -> 0 | BM159: =BL159+BM158 -> 0 | BN159: 0 | BO159: 0 | BQ159: 66 | BR159: 0 | BS159: =IF(BR159=0,0,(BR159-BR158)*$AR$87) -> 0 | BT159: =BS159*BV159*BW159 -> 0 | BU159: =BT159+BU158 -> 0 | BV159: 0 | BW159: 0 | BY159: 66 | BZ159: 0 | CA159: =IF(BZ159=0,0,(BZ159-BZ158)*$AR$88) -> 0 | CB159: =CA159*CD159*CE159 -> 0 | CC159: =CB159+CC158 -> 0 | CD159: 0 | CE159: 0
B160: Values developed from the SMUD tool for small, medium and large decidious and large broadleaf evergreen and conifers. | AZ160: 68 | BA160: 67 | BB160: 0 | BC160: 0 | BD160: 0 | BE160: 0 | BF160: 0 | BG160: 0 | BI160: 67 | BJ160: 0 | BK160: 0 | BL160: 0 | BM160: 0 | BN160: 0 | BO160: 0 | BQ160: 67 | BR160: 0 | BS160: 0 | BT160: 0 | BU160: 0 | BV160: 0 | BW160: 0 | BY160: 67 | BZ160: 0 | CA160: 0 | CB160: 0 | CC160: 0 | CD160: 0 | CE160: 0
B161: 1,2,5,10,20,30,(40), (50) used to give values and create equations. | AZ161: 69 | BA161: 68 | BB161: 0 | BC161: 0 | BD161: 0 | BE161: 0 | BF161: 0 | BG161: 0 | BI161: 68 | BJ161: 0 | BK161: 0 | BL161: 0 | BM161: 0 | BN161: 0 | BO161: 0 | BQ161: 68 | BR161: 0 | BS161: 0 | BT161: 0 | BU161: 0 | BV161: 0 | BW161: 0 | BY161: 68 | BZ161: 0 | CA161: 0 | CB161: 0 | CC161: 0 | CD161: 0 | CE161: 0
B162: Values cease for small trees at 30 years therefore constant value used thereafter - conservative would be to not include any further values after 30 | AZ162: 70 | BA162: 69 | BB162: 0 | BC162: 0 | BD162: 0 | BE162: 0 | BF162: 0 | BG162: 0 | BI162: 69 | BJ162: 0 | BK162: 0 | BL162: 0 | BM162: 0 | BN162: 0 | BO162: 0 | BQ162: 69 | BR162: 0 | BS162: 0 | BT162: 0 | BU162: 0 | BV162: 0 | BW162: 0 | BY162: 69 | BZ162: 0 | CA162: 0 | CB162: 0 | CC162: 0 | CD162: 0 | CE162: 0
B163: Values cease at 40 for medium and conifer trees - conservative approach again would be to stop at 40 years | AZ163: 71 | BA163: 70 | BB163: 0 | BC163: 0 | BD163: 0 | BE163: 0 | BF163: 0 | BG163: 0 | BI163: 70 | BJ163: 0 | BK163: 0 | BL163: 0 | BM163: 0 | BN163: 0 | BO163: 0 | BQ163: 70 | BR163: 0 | BS163: 0 | BT163: 0 | BU163: 0 | BV163: 0 | BW163: 0 | BY163: 70 | BZ163: 0 | CA163: 0 | CB163: 0 | CC163: 0 | CD163: 0 | CE163: 0
B164: Values for large trees deciduous and broadlead stop at 50 - conservative approach could be adopted again. | AZ164: 72 | BA164: 71 | BB164: 0 | BC164: 0 | BD164: 0 | BE164: 0 | BF164: 0 | BG164: 0 | BI164: 71 | BJ164: 0 | BK164: 0 | BL164: 0 | BM164: 0 | BN164: 0 | BO164: 0 | BQ164: 71 | BR164: 0 | BS164: 0 | BT164: 0 | BU164: 0 | BV164: 0 | BW164: 0 | BY164: 71 | BZ164: 0 | CA164: 0 | CB164: 0 | CC164: 0 | CD164: 0 | CE164: 0
B165: The Tree Benefit Estimator, developed by Sacramento Municipal Utility District (SMUD), was based on the experience of the SMUD's Shade Tree program. In developing this simplified and easy-to-use method for estimating the tree planting benefits, broad assumptions have been made regarding trees' impact on direct shading benefits, impacts of indirect or evapotranspiration effect, heating penalty in winter months, tree growth rates and tree survival rates. As a result, this method may yield less precise results than a more tailored approach. Staff from the Center for Urban Forest Research, Pacific Southwest Research Station, USDA Forest Service, University of California, Davis, have reviewed the Tree Benefits Estimator. THis is a simplified method adopted for this tool, and if these values are significant, then a more detailed study is appropriate. | AZ165: 73 | BA165: 72 | BB165: 0 | BC165: 0 | BD165: 0 | BE165: 0 | BF165: 0 | BG165: 0 | BI165: 72 | BJ165: 0 | BK165: 0 | BL165: 0 | BM165: 0 | BN165: 0 | BO165: 0 | BQ165: 72 | BR165: 0 | BS165: 0 | BT165: 0 | BU165: 0 | BV165: 0 | BW165: 0 | BY165: 72 | BZ165: 0 | CA165: 0 | CB165: 0 | CC165: 0 | CD165: 0 | CE165: 0
AZ166: 74 | BA166: 73 | BB166: 0 | BC166: 0 | BD166: 0 | BE166: 0 | BF166: 0 | BG166: 0 | BI166: 73 | BJ166: 0 | BK166: 0 | BL166: 0 | BM166: 0 | BN166: 0 | BO166: 0 | BQ166: 73 | BR166: 0 | BS166: 0 | BT166: 0 | BU166: 0 | BV166: 0 | BW166: 0 | BY166: 73 | BZ166: 0 | CA166: 0 | CB166: 0 | CC166: 0 | CD166: 0 | CE166: 0
AZ167: 75 | BA167: 74 | BB167: 0 | BC167: 0 | BD167: 0 | BE167: 0 | BF167: 0 | BG167: 0 | BI167: 74 | BJ167: 0 | BK167: 0 | BL167: 0 | BM167: 0 | BN167: 0 | BO167: 0 | BQ167: 74 | BR167: 0 | BS167: 0 | BT167: 0 | BU167: 0 | BV167: 0 | BW167: 0 | BY167: 74 | BZ167: 0 | CA167: 0 | CB167: 0 | CC167: 0 | CD167: 0 | CE167: 0
AZ168: 76 | BA168: 75 | BB168: 0 | BC168: 0 | BD168: 0 | BE168: 0 | BF168: 0 | BG168: 0 | BI168: 75 | BJ168: 0 | BK168: 0 | BL168: 0 | BM168: 0 | BN168: 0 | BO168: 0 | BQ168: 75 | BR168: 0 | BS168: 0 | BT168: 0 | BU168: 0 | BV168: 0 | BW168: 0 | BY168: 75 | BZ168: 0 | CA168: 0 | CB168: 0 | CC168: 0 | CD168: 0 | CE168: 0
AZ169: 77 | BA169: 76 | BB169: 0 | BC169: 0 | BD169: 0 | BE169: 0 | BF169: 0 | BG169: 0 | BI169: 76 | BJ169: 0 | BK169: 0 | BL169: 0 | BM169: 0 | BN169: 0 | BO169: 0 | BQ169: 76 | BR169: 0 | BS169: 0 | BT169: 0 | BU169: 0 | BV169: 0 | BW169: 0 | BY169: 76 | BZ169: 0 | CA169: 0 | CB169: 0 | CC169: 0 | CD169: 0 | CE169: 0
AZ170: 78 | BA170: 77 | BB170: 0 | BC170: 0 | BD170: 0 | BE170: 0 | BF170: 0 | BG170: 0 | BI170: 77 | BJ170: 0 | BK170: 0 | BL170: 0 | BM170: 0 | BN170: 0 | BO170: 0 | BQ170: 77 | BR170: 0 | BS170: 0 | BT170: 0 | BU170: 0 | BV170: 0 | BW170: 0 | BY170: 77 | BZ170: 0 | CA170: 0 | CB170: 0 | CC170: 0 | CD170: 0 | CE170: 0
AZ171: 79 | BA171: 78 | BB171: 0 | BC171: 0 | BD171: 0 | BE171: 0 | BF171: 0 | BG171: 0 | BI171: 78 | BJ171: 0 | BK171: 0 | BL171: 0 | BM171: 0 | BN171: 0 | BO171: 0 | BQ171: 78 | BR171: 0 | BS171: 0 | BT171: 0 | BU171: 0 | BV171: 0 | BW171: 0 | BY171: 78 | BZ171: 0 | CA171: 0 | CB171: 0 | CC171: 0 | CD171: 0 | CE171: 0
AZ172: 80 | BA172: 79 | BB172: 0 | BC172: 0 | BD172: 0 | BE172: 0 | BF172: 0 | BG172: 0 | BI172: 79 | BJ172: 0 | BK172: 0 | BL172: 0 | BM172: 0 | BN172: 0 | BO172: 0 | BQ172: 79 | BR172: 0 | BS172: 0 | BT172: 0 | BU172: 0 | BV172: 0 | BW172: 0 | BY172: 79 | BZ172: 0 | CA172: 0 | CB172: 0 | CC172: 0 | CD172: 0 | CE172: 0
AZ173: 81 | BA173: 80 | BB173: 0 | BC173: 0 | BD173: 0 | BE173: 0 | BF173: 0 | BG173: 0 | BI173: 80 | BJ173: 0 | BK173: 0 | BL173: 0 | BM173: 0 | BN173: 0 | BO173: 0 | BQ173: 80 | BR173: 0 | BS173: 0 | BT173: 0 | BU173: 0 | BV173: 0 | BW173: 0 | BY173: 80 | BZ173: 0 | CA173: 0 | CB173: 0 | CC173: 0 | CD173: 0 | CE173: 0
B174: Link below outlines the carbon sequestration methodology. | AZ174: 82 | BA174: 81 | BB174: 0 | BC174: 0 | BD174: 0 | BE174: 0 | BF174: 0 | BG174: 0 | BI174: 81 | BJ174: 0 | BK174: 0 | BL174: 0 | BM174: 0 | BN174: 0 | BO174: 0 | BQ174: 81 | BR174: 0 | BS174: 0 | BT174: 0 | BU174: 0 | BV174: 0 | BW174: 0 | BY174: 81 | BZ174: 0 | CA174: 0 | CB174: 0 | CC174: 0 | CD174: 0 | CE174: 0
B175: https://usage.smud.org/treebenefit/SavingCarbon.aspx | AZ175: 83 | BA175: 82 | BB175: 0 | BC175: 0 | BD175: 0 | BE175: 0 | BF175: 0 | BG175: 0 | BI175: 82 | BJ175: 0 | BK175: 0 | BL175: 0 | BM175: 0 | BN175: 0 | BO175: 0 | BQ175: 82 | BR175: 0 | BS175: 0 | BT175: 0 | BU175: 0 | BV175: 0 | BW175: 0 | BY175: 82 | BZ175: 0 | CA175: 0 | CB175: 0 | CC175: 0 | CD175: 0 | CE175: 0
AZ176: 84 | BA176: 83 | BB176: 0 | BC176: 0 | BD176: 0 | BE176: 0 | BF176: 0 | BG176: 0 | BI176: 83 | BJ176: 0 | BK176: 0 | BL176: 0 | BM176: 0 | BN176: 0 | BO176: 0 | BQ176: 83 | BR176: 0 | BS176: 0 | BT176: 0 | BU176: 0 | BV176: 0 | BW176: 0 | BY176: 83 | BZ176: 0 | CA176: 0 | CB176: 0 | CC176: 0 | CD176: 0 | CE176: 0
AZ177: 85 | BA177: 84 | BB177: 0 | BC177: 0 | BD177: 0 | BE177: 0 | BF177: 0 | BG177: 0 | BI177: 84 | BJ177: 0 | BK177: 0 | BL177: 0 | BM177: 0 | BN177: 0 | BO177: 0 | BQ177: 84 | BR177: 0 | BS177: 0 | BT177: 0 | BU177: 0 | BV177: 0 | BW177: 0 | BY177: 84 | BZ177: 0 | CA177: 0 | CB177: 0 | CC177: 0 | CD177: 0 | CE177: 0
R178: Years | T178: 5 yearly totals | AZ178: 86 | BA178: 85 | BB178: 0 | BC178: 0 | BD178: 0 | BE178: 0 | BF178: 0 | BG178: 0 | BI178: 85 | BJ178: 0 | BK178: 0 | BL178: 0 | BM178: 0 | BN178: 0 | BO178: 0 | BQ178: 85 | BR178: 0 | BS178: 0 | BT178: 0 | BU178: 0 | BV178: 0 | BW178: 0 | BY178: 85 | BZ178: 0 | CA178: 0 | CB178: 0 | CC178: 0 | CD178: 0 | CE178: 0
D179: Years | F179: Tonnes value | J179: 5 yearly totals amended | AZ179: 87 | BA179: 86 | BB179: 0 | BC179: 0 | BD179: 0 | BE179: 0 | BF179: 0 | BG179: 0 | BI179: 86 | BJ179: 0 | BK179: 0 | BL179: 0 | BM179: 0 | BN179: 0 | BO179: 0 | BQ179: 86 | BR179: 0 | BS179: 0 | BT179: 0 | BU179: 0 | BV179: 0 | BW179: 0 | BY179: 86 | BZ179: 0 | CA179: 0 | CB179: 0 | CC179: 0 | CD179: 0 | CE179: 0
D180: 1 | F180: =J$180/5 -> 0 | J180: =IF(T180>0,T180,"0") -> 0 | R180: 0-5 | T180: =IF(D104=0,0,D104-D103) -> 0 | AZ180: 88 | BA180: 87 | BB180: 0 | BC180: 0 | BD180: 0 | BE180: 0 | BF180: 0 | BG180: 0 | BI180: 87 | BJ180: 0 | BK180: 0 | BL180: 0 | BM180: 0 | BN180: 0 | BO180: 0 | BQ180: 87 | BR180: 0 | BS180: 0 | BT180: 0 | BU180: 0 | BV180: 0 | BW180: 0 | BY180: 87 | BZ180: 0 | CA180: 0 | CB180: 0 | CC180: 0 | CD180: 0 | CE180: 0
D181: 2 | F181: =J$180/5 -> 0 | J181: =IF(T181>0,T181,"0") -> 0 | R181: 6-10 | T181: =IF(D105=0,0,D105-D104) -> 0 | AZ181: 89 | BA181: 88 | BB181: 0 | BC181: 0 | BD181: 0 | BE181: 0 | BF181: 0 | BG181: 0 | BI181: 88 | BJ181: 0 | BK181: 0 | BL181: 0 | BM181: 0 | BN181: 0 | BO181: 0 | BQ181: 88 | BR181: 0 | BS181: 0 | BT181: 0 | BU181: 0 | BV181: 0 | BW181: 0 | BY181: 88 | BZ181: 0 | CA181: 0 | CB181: 0 | CC181: 0 | CD181: 0 | CE181: 0
D182: 3 | F182: =J$180/5 -> 0 | J182: 0 | R182: 11-15 | T182: =IF(D106=0,0,D106-D105) -> 0 | AZ182: 90 | BA182: 89 | BB182: 0 | BC182: 0 | BD182: 0 | BE182: 0 | BF182: 0 | BG182: 0 | BI182: 89 | BJ182: 0 | BK182: 0 | BL182: 0 | BM182: 0 | BN182: 0 | BO182: 0 | BQ182: 89 | BR182: 0 | BS182: 0 | BT182: 0 | BU182: 0 | BV182: 0 | BW182: 0 | BY182: 89 | BZ182: 0 | CA182: 0 | CB182: 0 | CC182: 0 | CD182: 0 | CE182: 0
D183: 4 | F183: =J$180/5 -> 0 | J183: 0 | R183: 16-20 | T183: =IF(D107=0,0,D107-D106) -> 0 | AZ183: 91 | BA183: 90 | BB183: 0 | BC183: 0 | BD183: 0 | BE183: 0 | BF183: 0 | BG183: 0 | BI183: 90 | BJ183: 0 | BK183: 0 | BL183: 0 | BM183: 0 | BN183: 0 | BO183: 0 | BQ183: 90 | BR183: 0 | BS183: 0 | BT183: 0 | BU183: 0 | BV183: 0 | BW183: 0 | BY183: 90 | BZ183: 0 | CA183: 0 | CB183: 0 | CC183: 0 | CD183: 0 | CE183: 0
D184: 5 | F184: =J$180/5 -> 0 | J184: 0 | R184: 21-25 | T184: =IF(D108=0,0,D108-D107) -> 0 | AZ184: 92 | BA184: 91 | BB184: 0 | BC184: 0 | BD184: 0 | BE184: 0 | BF184: 0 | BG184: 0 | BI184: 91 | BJ184: 0 | BK184: 0 | BL184: 0 | BM184: 0 | BN184: 0 | BO184: 0 | BQ184: 91 | BR184: 0 | BS184: 0 | BT184: 0 | BU184: 0 | BV184: 0 | BW184: 0 | BY184: 91 | BZ184: 0 | CA184: 0 | CB184: 0 | CC184: 0 | CD184: 0 | CE184: 0
D185: 6 | F185: =J$181/5 -> 0 | J185: 0 | R185: 26-30 | T185: 0 | AZ185: 93 | BA185: 92 | BB185: 0 | BC185: 0 | BD185: 0 | BE185: 0 | BF185: 0 | BG185: 0 | BI185: 92 | BJ185: 0 | BK185: 0 | BL185: 0 | BM185: 0 | BN185: 0 | BO185: 0 | BQ185: 92 | BR185: 0 | BS185: 0 | BT185: 0 | BU185: 0 | BV185: 0 | BW185: 0 | BY185: 92 | BZ185: 0 | CA185: 0 | CB185: 0 | CC185: 0 | CD185: 0 | CE185: 0
D186: 7 | F186: =J$181/5 -> 0 | J186: 0 | R186: 31-35 | T186: 0 | AZ186: 94 | BA186: 93 | BB186: 0 | BC186: 0 | BD186: 0 | BE186: 0 | BF186: 0 | BG186: 0 | BI186: 93 | BJ186: 0 | BK186: 0 | BL186: 0 | BM186: 0 | BN186: 0 | BO186: 0 | BQ186: 93 | BR186: 0 | BS186: 0 | BT186: 0 | BU186: 0 | BV186: 0 | BW186: 0 | BY186: 93 | BZ186: 0 | CA186: 0 | CB186: 0 | CC186: 0 | CD186: 0 | CE186: 0
D187: 8 | F187: =J$181/5 -> 0 | J187: 0 | R187: 36-40 | T187: 0 | AZ187: 95 | BA187: 94 | BB187: 0 | BC187: 0 | BD187: 0 | BE187: 0 | BF187: 0 | BG187: 0 | BI187: 94 | BJ187: 0 | BK187: 0 | BL187: 0 | BM187: 0 | BN187: 0 | BO187: 0 | BQ187: 94 | BR187: 0 | BS187: 0 | BT187: 0 | BU187: 0 | BV187: 0 | BW187: 0 | BY187: 94 | BZ187: 0 | CA187: 0 | CB187: 0 | CC187: 0 | CD187: 0 | CE187: 0
D188: 9 | F188: =J$181/5 -> 0 | J188: 0 | R188: 41-45 | T188: 0 | AZ188: 96 | BA188: 95 | BB188: 0 | BC188: 0 | BD188: 0 | BE188: 0 | BF188: 0 | BG188: 0 | BI188: 95 | BJ188: 0 | BK188: 0 | BL188: 0 | BM188: 0 | BN188: 0 | BO188: 0 | BQ188: 95 | BR188: 0 | BS188: 0 | BT188: 0 | BU188: 0 | BV188: 0 | BW188: 0 | BY188: 95 | BZ188: 0 | CA188: 0 | CB188: 0 | CC188: 0 | CD188: 0 | CE188: 0
D189: 10 | F189: =J$181/5 -> 0 | J189: 0 | R189: 46-50 | T189: 0 | AZ189: 97 | BA189: 96 | BB189: =IF($AZ189<=VLOOKUP(BB$90,seqYearsCarbon,2,0),(VLOOKUP(BB$90,seqEqns,2,0)*$AZ189^VLOOKUP(BB$90,seqEqns,3,0)),(VLOOKUP(BB$90,seqYearsCarbon,4,0)*VLOOKUP(BB$90,seqTrees,2,0)/100)) -> 0 | BC189: 0 | BD189: 0 | BE189: 0 | BF189: 0 | BG189: 0 | BI189: 96 | BJ189: =IF($AZ189<=VLOOKUP(BJ$90,seqYearsCarbon,2,0),(VLOOKUP(BJ$90,seqEqns,2,0)*$AZ189^VLOOKUP(BJ$90,seqEqns,3,0)),(VLOOKUP(BJ$90,seqYearsCarbon,4,0)*VLOOKUP(BJ$90,seqTrees,2,0)/100)) -> 0 | BK189: 0 | BL189: 0 | BM189: 0 | BN189: 0 | BO189: 0 | BQ189: 96 | BR189: =IF($AZ189<=VLOOKUP(BR$90,seqYearsCarbon,2,0),(VLOOKUP(BR$90,seqEqns,2,0)*$AZ189^VLOOKUP(BR$90,seqEqns,3,0)),(VLOOKUP(BR$90,seqYearsCarbon,4,0)*VLOOKUP(BR$90,seqTrees,2,0)/100)) -> 0 | BS189: 0 | BT189: 0 | BU189: 0 | BV189: 0 | BW189: 0 | BY189: 96 | BZ189: =IF($AZ189<=VLOOKUP(BZ$90,seqYearsCarbon,2,0),(VLOOKUP(BZ$90,seqEqns,2,0)*$AZ189^VLOOKUP(BZ$90,seqEqns,3,0)),(VLOOKUP(BZ$90,seqYearsCarbon,4,0)*VLOOKUP(BZ$90,seqTrees,2,0)/100)) -> 0 | CA189: 0 | CB189: 0 | CC189: 0 | CD189: 0 | CE189: 0
D190: 11 | F190: =J$182/5 -> 0 | J190: 0 | R190: 51-55 | T190: 0 | AZ190: 98 | BA190: =BA$93+$AZ190-1 -> 97 | BB190: 0 | BC190: 0 | BD190: 0 | BE190: 0 | BF190: 0 | BG190: 0 | BI190: =BI$93+$AZ190-1 -> 97 | BJ190: 0 | BK190: 0 | BL190: 0 | BM190: 0 | BN190: 0 | BO190: 0 | BQ190: =BQ$93+$AZ190-1 -> 97 | BR190: 0 | BS190: 0 | BT190: 0 | BU190: 0 | BV190: 0 | BW190: 0 | BY190: =BY$93+$AZ190-1 -> 97 | BZ190: 0 | CA190: 0 | CB190: 0 | CC190: 0 | CD190: 0 | CE190: 0
D191: 12 | F191: =J$182/5 -> 0 | J191: 0 | R191: 56-60 | T191: 0 | AZ191: 99 | BA191: 98 | BB191: 0 | BC191: 0 | BD191: 0 | BE191: 0 | BF191: 0 | BG191: 0 | BI191: 98 | BJ191: 0 | BK191: 0 | BL191: 0 | BM191: 0 | BN191: 0 | BO191: 0 | BQ191: 98 | BR191: 0 | BS191: 0 | BT191: 0 | BU191: 0 | BV191: 0 | BW191: 0 | BY191: 98 | BZ191: 0 | CA191: 0 | CB191: 0 | CC191: 0 | CD191: 0 | CE191: 0
D192: 13 | F192: =J$182/5 -> 0 | J192: 0 | R192: 61-65 | T192: 0 | AZ192: 100 | BA192: 99 | BB192: 0 | BC192: 0 | BD192: 0 | BE192: 0 | BF192: 0 | BG192: 0 | BI192: 99 | BJ192: 0 | BK192: 0 | BL192: 0 | BM192: 0 | BN192: 0 | BO192: 0 | BQ192: 99 | BR192: 0 | BS192: 0 | BT192: 0 | BU192: 0 | BV192: 0 | BW192: 0 | BY192: 99 | BZ192: 0 | CA192: 0 | CB192: 0 | CC192: 0 | CD192: 0 | CE192: 0
D193: 14 | F193: =J$182/5 -> 0 | J193: 0 | R193: 66-70 | T193: 0 | AZ193: 101 | BA193: 100 | BB193: 0 | BC193: 0 | BD193: 0 | BE193: =BD193+BE192 -> 0 | BF193: =IFERROR(VLOOKUP(BA193,discYears,2,0),0) -> 0 | BG193: =SUMPRODUCT((cNonTradeLevels=$AR$68)*(cNonTradeYears=BA193)*(cNonTrade)) -> 0 | BI193: 100 | BJ193: 0 | BK193: 0 | BL193: 0 | BM193: 0 | BN193: =IFERROR(VLOOKUP(BI193,discYears,2,0),0) -> 0 | BO193: =SUMPRODUCT((cNonTradeLevels=$AR$68)*(cNonTradeYears=BI193)*(cNonTrade)) -> 0 | BQ193: 100 | BR193: 0 | BS193: 0 | BT193: 0 | BU193: 0 | BV193: =IFERROR(VLOOKUP(BQ193,discYears,2,0),0) -> 0 | BW193: =SUMPRODUCT((cNonTradeLevels=$AR$68)*(cNonTradeYears=BQ193)*(cNonTrade)) -> 0 | BY193: 100 | BZ193: 0 | CA193: 0 | CB193: 0 | CC193: 0 | CD193: =IFERROR(VLOOKUP(BY193,discYears,2,0),0) -> 0 | CE193: =SUMPRODUCT((cNonTradeLevels=$AR$68)*(cNonTradeYears=BY193)*(cNonTrade)) -> 0
D194: 15 | F194: =J$182/5 -> 0 | J194: 0 | R194: 71-75 | T194: 0 | AZ194: 102 | BA194: 101 | BB194: 0 | BC194: 0 | BD194: 0 | BE194: 0 | BF194: 0 | BG194: 0 | BI194: 101 | BJ194: 0 | BK194: 0 | BL194: 0 | BM194: 0 | BN194: 0 | BO194: 0 | BQ194: 101 | BR194: 0 | BS194: 0 | BT194: 0 | BU194: 0 | BV194: 0 | BW194: 0 | BY194: 101 | BZ194: 0 | CA194: 0 | CB194: 0 | CC194: 0 | CD194: 0 | CE194: 0
D195: 16 | F195: =J$183/5 -> 0 | J195: 0 | R195: 75-80 | T195: 0 | AZ195: 103 | BA195: 102 | BB195: 0 | BC195: 0 | BD195: 0 | BE195: 0 | BF195: 0 | BG195: 0 | BI195: 102 | BJ195: 0 | BK195: 0 | BL195: 0 | BM195: 0 | BN195: 0 | BO195: 0 | BQ195: 102 | BR195: 0 | BS195: 0 | BT195: 0 | BU195: 0 | BV195: 0 | BW195: 0 | BY195: 102 | BZ195: 0 | CA195: 0 | CB195: 0 | CC195: 0 | CD195: 0 | CE195: 0
D196: 17 | F196: =J$183/5 -> 0 | J196: 0 | R196: 81-85 | T196: 0 | AZ196: 104 | BA196: 103 | BB196: 0 | BC196: 0 | BD196: 0 | BE196: 0 | BF196: 0 | BG196: 0 | BI196: 103 | BJ196: 0 | BK196: 0 | BL196: 0 | BM196: 0 | BN196: 0 | BO196: 0 | BQ196: 103 | BR196: 0 | BS196: 0 | BT196: 0 | BU196: 0 | BV196: 0 | BW196: 0 | BY196: 103 | BZ196: 0 | CA196: 0 | CB196: 0 | CC196: 0 | CD196: 0 | CE196: 0
D197: 18 | F197: =J$183/5 -> 0 | J197: 0 | R197: 85-90 | T197: 0 | AZ197: 105 | BA197: 104 | BB197: 0 | BC197: 0 | BD197: 0 | BE197: 0 | BF197: 0 | BG197: 0 | BI197: 104 | BJ197: 0 | BK197: 0 | BL197: 0 | BM197: 0 | BN197: 0 | BO197: 0 | BQ197: 104 | BR197: 0 | BS197: 0 | BT197: 0 | BU197: 0 | BV197: 0 | BW197: 0 | BY197: 104 | BZ197: 0 | CA197: 0 | CB197: 0 | CC197: 0 | CD197: 0 | CE197: 0
D198: 19 | F198: =J$183/5 -> 0 | J198: 0 | R198: 91-95 | T198: 0 | AZ198: 106 | BA198: 105 | BB198: 0 | BC198: 0 | BD198: 0 | BE198: 0 | BF198: 0 | BG198: 0 | BI198: 105 | BJ198: 0 | BK198: 0 | BL198: 0 | BM198: 0 | BN198: 0 | BO198: 0 | BQ198: 105 | BR198: 0 | BS198: 0 | BT198: 0 | BU198: 0 | BV198: 0 | BW198: 0 | BY198: 105 | BZ198: 0 | CA198: 0 | CB198: 0 | CC198: 0 | CD198: 0 | CE198: 0
D199: 20 | F199: =J$183/5 -> 0 | J199: 0 | R199: 95-100 | T199: 0 | AZ199: 107 | BA199: 106 | BB199: 0 | BC199: 0 | BD199: 0 | BE199: 0 | BF199: 0 | BG199: 0 | BI199: 106 | BJ199: 0 | BK199: 0 | BL199: 0 | BM199: 0 | BN199: 0 | BO199: 0 | BQ199: 106 | BR199: 0 | BS199: 0 | BT199: 0 | BU199: 0 | BV199: 0 | BW199: 0 | BY199: 106 | BZ199: 0 | CA199: 0 | CB199: 0 | CC199: 0 | CD199: 0 | CE199: 0
D200: 21 | F200: =J$184/5 -> 0 | AZ200: 108 | BA200: 107 | BB200: 0 | BC200: 0 | BD200: 0 | BE200: 0 | BF200: 0 | BG200: 0 | BI200: 107 | BJ200: 0 | BK200: 0 | BL200: 0 | BM200: 0 | BN200: 0 | BO200: 0 | BQ200: 107 | BR200: 0 | BS200: 0 | BT200: 0 | BU200: 0 | BV200: 0 | BW200: 0 | BY200: 107 | BZ200: 0 | CA200: 0 | CB200: 0 | CC200: 0 | CD200: 0 | CE200: 0
D201: 22 | F201: =J$184/5 -> 0
D202: 23 | F202: =J$184/5 -> 0
D203: 24 | F203: =J$184/5 -> 0
D204: 25 | F204: =J$184/5 -> 0
D205: 26 | F205: =J$185/5 -> 0
D206: 27 | F206: =J$185/5 -> 0
D207: 28 | F207: =J$185/5 -> 0
D208: 29 | F208: =J$185/5 -> 0
D209: 30 | F209: =J$185/5 -> 0
D210: 31 | F210: =J$186/5 -> 0
D211: 32 | F211: =J$186/5 -> 0
D212: 33 | F212: =J$186/5 -> 0
D213: 34 | F213: =J$186/5 -> 0
D214: 35 | F214: =J$186/5 -> 0
D215: 36 | F215: =J$187/5 -> 0
D216: 37 | F216: =J$187/5 -> 0
D217: 38 | F217: =J$187/5 -> 0
D218: 39 | F218: =J$187/5 -> 0
D219: 40 | F219: =J$187/5 -> 0
D220: 41 | F220: =J$188/5 -> 0
D221: 42 | F221: =J$188/5 -> 0
D222: 43 | F222: =J$188/5 -> 0
D223: 44 | F223: =J$188/5 -> 0
D224: 45 | F224: =J$188/5 -> 0
D225: 46 | F225: =J$189/5 -> 0
D226: 47 | F226: =J$189/5 -> 0
D227: 48 | F227: =J$189/5 -> 0
D228: 49 | F228: =J$189/5 -> 0
D229: 50 | F229: =J$189/5 -> 0
... 50 more rows

Sheet Edu - Education (hidden)
S1: Education | Y1: >>HIDE_ALONG | AD1: <<ROWHEIGHTKEY>>
B2: =ProjDetails -> PROJECT DETAILS - Name: Roundhay Park SuDS Scheme , Assmt. Version: 1, Date: Feb 2019.
B6: Evidence and Qualitative summary
B7: 1 | C7: =IF('Screening Questions'!M16<=0,"Summary from screening questions",'Screening Questions'!M16) -> There may be small educational benefits, but these have not been assessed. | AD7: <<ROW_ALT>>
B8: 2 | AD8: <<ROW_ALT>>
B9: 3 | AD9: <<ROW_ALT>>
B10: 4 | AD10: <<ROW_ALT>>
B11: 5 | AD11: <<ROW_ALT>>
C13: Notes
C14: Overview of the sections to help evaluate the impact the scheme will have to support education
C15: This is likely to be a qualitative assessment, however if you have evidence and can quantify the impact, use section Edu2
D18: SECTION Edu1 | H18: SECTION Edu2
D19: You have undertaken an independent or more detailed assessment of the schemes contribution to education | H19: You require support to help calculate the scheme's contribution to education
B22: SECTION Edu1
C24: Notes
C25: If you have calculated the educational benefits as a present value, enter it here. This should be the difference between the two options.
F28: Confirm the confidence you have in the calculation method and valuation | N28: Confirm the start and end year of the evaluation
D30: Confirm the present value of the benefit £ | F30: Quantity | H30: Valuation (£) | J30: Present benefit after applying the confidence values | N30: Start | P30: End
J32: =H32*F32*D32 -> 0
B34: SECTION Edu2
D36: Notes:
D37: Estimate for the value of educational trips to the scheme per year
J40: Confirm the confidence you have in the calculation method and valuation
B42: Option description | F42: Estimated no. of students visiting per year | H42: Select appropriate monetary value (or enter used defined) £/student/trip | J42: Quantity | L42: Valuation (£) | N42: Confirm the start and end year of the evaluation | R42: Present value before confidence applied | T42: Present value after confidence applied
B44: Baseline option | D44: ='Project Data'!$D$22 -> Existing | N44: Start | P44: End | R44: ='Present Value Calcs'!GT13 -> 0 | T44: =R44*L44*J44 -> 0 | AE44: =ValuesLibrary!J94 -> 16.61752941 | AF44: =ValuesLibrary!K94 -> 21.0162872 | AG44: =ValuesLibrary!L94 -> 25.41504499 | AH44: =ValuesLibrary!M94 -> User not defined
B46: Proposed option | D46: ='Project Data'!$D$24 -> Highway runoff diverted into SuDS across the catchment through swales and pipes. Storage in detention basin/online pond and geocellular. Raingardens and water butts used on private properties. | R46: ='Present Value Calcs'!GV13 -> 0 | T46: =R46*L46*J46 -> 0
P48: Difference | R48: =R46-R44 -> 0 | T48: =T46-T44 -> 0
A54: >>HIDE_BELOW
J57: =IFERROR(AVERAGE(J46,J44),0) -> 0
C61: Notes
C62: Use the matrix to consider qualitatively the impact that the SuDS may have in contributing to education
D67: Magnitude of the contribution to enhance education | F67: High | H67: 3 | J67: 4 | L67: 5
F69: Medium | H69: 2 | J69: 3 | L69: 4
F71: Low | H71: 1 | J71: 2 | L71: 3
H73: Small | J73: Medium | L73: Large
H75: Population impacted
AB76: Small | AC76: Medium | AD76: Large
D77: Record the estimated impact | AB77: Low | AC77: Medium | AD77: High
D79: Magnitude | F79: Size of area | H79: Potential Impact value | J79: Confirm the confidence you have in the estimation method | N79: Revised impact value
N81: =IF(H81>0,J81*H81,"-") -> -
D82: Note: Use this section where evidence is available to support that SuDS create an impact.
U84: Confirm the start and end year of the evaluation
D86: Scenario | H86: Lump sum or present value benefit from a local study | L86: Level of confidence of the quantity calculated (select from list) | P86: Level of confidence of the monetary value used | R86: Lump sum / present value after confidence applied | U86: Start | W86: End
B88: Proposed scenario | D88: ='Project Data'!$D$24 -> Highway runoff diverted into SuDS across the catchment through swales and pipes. Storage in detention basin/online pond and geocellular. Raingardens and water butts used on private properties. | H88: 0 | R88: =H88*L88*P88 -> 0

Sheet ED - Enabling development (hidden)
Z1: Enabling development | AB1: >>HIDE_ALONG | AC1: <<ROWHEIGHTKEY>>
B2: =ProjDetails -> PROJECT DETAILS - Name: Roundhay Park SuDS Scheme , Assmt. Version: 1, Date: Feb 2019. | AF2: ANSWER | AG2: Y
B6: Evidence and Qualitative summary
B7: 1 | C7: =IF('Screening Questions'!M18<=0,"Summary from screening questions",'Screening Questions'!M18) -> Summary from screening questions | AC7: <<ROW_ALT>>
B8: 2 | AC8: <<ROW_ALT>>
B9: 3 | AC9: <<ROW_ALT>>
B10: 4 | AC10: <<ROW_ALT>>
B11: 5 | AC11: <<ROW_ALT>>
AG12: Y
C13: Notes
C14: It may be appropriate to calculate the avoided infrastructure costs of options that enable development.
C15: Complete ED1 if you know the present value of the benefit created, such as the avoided infrastructure cost (and this is not included as part as the cost of the option). Use ED2 where you need support to calculate the present value of the impact.
C16: Only complete one section.
E18: Section ED1 | I18: Section ED2
E19: You have undertaken an independent or more detailed assessment of the schemes contribution to enabling development | I19: You require support to help calculate the scheme's contribution to education
B23: SECTION ED1
E25: Note: Use this section if you have already calculated the scheme's impact.
M27: Confirm the confidence you have in the calculation method and valuation | Q27: Confirm the start and end year of the evaluation
E29: Option description | I29: Present value benefit or avoided cost of infrastructure as result of the scheme | M29: Quantity | O29: Valuation (£) | Q29: Start | S29: End | U29: Value after certainty / confidence applied
B31: Proposed option | E31: ='Project Data'!$D$24 -> Highway runoff diverted into SuDS across the catchment through swales and pipes. Storage in detention basin/online pond and geocellular. Raingardens and water butts used on private properties. | U31: =I31*M31*O31 -> 0
B36: SECTION ED2
E38: Note: Use this section where evidence is available to estimate the scheme's impact, but you need support to calculate the present value. You will need to know the size of the impact, the expected monetary value and when the benefit is expected to occur. If it is a single year impact in the future, enter the year in the "Start Year Box", and the year +1 in the "End Year box". 5 different 'sites' can be included within the tool and valued. Space has been provided to record the units of the calculation for the quantity and monetary values. If it is a monetary value only, enter a unit of 1 in the "Quantity" box.
O40: Confirm the confidence you have in the calculation method and valuation | S40: Confirm the start and end year of the evaluation
E42: Option description | G42: Quantity value | I42: Enter the units as a record | K42: Monetary Value | M42: Enter the units as a record | O42: Quantity | Q42: Valuation (£) | S42: Start | U42: End | W42: Present value before confidence applied | Y42: Present value after confidence applied
B44: Site A | E44: ='Project Data'!$D$24 -> Highway runoff diverted into SuDS across the catchment through swales and pipes. Storage in detention basin/online pond and geocellular. Raingardens and water butts used on private properties. | W44: ='Present Value Calcs'!GY13 -> 0 | Y44: =W44*Q44*O44 -> 0
B46: Site B | E46: ='Project Data'!$D$24 -> Highway runoff diverted into SuDS across the catchment through swales and pipes. Storage in detention basin/online pond and geocellular. Raingardens and water butts used on private properties. | W46: ='Present Value Calcs'!HA13 -> 0 | Y46: =W46*Q46*O46 -> 0
B48: Site C | E48: ='Project Data'!$D$24 -> Highway runoff diverted into SuDS across the catchment through swales and pipes. Storage in detention basin/online pond and geocellular. Raingardens and water butts used on private properties. | W48: ='Present Value Calcs'!HC13 -> 0 | Y48: =W48*Q48*O48 -> 0
B50: Site D | E50: ='Project Data'!$D$24 -> Highway runoff diverted into SuDS across the catchment through swales and pipes. Storage in detention basin/online pond and geocellular. Raingardens and water butts used on private properties. | W50: ='Present Value Calcs'!HE13 -> 0 | Y50: =W50*Q50*O50 -> 0
B52: Site E | E52: ='Project Data'!$D$24 -> Highway runoff diverted into SuDS across the catchment through swales and pipes. Storage in detention basin/online pond and geocellular. Raingardens and water butts used on private properties. | W52: ='Present Value Calcs'!HG13 -> 0 | Y52: =W52*Q52*O52 -> 0
A71: >>HIDE_BELOW
C75: Notes
C76: Use the matrix to consider qualitatively the impact that the scheme may have in enabling development that supports population growth
C77: Quantification and valuation of impacts not expected in this category, unless clear evidence is available linking the scheme to enable development
E81: Magnitude of the likely capacity created for growth | G81: High | I81: 3 | K81: 4 | M81: 5
G83: Medium | I83: 2 | K83: 3 | M83: 4
G85: Low | I85: 1 | K85: 2 | M85: 3
I87: Small | K87: Medium | M87: Large
I89: Potential size of area or number of people | AE89: Small | AF89: Medium | AG89: Large
AE90: Low | AF90: Medium | AG90: High
E91: Record the estimated impact
E93: Magnitude | G93: Size of area | I93: Potential Impact value | K93: Confirm the confidence you have in the estimation method | O93: Revised impact value
O95: =IF(I95>0,K95*I95,"-") -> -

Sheet F - Flooding
S1: Flooding | Y1: >>HIDE_ALONG | Z1: <<ROWHEIGHTKEY>>
B2: =ProjDetails -> PROJECT DETAILS - Name: Roundhay Park SuDS Scheme , Assmt. Version: 1, Date: Feb 2019.
B6: Evidence: Qualitative summary and written evidence
B7: 1 | C7: =IF('Screening Questions'!M20<=0,"Summary from screening questions",'Screening Questions'!M20) -> Schemes across the catchment to manage the risk predicted flooding | Z7: <<ROW_ALT>>
B8: 2 | C8: The flood risk assessment indicates that around 65 properties will benefit from reduced flood risk as a result of implementing the proposed solution | Z8: <<ROW_ALT>>
B9: 3 | Z9: <<ROW_ALT>>
B10: 4 | Z10: <<ROW_ALT>>
B11: 5 | Z11: <<ROW_ALT>>
C13: Notes
C14: Overview of the sections to help choose which section to capture the flooding impact
C15: Section F1 should be completed on its own or complete one of F2 to F4 and F5.
E18: Section F1 | G18: Section F2 | K18: Section F3 | O18: Section F4 | S18: Section F5
E19: This is if you have already completed a damages assessment of the flooding and calculated the present value | G19: This is if you are working with a water company and are considering willingness to pay approaches to assess the benefit | K19: This is if you have calculated the average annual damages for property and other areas, but have not calculated the present value | O19: This is if you are using the FCRM GiA calculator to estimate the impacts. | S19: Estimates wider impacts beyond property flooding
B23: SECTION F1
E25: Notes:
E26: Have you undertaken an assessment of the reduced flooding your scheme will give you for the baseline and proposed scenario, and calculated the present value?
E27: This assumes that a consistent discount rate has been applied to the calculation that the user defines within this tool, and that the start and end years have been used to calculate the present value.
E29: Option description | G29: Level of confidence of the quantity calculated | I29: Level of confidence of the monetary value selected/used | K29: Present value damage before confidence applied | M29: Present value damage after confidence applied | O29: Confirm the start and end year of the evaluation
C31: Baseline option | E31: ='Project Data'!$D$22 -> Existing | M31: =K31*G31*I31 -> 0 | O31: Start | Q31: End
C33: Proposed option | E33: ='Project Data'!$D$24 -> Highway runoff diverted into SuDS across the catchment through swales and pipes. Storage in detention basin/online pond and geocellular. Raingardens and water butts used on private properties. | M33: =K33*G33*I33 -> 0
I35: Difference | K35: =K31-K33 -> 0 | M35: =M31-M33 -> 0
B39: SECTION F2
E41: Notes:
E42: For retrofit only schemes using Water Company Willingness to Pay information, please provide the present value of benefits to properties or areas with a lower risk of flooding from the proposed scenario
E43: This assumes that a consistent discount rate has been applied to the calculation that the user defines within this tool, and that the start and end years have been used to calculate the present value.
O45: Confirm the start and end year of the evaluation
E47: Option description | G47: Level of confidence of the quantity calculated | I47: Level of confidence of the monetary value selected/used | K47: Present value of benefit before confidence applied | M47: Present value benefit after confidence applied | O47: Start | Q47: End | Z47: Baseline scenario | AA47: ='Project Data'!$D$22 -> Existing
C49: Proposed option | E49: ='Project Data'!$D$24 -> Highway runoff diverted into SuDS across the catchment through swales and pipes. Storage in detention basin/online pond and geocellular. Raingardens and water butts used on private properties. | M49: =K49*G49*I49 -> 0 | Z49: Proposed scenario | AA49: ='Project Data'!$D$24 -> Highway runoff diverted into SuDS across the catchment through swales and pipes. Storage in detention basin/online pond and geocellular. Raingardens and water butts used on private properties.
B55: SECTION F3
E57: Notes:
E58: Complete this table if you have calculated the average annual damages assessment for the baseline and proposed scenarios for the scheme
E60: Option description | G60: Damage to property: AAD (£) | I60: Other damage costs: AAD (£) | K60: Other damage costs: description | M60: Level of confidence of the quantity calculated | O60: Level of confidence of the monetary value selected/used | Q60: Evaluation time frame (year) | U60: Present value before confidence applied | W60: Present value after confidence applied
C62: Baseline option | E62: ='Project Data'!$D$22 -> Existing | G62: 345152 | I62: 0 | K62: Insert summary | M62: 0.5 | O62: 1 | Q62: Start | S62: End | U62: ='Present Value Calcs'!BD13 -> 7491968.58 | W62: =U62*O62*M62 -> 3745984.29
C64: Proposed option | E64: ='Project Data'!$D$24 -> Highway runoff diverted into SuDS across the catchment through swales and pipes. Storage in detention basin/online pond and geocellular. Raingardens and water butts used on private properties. | I64: 0 | K64: Insert summary | Q64: 2019 | S64: 2059 | U64: ='Present Value Calcs'!BF13 -> 0 | W64: =U64*O64*M64 -> 0
S67: Difference | U67: =U62-U64 -> 7491968.58 | W67: =W62-W64 -> 3745984.29
B71: SECTION F4
E73: Notes
E74: Complete this table if you have already calculated the damages using Flood & Coastal Risk Management Grant in Aid (FCRM GiA) calculator.
E75: This presumes you know the number of properties, the type of properties and frequency of flooding through modelling, site investigation or engineering judgement. Enter the values below and select the certainty / confidence values.
E77: Option description | G77: Qualified benefits discounted (present value) | I77: Level of confidence of the quantity calculated | K77: Level of confidence of the monetary value selected/used | M77: Evaluation time frame (year) | Q77: Present value before confidence applied | S77: Present value after confidence applied
C79: Baseline option | E79: ='Project Data'!$D$22 -> Existing | G79: 0 | M79: Start | O79: End | Q79: =G79 -> 0 | S79: =Q79*K79*I79 -> 0
C81: Proposed option | E81: ='Project Data'!$D$24 -> Highway runoff diverted into SuDS across the catchment through swales and pipes. Storage in detention basin/online pond and geocellular. Raingardens and water butts used on private properties. | G81: 0 | Q81: =G81 -> 0 | S81: =Q81*K81*I81 -> 0
O84: Difference | Q84: =Q81-Q79 -> 0 | S84: =S81-S79 -> 0
K85: Note: record the start finish years applied within the FCRM GiA calculator
B88: SECTION F5
E90: Notes
E91: Complete this table if you are estimating the reduction in time lost (travel disruption) per year or intangible benefits.
E92: This presumes you know the number of properties, the type of properties and frequency of flooding through modelling, site investigation or engineering judgement. Enter the values below and select the certainty / confidence values.
C94: Travel disruption benefits in terms of lost hours | Q94: Evaluation time frame (year)
E96: Option description | G96: Estimate reduction in lost hours (per year) as a result of the scheme | I96: Select appropriate monetary value | K96: Estimated financial impact per year | M96: Level of confidence of the quantity calculated | O96: Level of confidence of the monetary value selected/used | Q96: Start | S96: End | U96: Present value before confidence applied | W96: Present value after confidence applied
C98: Proposed Option | E98: ='Project Data'!$D$24 -> Highway runoff diverted into SuDS across the catchment through swales and pipes. Storage in detention basin/online pond and geocellular. Raingardens and water butts used on private properties. | F98: 20 | K98: =G98*I98 -> 0 | U98: ='Present Value Calcs'!BH13 -> 0 | W98: =U98*O98*M98 -> 0
C102: Health benefits of reducing flood risk, e.g. reduced or avoided stress and anxiety | Q102: Evaluation time frame (year)
E104: Option description | G104: Estimate number of properties with a reduction in flood risk | I104: Select appropriate monetary value | K104: Estimated financial impact per year | M104: Level of confidence of the quantity calculated | O104: Level of confidence of the monetary value selected/used | Q104: Start | S104: End | U104: Present value before confidence applied | W104: Present value after confidence applied
C106: Proposed Option | E106: ='Project Data'!$D$24 -> Highway runoff diverted into SuDS across the catchment through swales and pipes. Storage in detention basin/online pond and geocellular. Raingardens and water butts used on private properties. | K106: =G106*I106 -> 0 | U106: ='Present Value Calcs'!BJ13 -> 0 | W106: =U106*O106*M106 -> 0
AA112: Values from Library - Travel Disruption | AE112: Values from Library - Intangible
AA113: Mid value | AB113: =ValuesLibrary!K98 -> 14 | AE113: Mid value | AF113: =ValuesLibrary!K99 -> 303.6945238
AA114: User defined | AB114: =ValuesLibrary!M98 -> User not defined | AE114: User defined | AF114: =ValuesLibrary!M99 -> User not defined
A115: >>HIDE_BELOW
K117: AVERAGE
K119: Level of certainty of the quantity calculated (select from list) | M119: Level of confidence of the monetary value selected/used
I120: F2,3,4 | K120: =IFERROR(AVERAGE(I81,I79,M64,M62,G49),0) -> 0.5 | M120: =IFERROR(AVERAGE(K81,K79,O64,O62,I49),0) -> 1

Sheet H - Health (hidden)
T1: Health | V1: >>HIDE_ALONG | W1: <<ROWHEIGHTKEY>>
B2: =ProjDetails -> PROJECT DETAILS - Name: Roundhay Park SuDS Scheme , Assmt. Version: 1, Date: Feb 2019.
B6: Evidence: Qualitative summary and written evidence
B7: 1 | C7: =IF('Screening Questions'!M26<=0,"Summary from screening questions",'Screening Questions'!M26) -> Some positive benefits to physical and psychological of local residents arising from more attractive areas and better quality of local environment. However, high risk of double counting with amenity and recreation. | W7: <<ROW_ALT>> | X7: quality or potential improvement | Y7: H
B8: 2 | W8: <<ROW_ALT>> | Y8: M
B9: 3 | W9: <<ROW_ALT>> | Y9: L | Z9: LL | AA9: LM | AB9: M
B10: 4 | W10: <<ROW_ALT>> | Z10: L | AA10: M | AB10: H
B11: 5 | W11: <<ROW_ALT>> | Z11: size of area/number of people
D14: Notes
D15: Overview of the sections to help choose which one to use to assess the potential health benefits
D16: Complete either section H1 or the relevant sections in H2a or H2b and H3.
F18: SECTION H1 | H18: SECTION H2a | J18: Section H2b | L18: Section H3
F19: Enables you to enter your own present value calculations as a result of health impacts | H19: Enter the values for the impact the scheme has on increased walking and cycling here using the HEAT Tool. | J19: Estimate the impact of an increase in physical activity on avoided costs, when you cannot use the HEAT tool | L19: Enter the values that contribute to emotional well being
B22: SECTION H1
D24: Notes
D25: If you have calculated the health benefits for the option as a present value, enter it here.
H27: Confirm the confidence you have in the calculation method and valuation | P27: Confirm the start and end year of the evaluation
X28: discount time | Y28: 50 years
F29: Confirm the present value of the benefit £ | H29: Quantity | J29: Valuation (£) | L29: Present benefit after applying the confidence values | P29: Start | R29: End
X30: discount time | Y30: 50 years
L31: =J31*H31*F31 -> 0
B36: SECTION H2a
D39: Notes
D40: Estimating the health benefits of walking or cycling by estimating the value of reduced mortality that results from specified amounts of walking or cycling. | X40: Examples of the sensitivity in the tool, for information only
D41: Use the World Health Organisation HEAT tool to estimate the impact on physical health by increased walking and cycling at: | R41: http://heatwalkingcycling.org/ | X41: no. of people | Y41: 10 people | Z41: 10 people | AA41: 10 people | AB41: 10 people
D42: Use the guidance (to be developed further) to help you estimate the increase in walking as a result of the scheme (based on the visual / aesthetic improvement, change or new addition) Sum the number of people before and after accessing green space areas where more than measure is introduced in the catchment | X42: take up | Y42: 0.5 | Z42: 0.75 | AA42: 0.25 | AB42: 1
D44: Walking | N44: Cycling
X45: discount time | Y45: 50 years | Z45: 50 years | AA45: 50 years | AB45: 50 years
D46: Proportion walking in the tool (% for confidence) | N46: Proportion cycling in the tool (% for confidence) | X46: Present value | Y46: 53000 | Z46: 80000 | AA46: 27000 | AB46: 107000
D48: Discount period (years) | N48: Discount period (years)
X49: walking per week | Y49: 30 mins / week
D50: Discount rate (%) applied to the benefit | H50: ='Project Data'!D34 -> 0.035 | N50: Discount rate (%) applied to the benefit | R50: ='Project Data'!D34 -> 0.035 | X50: no. of people | Y50: 10 people
X51: when start after | Y51: 5 year
D52: Present value benefit (after Confidence) | N52: Present value benefit (after Confidence) | X52: take up | Y52: 0.5
X53: discount time | Y53: 50 years
D54: Please insert the summary of the results from the HEAT Tool Here | N54: Please insert the summary of the results from the HEAT Tool Here
X55: discount time | Y55: 50 years
B73: SECTION H2b - Physical activity avoided costs
B75: Use this if you know or wish to estimate the number of visits per year for physical activity | J75: Confirm the confidence you have in the calculation method and valuation
B77: Option description | F77: Estimated number of visits by adults to green space per year | H77: Select appropriate monetary value description (or enter used defined) £/visit/yr | J77: Quantity | L77: Valuation (£) | N77: Confirm the start and end year of the evaluation | R77: Present value before confidence applied | T77: Present value after confidence applied
B79: Baseline option | D79: ='Project Data'!$D$22 -> Existing | N79: Start | P79: End | R79: ='Present Value Calcs'!DN13 -> 0 | T79: =R79*L79*J79 -> 0
B81: Proposed option | D81: ='Project Data'!$D$24 -> Highway runoff diverted into SuDS across the catchment through swales and pipes. Storage in detention basin/online pond and geocellular. Raingardens and water butts used on private properties. | R81: ='Present Value Calcs'!DP13 -> 0 | T81: =R81*L81*J81 -> 0
P83: Difference | R83: =R81-R79 -> 0 | T83: =T81-T79 -> 0
B92: SECTION H3 - Emotional well being
B95: Notes:
B96: Sum the number of people before and after accessing green space areas where more than measure is introduced in the catchment | X96: Examples of the sensitivity in the tool, for information only
B100: View over green space from homes | J100: Confirm the confidence you have in the calculation method and valuation
B102: Option description | F102: Estimated no. of adults having a direct view over green space from house | H102: Select appropriate monetary value description (or enter used defined) £/p/yr | J102: Quantity | L102: Valuation (£) | N102: Confirm the start and end year of the evaluation | R102: Present value before confidence applied | T102: Present value after confidence applied
B104: Baseline option | D104: ='Project Data'!$D$22 -> Existing | N104: Start | P104: End | R104: ='Present Value Calcs'!DR13 -> 0 | T104: =R104*L104*J104 -> 0
B106: Proposed option | D106: ='Project Data'!$D$24 -> Highway runoff diverted into SuDS across the catchment through swales and pipes. Storage in detention basin/online pond and geocellular. Raingardens and water butts used on private properties. | R106: ='Present Value Calcs'!DT13 -> 0 | T106: =R106*L106*J106 -> 0
P108: Difference | R108: =R106-R104 -> 0 | T108: =T106-T104 -> 0
B116: Use this if you know or wish to estimate the number of visits per year per person for emotional well being | J116: Confirm the confidence you have in the calculation method and valuation
B118: Option description | F118: Estimated number of visits by adults to green space per year | H118: Select appropriate monetary value description (or enter used defined) | J118: Quantity | L118: Valuation (£) | N118: Confirm the start and end year of the evaluation | R118: Present value before confidence applied | T118: Present value after confidence applied
B120: Baseline option | D120: ='Project Data'!$D$22 -> Existing | N120: Start | P120: End | R120: ='Present Value Calcs'!DV13 -> 0 | T120: =R120*L120*J120 -> 0
B122: Proposed option | D122: ='Project Data'!$D$24 -> Highway runoff diverted into SuDS across the catchment through swales and pipes. Storage in detention basin/online pond and geocellular. Raingardens and water butts used on private properties. | R122: ='Present Value Calcs'!DX13 -> 0 | T122: =R122*L122*J122 -> 0
P124: Difference | R124: =R122-R120 -> 0 | T124: =T122-T120 -> 0
A133: >>HIDE_BELOW

Sheet N - Noise (hidden)
X1: Noise | Z1: >>HIDE_ALONG | AF1: <<ROWHEIGHTKEY>>
B2: =ProjDetails -> PROJECT DETAILS - Name: Roundhay Park SuDS Scheme , Assmt. Version: 1, Date: Feb 2019.
B6: Evidence: Qualitative summary and written evidence
B7: 1 | C7: =IF('Screening Questions'!M28<=0,"Summary from screening questions",'Screening Questions'!M28) -> Summary from screening questions | AF7: <<ROW_ALT>>
B8: 2 | AF8: <<ROW_ALT>>
B9: 3 | AF9: <<ROW_ALT>>
B10: 4 | AF10: <<ROW_ALT>>
B11: 5 | AF11: <<ROW_ALT>>
D14: Notes
D15: Overview of the sections to help estimate the benefit in the change in noise as a result of the scheme.
D16: Only complete one section.
F20: SECTION N1 | J20: SECTION N2
F21: You have undertaken an independent or more detailed assessment of the impacts of the measures on noise | J21: You need support to estimate the value of reducing noise through the measures
B24: SECTION N1
B26: Notes | E26: Use this section if you already know the present value benefit.
H30: Confirm the confidence you have in the calculation method and valuation | N30: Confirm the start and end year of the evaluation
F32: Confirm the present value of the benefit £ | H32: Quantity | J32: Valuation (£) | L32: Present value after confidence applied | N32: Start | P32: End
L34: =J34*H34*F34 -> 0
B38: SECTION N2
B41: Notes | E41: Use this section to help you estimate the present value for: - Reduction in noise as a result of NFM or SuDS
N46: Confirm the confidence you have in the calculation method and valuation | R46: Confirm the start and end year of the evaluation
D48: Option description | F48: Noise level before (max 81db - min 46db) | H48: Noise level after (max 80db - min 45db) | J48: Monetised value of the db reduction £ | L48: Number of households | N48: Quantity | P48: Valuation (£) | R48: Start | T48: End | V48: Present value before confidence applied | X48: Present value after confidence applied
B50: Location A | D50: ='Project Data'!$D$24 -> Highway runoff diverted into SuDS across the catchment through swales and pipes. Storage in detention basin/online pond and geocellular. Raingardens and water butts used on private properties. | J50: =IFERROR(SUM(OFFSET(dbValuesAnchor,MIN(MATCH(F50,rngNoiseFrom),MATCH(H50,rngNoiseTo)),0,MAX(MATCH(F50,rngNoiseFrom),MATCH(H50,rngNoiseTo))-MIN(MATCH(F50,rngNoiseFrom),MATCH(H50,rngNoiseTo))+1,1)),"") ->  | V50: =IFERROR('Present Value Calcs'!HJ13,0) -> 0 | X50: =V50*P50*N50 -> 0
B52: Location B | D52: ='Project Data'!$D$24 -> Highway runoff diverted into SuDS across the catchment through swales and pipes. Storage in detention basin/online pond and geocellular. Raingardens and water butts used on private properties. | J52: =IFERROR(SUM(OFFSET(dbValuesAnchor,MIN(MATCH(F52,rngNoiseFrom),MATCH(H52,rngNoiseTo)),0,MAX(MATCH(F52,rngNoiseFrom),MATCH(H52,rngNoiseTo))-MIN(MATCH(F52,rngNoiseFrom),MATCH(H52,rngNoiseTo))+1,1)),"") ->  | V52: =IFERROR('Present Value Calcs'!HL13,0) -> 0 | X52: =V52*P52*N52 -> 0
B54: Location C | D54: ='Project Data'!$D$24 -> Highway runoff diverted into SuDS across the catchment through swales and pipes. Storage in detention basin/online pond and geocellular. Raingardens and water butts used on private properties. | J54: =IFERROR(SUM(OFFSET(dbValuesAnchor,MIN(MATCH(F54,rngNoiseFrom),MATCH(H54,rngNoiseTo)),0,MAX(MATCH(F54,rngNoiseFrom),MATCH(H54,rngNoiseTo))-MIN(MATCH(F54,rngNoiseFrom),MATCH(H54,rngNoiseTo))+1,1)),"") ->  | V54: =IFERROR('Present Value Calcs'!HN13,0) -> 0 | X54: =V54*P54*N54 -> 0
B56: Location D | D56: ='Project Data'!$D$24 -> Highway runoff diverted into SuDS across the catchment through swales and pipes. Storage in detention basin/online pond and geocellular. Raingardens and water butts used on private properties. | J56: =IFERROR(SUM(OFFSET(dbValuesAnchor,MIN(MATCH(F56,rngNoiseFrom),MATCH(H56,rngNoiseTo)),0,MAX(MATCH(F56,rngNoiseFrom),MATCH(H56,rngNoiseTo))-MIN(MATCH(F56,rngNoiseFrom),MATCH(H56,rngNoiseTo))+1,1)),"") ->  | V56: ='Present Value Calcs'!HP13 -> 0 | X56: =V56*P56*N56 -> 0
B58: Location E | D58: ='Project Data'!$D$24 -> Highway runoff diverted into SuDS across the catchment through swales and pipes. Storage in detention basin/online pond and geocellular. Raingardens and water butts used on private properties. | J58: =IFERROR(SUM(OFFSET(dbValuesAnchor,MIN(MATCH(F58,rngNoiseFrom),MATCH(H58,rngNoiseTo)),0,MAX(MATCH(F58,rngNoiseFrom),MATCH(H58,rngNoiseTo))-MIN(MATCH(F58,rngNoiseFrom),MATCH(H58,rngNoiseTo))+1,1)),"") ->  | V58: ='Present Value Calcs'!HR13 -> 0 | X58: =V58*P58*N58 -> 0
A62: >>HIDE_BELOW
F65: Noise Level Before | H65: Noise Level After
F66: FROM | H66: TO | J66: 1 db Value
F67: 46 | H67: 45 | J67: 11.28
F68: 47 | H68: 46 | J68: 11.23
F69: 48 | H69: 47 | J69: 11.31
F70: 49 | H70: 48 | J70: 11.52
F71: 50 | H71: 49 | J71: 18.41
F72: 51 | H72: 50 | J72: 18.89
F73: 52 | H73: 51 | J73: 19.49
F74: 53 | H74: 52 | J74: 20.23
F75: 54 | H75: 53 | J75: 21.09
F76: 55 | H76: 54 | J76: 47.78
F77: 56 | H77: 55 | J77: 51.22
F78: 57 | H78: 56 | J78: 54.79
F79: 58 | H79: 57 | J79: 58.49
F80: 59 | H80: 58 | J80: 63.86
F81: 60 | H81: 59 | J81: 69.33
F82: 61 | H82: 60 | J82: 74.69
F83: 62 | H83: 61 | J83: 80.21
F84: 63 | H84: 62 | J84: 85.9
F85: 64 | H85: 63 | J85: 91.75
F86: 65 | H86: 64 | J86: 97.78
F87: 66 | H87: 65 | J87: 103.96
F88: 67 | H88: 66 | J88: 110.32
F89: 68 | H89: 67 | J89: 116.85
F90: 69 | H90: 68 | J90: 123.54
F91: 70 | H91: 69 | J91: 130.39
F92: 71 | H92: 70 | J92: 137.42
F93: 72 | H93: 71 | J93: 144.61
F94: 73 | H94: 72 | J94: 151.97
F95: 74 | H95: 73 | J95: 159.49
F96: 75 | H96: 74 | J96: 167.18
F97: 76 | H97: 75 | J97: 175.04
F98: 77 | H98: 76 | J98: 183.07
F99: 78 | H99: 77 | J99: 188.93
F100: 79 | H100: 78 | J100: 190.93
F101: 80 | H101: 79 | J101: 192.96
F102: 81 | H102: 80 | J102: 195.03

Sheet R - Recreation
T1: Recreation | V1: >>HIDE_ALONG | W1: <<ROWHEIGHTKEY>>
B2: =ProjDetails -> PROJECT DETAILS - Name: Roundhay Park SuDS Scheme , Assmt. Version: 1, Date: Feb 2019.
B6: Evidence: Qualitative summary and written evidence
B7: 1 | C7: =IF('Screening Questions'!M34<=0,"Summary from screening questions",'Screening Questions'!M34) -> Impacts on fish assumed to be a function of improvements in both water supply and water quality, which are only considered to be more likely for the SuDS options | W7: <<ROW_ALT>>
B8: 2 | W8: <<ROW_ALT>>
B9: 3 | W9: <<ROW_ALT>>
B10: 4 | W10: <<ROW_ALT>>
B11: 5 | W11: <<ROW_ALT>>
D13: Notes
D14: Overview of the sections to help assess the impact on recreation
D15: Only complete one section unless you are accounting for other benefits not included in section R1.
F18: SECTION R1 | H18: SECTION R2
F19: Enables you to enter site specific values of recreational activities that are supported through the construction of the scheme. | H19: Use this section to supports you to calculate some common recreational activities the scheme may enhance
B22: SECTION R1 - User calculated present value from recreation
D24: Notes
D25: If you have calculated the recreational benefits for a specific site or catchment (as a present value), enter it here.
H27: Confirm the confidence you have in the calculation method and valuation | P27: Confirm the start and end year of the evaluation
F29: Confirm the present value of the benefit £ | H29: Quantity | J29: Valuation (£) | L29: Present benefit after applying the confidence values | P29: Start | R29: End
L31: =J31*H31*F31 -> 0
B35: SECTION R2 - Specific activities to support recreation assessment
D37: Notes: Where you have identified and monetised other benefits, consider adding them to the Section R1.
B43: General recreational visits grassland, greenbelt, urban fringe and urban green space | J43: Confirm the confidence you have in the calculation method and valuation
D45: Option description | F45: Estimated no. of general recreational visits (per year) | H45: Select appropriate monetary value description (or enter used defined) £/visit | J45: Quantity | L45: Valuation (£) | N45: Confirm the start and end year of the evaluation | R45: Present value before confidence applied | T45: Present value after confidence applied | X45: These are referenced below - and can be changed if needed. | Y45: ValuesLibrary | Z45: J | AA45: K | AB45: L | AC45: M
B47: Baseline option | D47: ='Project Data'!$D$22 -> Existing | N47: Start | P47: End | R47: ='Present Value Calcs'!EP13 -> 0 | T47: =R47*L47*J47 -> 0 | X47: Greenbelt and urban fringe | Y47: 117 | Z47: =INDIRECT("'"&$Y$45&"'!"&Z$45&$Y47) -> 2.054326196 | AA47: =INDIRECT("'"&$Y$45&"'!"&AA$45&$Y47) -> 4.113762657 | AB47: 6.173199117 | AC47: User not defined
B49: Proposed option | D49: ='Project Data'!$D$24 -> Highway runoff diverted into SuDS across the catchment through swales and pipes. Storage in detention basin/online pond and geocellular. Raingardens and water butts used on private properties. | F49: 10000 | H49: 4.113762657 | J49: 0.5 | L49: 0.5 | N49: 2019 | P49: 2059 | R49: ='Present Value Calcs'!ER13 -> 892945.1538 | T49: =R49*L49*J49 -> 223236.2885 | X49: Grasslands | Y49: =MATCH(X49,ValuesLibrary!C:C,0) -> 117 | Z49: =INDIRECT("'"&$Y$45&"'!"&Z$45&$Y49) -> 2.054326196 | AA49: 4.113762657 | AB49: 6.173199117 | AC49: User not defined
P51: Difference | R51: =R49-R47 -> 892945.1538 | T51: =T49-T47 -> 223236.2885
B55: General Recreational Visits to Freshwater and floodplains | J55: Confirm the confidence you have in the calculation method and valuation
D57: Option description | F57: Estimated no. of general recreational visits (per year) | H57: Select appropriate monetary value description (or enter used defined) £/visit | J57: Quantity | L57: Valuation (£) | N57: Confirm the start and end year of the evaluation | R57: Present value before confidence applied | T57: Present value after confidence applied
B59: Baseline option | D59: ='Project Data'!$D$22 -> Existing | N59: Start | P59: End | R59: ='Present Value Calcs'!ET13 -> 0 | T59: =R59*L59*J59 -> 0 | X59: Freshwater and floodplains | Y59: =MATCH(X59,ValuesLibrary!C:C,0) -> 119 | Z59: =INDIRECT("'"&$Y$45&"'!"&Z$45&$Y59) -> 2.054326196 | AA59: =INDIRECT("'"&$Y$45&"'!"&AA$45&$Y59) -> 6.173199117 | AB59: 30.87621612 | AC59: User not defined
B61: Proposed option | D61: ='Project Data'!$D$24 -> Highway runoff diverted into SuDS across the catchment through swales and pipes. Storage in detention basin/online pond and geocellular. Raingardens and water butts used on private properties. | R61: ='Present Value Calcs'!EV13 -> 0 | T61: =R61*L61*J61 -> 0 | X61: Freshwater and floodplains | Y61: =MATCH(X61,ValuesLibrary!C:C,0) -> 119 | Z61: =INDIRECT("'"&$Y$45&"'!"&Z$45&$Y61) -> 2.054326196 | AA61: 6.173199117 | AB61: 30.87621612 | AC61: User not defined
P63: Difference | R63: =R61-R59 -> 0 | T63: =T61-T59 -> 0
B68: General Recreational Visits to woodland | J68: Confirm the confidence you have in the calculation method and valuation
D70: Option description | F70: Estimated no. of general recreational visits (per year) | H70: Select appropriate monetary value description (or enter used defined) £/visit | J70: Quantity | L70: Valuation (£) | N70: Confirm the start and end year of the evaluation | R70: Present value before confidence applied | T70: Present value after confidence applied
B72: Baseline option | D72: ='Project Data'!$D$22 -> Existing | N72: Start | P72: End | R72: ='Present Value Calcs'!EX13 -> 0 | T72: =R72*L72*J72 -> 0 | X72: Woodland | Y72: =MATCH(X72,ValuesLibrary!C:C,0) -> 120 | Z72: =INDIRECT("'"&$Y$45&"'!"&Z$45&$Y72) -> 2.054326196 | AA72: =INDIRECT("'"&$Y$45&"'!"&AA$45&$Y72) -> 10.29207204 | AB72: =INDIRECT("'"&$Y$45&"'!"&AB$45&$Y72) -> 19.55187071 | AC72: =INDIRECT("'"&$Y$45&"'!"&AC$45&$Y72) -> User not defined
B74: Proposed option | D74: ='Project Data'!$D$24 -> Highway runoff diverted into SuDS across the catchment through swales and pipes. Storage in detention basin/online pond and geocellular. Raingardens and water butts used on private properties. | R74: ='Present Value Calcs'!EZ13 -> 0 | T74: =R74*L74*J74 -> 0 | X74: Woodland | Y74: =MATCH(X74,ValuesLibrary!C:C,0) -> 120 | Z74: =INDIRECT("'"&$Y$45&"'!"&Z$45&$Y74) -> 2.054326196 | AA74: =INDIRECT("'"&$Y$45&"'!"&AA$45&$Y74) -> 10.29207204 | AB74: =INDIRECT("'"&$Y$45&"'!"&AB$45&$Y74) -> 19.55187071 | AC74: =INDIRECT("'"&$Y$45&"'!"&AC$45&$Y74) -> User not defined
P76: Difference | R76: =R74-R72 -> 0 | T76: =T74-T72 -> 0
B82: General recreational visits to constructed wetlands | J82: Confirm the confidence you have in the calculation method and valuation
B84: Option description | F84: Area of constructed wetlands (ha) | H84: Select appropriate monetary value description (or enter used defined) £/ha/yr | J84: Quantity | L84: Valuation (£) | N84: Confirm the start and end year of the evaluation | R84: Present value before confidence applied | T84: Present value after confidence applied
B86: Baseline option | D86: ='Project Data'!$D$22 -> Existing | N86: Start | P86: End | R86: ='Present Value Calcs'!FB13 -> 0 | T86: =R86*L86*J86 -> 0 | X86: Wetlands | Y86: =MATCH(X86,ValuesLibrary!C:C,0) -> 114 | Z86: =INDIRECT("'"&$Y$45&"'!"&Z$45&$Y86) -> 159.8467235 | AA86: =INDIRECT("'"&$Y$45&"'!"&AA$45&$Y86) -> 439.8540875 | AB86: 1017.507075 | AC86: User not defined
B88: Proposed option | D88: ='Project Data'!$D$24 -> Highway runoff diverted into SuDS across the catchment through swales and pipes. Storage in detention basin/online pond and geocellular. Raingardens and water butts used on private properties. | R88: ='Present Value Calcs'!FD13 -> 0 | T88: =R88*L88*J88 -> 0 | X88: Wetlands | Y88: =MATCH(X88,ValuesLibrary!C:C,0) -> 114 | Z88: =INDIRECT("'"&$Y$45&"'!"&Z$45&$Y88) -> 159.8467235 | AA88: 439.8540875 | AB88: 1017.507075 | AC88: User not defined
P90: Difference | R90: =R88-R86 -> 0 | T90: =T88-T86 -> 0
B97: Coarse angling | J97: Confirm the confidence you have in the calculation method and valuation
B99: Option description | F99: Estimated no. of coarse angling visits (per year) | H99: Select appropriate monetary value description (or enter used defined) £/visit | J99: Quantity | L99: Valuation (£) | N99: Confirm the start and end year of the evaluation | R99: Present value before confidence applied | T99: Present value after confidence applied
B101: Baseline option | D101: ='Project Data'!$D$22 -> Existing | N101: Start | P101: End | R101: ='Present Value Calcs'!FF13 -> 0 | T101: =R101*L101*J101 -> 0 | X101: Angling (coarse) | Y101: =MATCH(X101,ValuesLibrary!C:C,0) -> 115 | Z101: =INDIRECT("'"&$Y$45&"'!"&Z$45&$Y101) -> low not defined | AA101: =INDIRECT("'"&$Y$45&"'!"&AA$45&$Y101) -> 4.884521877 | AB101: high not defined | AC101: User not defined
B103: Proposed option | D103: ='Project Data'!$D$24 -> Highway runoff diverted into SuDS across the catchment through swales and pipes. Storage in detention basin/online pond and geocellular. Raingardens and water butts used on private properties. | F103: 365 | H103: 4.884521877 | J103: 0.75 | L103: 1 | N103: 2019 | P103: 2059 | R103: ='Present Value Calcs'!FH13 -> 38699.06539 | T103: =R103*L103*J103 -> 29024.29905 | X103: Angling (coarse) | Y103: =MATCH(X103,ValuesLibrary!C:C,0) -> 115 | Z103: =INDIRECT("'"&$Y$45&"'!"&Z$45&$Y103) -> low not defined | AA103: 4.884521877 | AB103: high not defined | AC103: User not defined
P105: Difference | R105: =R103-R101 -> 38699.06539 | T105: =T103-T101 -> 29024.29905
B112: Game angling | J112: Confirm the confidence you have in the calculation method and valuation
B114: Option description | F114: Estimated no. of game angling visits (per year) | H114: Select appropriate monetary value description (or enter used defined) £/visit | J114: Quantity | L114: Valuation (£) | N114: Confirm the start and end year of the evaluation | R114: Present value before confidence applied | T114: Present value after confidence applied
B116: Baseline option | D116: ='Project Data'!$D$22 -> Existing | N116: Start | P116: End | R116: ='Present Value Calcs'!FJ13 -> 0 | T116: =R116*L116*J116 -> 0 | X116: Angling (game) | Y116: =MATCH(X116,ValuesLibrary!C:C,0) -> 116 | Z116: =INDIRECT("'"&$Y$45&"'!"&Z$45&$Y116) -> low not defined | AA116: =INDIRECT("'"&$Y$45&"'!"&AA$45&$Y116) -> 6.143704571 | AB116: high not defined | AC116: User not defined
B118: Proposed option | D118: ='Project Data'!$D$24 -> Highway runoff diverted into SuDS across the catchment through swales and pipes. Storage in detention basin/online pond and geocellular. Raingardens and water butts used on private properties. | R118: ='Present Value Calcs'!FL13 -> 0 | T118: =R118*L118*J118 -> 0 | X118: Angling (game) | Y118: =MATCH(X118,ValuesLibrary!C:C,0) -> 116 | Z118: =INDIRECT("'"&$Y$45&"'!"&Z$45&$Y118) -> low not defined | AA118: 6.143704571 | AB118: high not defined | AC118: User not defined
L120: Difference | R120: =R118-R116 -> 0 | T120: =T118-T116 -> 0
A127: >>HIDE_BELOW

Sheet TC - Traffic calming (hidden)
X1: Traffic calming | Z1: >>HIDE_ALONG | AE1: <<ROWHEIGHTKEY>>
B2: =ProjDetails -> PROJECT DETAILS - Name: Roundhay Park SuDS Scheme , Assmt. Version: 1, Date: Feb 2019.
B6: Evidence and Qualitative summary
B7: 1 | C7: =IF('Screening Questions'!M36<=0,"Summary from screening questions",'Screening Questions'!M36) -> Summary from screening questions | AE7: <<ROW_ALT>>
B8: 2 | AE8: <<ROW_ALT>>
B9: 3 | AE9: <<ROW_ALT>>
B10: 4 | AE10: <<ROW_ALT>>
B11: 5 | AE11: <<ROW_ALT>>
C15: Notes
C16: Overview of the sections to help evaluate the scheme's impact on traffic calming
C17: This is likely to be a qualitative assessment, however if you have evidence and can quantify the impact, use section TC2.
E19: SECTION TC1 | I19: SECTION TC2
E20: Use this where an evaluation has taken place on the benefits of measures (e.g. road build outs) | I20: Use this where support is needed to complete an assessment
B23: SECTION TC1
E25: Note: Use this section where an external assessment has taken place.
O27: Confirm the start and end year of the evaluation | AE27: TO add into the results section
G29: Present value benefit from a local study | I29: Level of confidence of the quantity calculated (select from list) | K29: Level of confidence of the monetary value used | M29: Present value after confidence applied | O29: Start | Q29: End
M31: =G31*I31*K31 -> 0
B35: SECTION TC2
E37: Note: Use this section where you require support to estimate the effect of the scheme on traffic calming. As this is about a reduction, only the impact of the scheme needs to be entered.
C39: Reduction in accidents (A) | M39: Confirm the confidence you have in the calculation method and valuation | Q39: Confirm the start and end year of the evaluation
C41: Option description | G41: Estimated no. of accidents occurring relative to the type of the accident | I41: Select appropriate monetary value description | K41: Selected monetary value (£/accident prevented) | M41: Quantity | O41: Valuation (£) | Q41: Start | S41: End | U41: Present value before confidence applied | W41: Present value after confidence applied
C43: Reduction in selected number of accidents (1) | E43: ='Project Data'!$D$24 -> Highway runoff diverted into SuDS across the catchment through swales and pipes. Storage in detention basin/online pond and geocellular. Raingardens and water butts used on private properties. | K43: =IFERROR(VLOOKUP(I43,$AD$51:$AE$58,2,0),"") ->  | U43: ='Present Value Calcs'!HW13 -> 0 | W43: =U43*O43*M43 -> 0
C46: Reduction in accidents (B) | M46: Confirm the confidence you have in the calculation method and valuation | Q46: Confirm the start and end year of the evaluation
C48: Option description | G48: Estimated no. of accidents occurring relative to the type of the accident | I48: Select appropriate monetary value description | K48: Selected monetary value (£/accident prevented) | M48: Quantity | O48: Valuation (£) | Q48: Start | S48: End | U48: Present value before confidence applied | W48: Present value after confidence applied
C50: Reduction in selected number of accidents (2) | E50: ='Project Data'!$D$24 -> Highway runoff diverted into SuDS across the catchment through swales and pipes. Storage in detention basin/online pond and geocellular. Raingardens and water butts used on private properties. | K50: =IFERROR(VLOOKUP(I50,$AD$51:$AE$58,2,0),"") ->  | U50: ='Present Value Calcs'!HU13 -> 0 | W50: =U50*O50*M50 -> 0
AD51: =ValuesLibrary!C124 -> Fatal | AE51: =ValuesLibrary!K124 -> 2015486.145
AD52: =ValuesLibrary!C125 -> Serious | AE52: =ValuesLibrary!K125 -> 233180.332
AD53: =ValuesLibrary!C126 -> Slight | AE53: =ValuesLibrary!K126 -> 24032.55034
AD54: =ValuesLibrary!C127 -> All injury accidents | AE54: =ValuesLibrary!K127 -> 69421.9167
A55: >>HIDE_BELOW | AD55: =ValuesLibrary!C128 -> Damage only | AE55: =ValuesLibrary!K128 -> 2139.156582
AD56: =ValuesLibrary!C129 -> All accidents | AE56: =ValuesLibrary!K129 -> 5736.782557
AD57: =ValuesLibrary!C130 -> User defined | AE57: =ValuesLibrary!M130 -> User defined

Sheet WQ - Water quality
Q1: Water quality | AE1: >>HIDE_ALONG | AF1: <<ROWHEIGHTKEY>>
B2: =ProjDetails -> PROJECT DETAILS - Name: Roundhay Park SuDS Scheme , Assmt. Version: 1, Date: Feb 2019.
B6: Evidence: Qualitative summary and written evidence
B7: 1 | C7: =IF('Screening Questions'!M40="","Summary from screening questions",'Screening Questions'!M40) -> Improve the water quality by reducing the pollutant loads. | AF7: <<ROW_ALT>>
B8: 2 | AF8: <<ROW_ALT>>
B9: 3 | AF9: <<ROW_ALT>>
B10: 4 | AF10: <<ROW_ALT>>
B11: 5 | AF11: <<ROW_ALT>>
C14: Notes
C15: Overview of the sections to help choose which one to capture the impact on water quality in receiving waters.
C16: Only complete one section.
E19: SECTION WQ1 | G19: SECTION WQ2
E20: You have already assessed the present value benefit of the impact on water quality, enter values in here. This may include catchment schemes that avoids other costs | G20: If you require some support to estimate the impact, based on the location of the change in water quality classification and distance improved, enter values here.
B23: SECTION WQ1
C25: Notes:
C26: If you have calculated the impact of the proposals on water quality enter the present values here. If you have evaluated the impact change, such as the scale of the improvement, only enter proposed option values. Where NFM schemes have been introduced to manage catchment impacts and improve water quality, avoided costs such as improvements to wastewater treatment works (such as to remove Phosphorous to tighter limits), can be included in here (do not include in treating wastewater)
I28: Confirm the confidence you have in the calculation method and valuation
E30: Option description | G30: Present value before confidence applied | I30: Quantity | K30: Valuation (£) | M30: Present value after confidence applied | Q30: Confirm the start and end year of the evaluation
C32: Baseline option | E32: ='Project Data'!$D$22 -> Existing | G32: 0 | M32: =G32*I32*K32 -> 0 | Q32: Start | S32: End
C34: Proposed option | E34: ='Project Data'!$D$24 -> Highway runoff diverted into SuDS across the catchment through swales and pipes. Storage in detention basin/online pond and geocellular. Raingardens and water butts used on private properties. | M34: =G34*I34*K34 -> 0
I35: Average confidence values
E36: Sum of benefits | G36: =G34-G32 -> 0 | I36: =IFERROR(AVERAGE(I22:I34),"") ->  | K36: =IFERROR(AVERAGE(K22:K34),"") ->  | M36: =M34-M32 -> 0
B41: SECTION WQ2
C43: Notes:
C44: Use this section to estimate the impact of the proposals on the water quality of the receiving water. This can be length of watercourse or area of waterbody. Refer to the guidance to help you calculate the impact the scheme may have.
S52: Confirm the confidence you have in the calculation method and valuation | W52: Confirm the start and end year of the evaluation
E54: River improved | G54: Select the change in water quality classification (from - to) | I54: Select region | K54: Select the monetary value of change per km | M54: Monetary value selected (£) | O54: Length of the water course (km) or area of waterbody (km2) | Q54: Number of NWEBS categories the improvement applies to | S54: Quantity | U54: Valuation (£) | W54: Start | Y54: End | AA54: Present value before confidence applied | AC54: Present value after confidence applied
C56: Location A | G56: Moderate to Good | I56: Humber | K56: Central | M56: =SUMPRODUCT((rngWaterGrade=G56)*(rngWaterRegion=I56)*(rngWaterSubGrade=K56)*(rngWaterValues)) -> 25254.59724 | O56: 2.5 | Q56: 5 | S56: 0.5 | U56: 1 | W56: 2019 | Y56: 2059 | AA56: ='Present Value Calcs'!FX13 -> 1142049.065 | AC56: =AA56*S56*U56 -> 571024.5325
C58: Location B | M58: =SUMPRODUCT((rngWaterGrade=G58)*(rngWaterRegion=I58)*(rngWaterSubGrade=K58)*(rngWaterValues)) -> 0 | AA58: ='Present Value Calcs'!FZ13 -> 0 | AC58: =AA58*S58*U58 -> 0
C60: Location C | M60: =SUMPRODUCT((rngWaterGrade=G60)*(rngWaterRegion=I60)*(rngWaterSubGrade=K60)*(rngWaterValues)) -> 0 | AA60: ='Present Value Calcs'!GB13 -> 0 | AC60: =AA60*S60*U60 -> 0
C62: Location D | M62: =SUMPRODUCT((rngWaterGrade=G62)*(rngWaterRegion=I62)*(rngWaterSubGrade=K62)*(rngWaterValues)) -> 0 | AA62: ='Present Value Calcs'!GD13 -> 0 | AC62: =AA62*S62*U62 -> 0
C64: Location E | M64: =SUMPRODUCT((rngWaterGrade=G64)*(rngWaterRegion=I64)*(rngWaterSubGrade=K64)*(rngWaterValues)) -> 0 | AA64: ='Present Value Calcs'!GF13 -> 0 | AC64: =AA64*S64*U64 -> 0
A66: >>HIDE_BELOW

Sheet AP1 - Pumping (hidden)
AF1: Pumping wastewater and stormwater | AH1: >>HIDE_ALONG | AJ1: COL_RESET | AK1: <<ROWHEIGHTKEY>> | AQ1: COL_SHOW | AT1: ROW HEIGHTS | AV1: Quantity | AW1: Units | AX1: Level of certainty of the quantity calculated | AY1: Level of confidence of the monetary value selected/used | AZ1: Qualitative description | BA1: Indication of scale | BB1: Quantitative estimate
B2: =ProjDetails -> PROJECT DETAILS - Name: Roundhay Park SuDS Scheme , Assmt. Version: 1, Date: Feb 2019. | AI2: ANSWER | AQ2: Y
AL4: RESET PAGE
B6: Evidence: Qualitative summary and written evidence
B7: 1 | C7: =IF('Screening Questions'!M30<=0,"Summary from screening questions",'Screening Questions'!M30) -> Potentially positive but negligible impact on flows to works | AK7: <<ROW_ALT>>
B8: 2 | AK8: <<ROW_ALT>>
B9: 3 | AK9: <<ROW_ALT>>
B10: 4 | AK10: <<ROW_ALT>>
B11: 5 | AK11: <<ROW_ALT>>
AQ12: Y
C13: Notes
C14: Overview of the sections to help choose which section to capture the impact on pumping (including carbon)
C15: Only complete one section.
C16: Further help (to be developed) is provided in the guidance
E18: Section AP1-P1 | K18: Section AP1-P2 | R18: Section AP1-P3
E19: Use this section if you already assessed the impact on pumping stations | K19: Use this section if you need support to estimate the impact on pumping stations if you know information about the pumps and run times | R19: Use this section if you need support to estimate the impact on pumping stations if you only know information about the pumped flows and run times
B22: SECTION AP1-P1
E24: Note: If you have undertaken an assessment of the financial impact of the changing the flows to pumping stations enter the data here. If not, proceed to P2 or P3. For solutions where the grey infrastructure was to build storage, and increase the flow entering the sewer network (e.g. in the case of where CSO storage is required) then the increase should be recorded in the impact the grey infrastructure has on the network negatively. Similar questions can be asked for the grey infrastructure approach.
M27: Confirm the confidence you have in the calculation method and valuation | AA27: Confirm the start and end year of the evaluation (for information only)
I29: Confirm the present value of the benefit | M29: Quantity | P29: Valuation (£) | R29: Present value after confidence applied | AA29: Start | AD29: End
R31: =PRODUCT(I31,M31,P31) -> 0
B35: SECTION AP1-P2
E37: Notes:
E38: Use this section if you know the pump run time and kw rating to determine energy use. Once complete go to the bottom of the page to complete final questions. If you don't know the KW rating, then proceed to the next section. For solutions where the grey infrastructure was to build storage, and increase the flow entering the sewer network (e.g. in the case of where CSO storage is required) then the increase should be recorded in the impact the grey infrastructure has on the network negatively. Similar questions can be asked for the grey infrastructure approach.
E41: Baseline option | G41: ='Project Data'!$D$22 -> Existing | P41: Proposed option | R41: ='Project Data'!$D$24 -> Highway runoff diverted into SuDS across the catchment through swales and pipes. Storage in detention basin/online pond and geocellular. Raingardens and water butts used on private properties. | Z41: Saving | AB41: Confirm the confidence you have in the calculation method and valuation | BD41: =IF(strSchemeType="Retrofit","lstScnPumpBase1a",IF(strSchemeType="New Development","lstScnPumpBase2a","lstScnPumpBase")) -> lstScnPumpBase | BE41: =IF(strSchemeType="Retrofit","lstScnPumpBase1b",IF(strSchemeType="New Development","lstScnPumpBase2b","lstScnPumpBase")) -> lstScnPumpBase | BF41: .
E43: Pump reference (text) | G43: run time hrs / yr | I43: kW rating | K43: KW/year | P43: Pump reference (text) | R43: run time hrs / yr | T43: kW rating | V43: KW/year | Z43: KW/year | AB43: Quantity | AD43: Valuation (£)
K45: =I45*G45 -> 0 | V45: =T45*R45 -> 0 | Z45: =IFERROR(K45-V45,"") -> 0
K47: =I47*G47 -> 0 | V47: =T47*R47 -> 0 | Z47: =IFERROR(K47-V47,"") -> 0 | AF47: =IF(AND(AQ47="Y",AI47<>"Add Another.."),"Add Another..","") -> 
K49: =I49*G49 -> 0 | V49: =T49*R49 -> 0 | Z49: =IFERROR(K49-V49,"") -> 0 | AF49: =IF(AND(AQ49="Y",AI49<>"Add Another.."),"Add Another..","") -> 
K51: =I51*G51 -> 0 | V51: =T51*R51 -> 0 | Z51: =IFERROR(K51-V51,"") -> 0 | AF51: =IF(AND(AQ51="Y",AI51<>"Add Another.."),"Add Another..","") -> 
K53: =I53*G53 -> 0 | V53: =T53*R53 -> 0 | Z53: =IFERROR(K53-V53,"") -> 0 | AF53: =IF(AND(AQ53="Y",AI53<>"Add Another.."),"Add Another..","") -> 
K55: =I55*G55 -> 0 | P55: =IF(E55<>"",E55,"") ->  | V55: =T55*R55 -> 0 | Z55: =IFERROR(K55-V55,"") -> 0 | AF55: =IF(AND(AQ55="Y",AI55<>"Add Another.."),"Add Another..","") -> 
K57: =I57*G57 -> 0 | P57: =IF(E57<>"",E57,"") ->  | V57: =T57*R57 -> 0 | Z57: =IFERROR(K57-V57,"") -> 0 | AF57: =IF(AND(AQ57="Y",AI57<>"Add Another.."),"Add Another..","") -> 
K59: =I59*G59 -> 0 | P59: =IF(E59<>"",E59,"") ->  | V59: =T59*R59 -> 0 | Z59: =IFERROR(K59-V59,"") -> 0 | AF59: =IF(AND(AQ59="Y",AI59<>"Add Another.."),"Add Another..","") -> 
K61: =I61*G61 -> 0 | P61: =IF(E61<>"",E61,"") ->  | V61: =T61*R61 -> 0 | Z61: =IFERROR(K61-V61,"") -> 0 | AF61: =IF(AND(AQ61="Y",AI61<>"Add Another.."),"Add Another..","") -> 
K63: =I63*G63 -> 0 | P63: =IF(E63<>"",E63,"") ->  | V63: =T63*R63 -> 0 | Z63: =IFERROR(K63-V63,"") -> 0
B66: SECTION AP1-P3
E68: Notes:
E69: Use this section if you know the pump flows, run times and estimated head to determine energy use. Once complete go to the bottom of the page to complete final questions. For solutions where the grey infrastructure was to build storage, and increase the flow entering the sewer network (e.g. in the case of where CSO storage is required) then the increase should be recorded in the impact the grey infrastructure has on the network negatively. Similar questions can be asked for the grey infrastructure approach.
E71: Baseline option | G71: ='Project Data'!$D$22 -> Existing | P71: Proposed option | R71: ='Project Data'!$D$24 -> Highway runoff diverted into SuDS across the catchment through swales and pipes. Storage in detention basin/online pond and geocellular. Raingardens and water butts used on private properties. | Z71: Saving | AB71: Confirm the confidence you have in the calculation method and valuation
E73: Pump reference | G73: run time hrs / yr | I73: flow rate l/s | K73: estimated head (m) | M73: KW/year | P73: Pump reference | R73: run time hrs / yr | T73: flow rate l/s | V73: estimated head (m) | X73: KW/year | Z73: KW/year | AB73: Quantity | AD73: Valuation (£) | BD73: =pumpdrop1 -> lstScnPumpBase
M75: =1.05*G75*I75*K75/80 -> 0 | P75: =IF(E75<>"",E75,"") ->  | X75: =1.05*R75*T75*V75/80 -> 0 | Z75: =IFERROR(M75-X75,"") -> 0 | BD75: lstScnPumpBase
M77: =1.05*G77*I77*K77/80 -> 0 | P77: =IF(E77<>"",E77,"") ->  | X77: =1.05*R77*T77*V77/80 -> 0 | Z77: =IFERROR(M77-X77,"") -> 0 | AF77: =IF(AND(AQ77="Y",AI77<>"Add Another.."),"Add Another..","") ->  | BD77: lstScnPumpBase1b
M79: =1.05*G79*I79*K79/80 -> 0 | P79: =IF(E79<>"",E79,"") ->  | X79: =1.05*R79*T79*V79/80 -> 0 | Z79: =IFERROR(M79-X79,"") -> 0 | AF79: =IF(MAX(AM77:AM79)=ROW(),"Add Another..","") ->  | BD79: lstScnPumpBase2b
M81: =1.05*G81*I81*K81/80 -> 0 | P81: =IF(E81<>"",E81,"") ->  | X81: =1.05*R81*T81*V81/80 -> 0 | Z81: =IFERROR(M81-X81,"") -> 0 | AF81: =IF(MAX(AM79:AM81)=ROW(),"Add Another..","") -> 
M83: =1.05*G83*I83*K83/80 -> 0 | P83: =IF(E83<>"",E83,"") ->  | X83: =1.05*R83*T83*V83/80 -> 0 | Z83: =IFERROR(M83-X83,"") -> 0 | AF83: =IF(MAX(AM81:AM83)=ROW(),"Add Another..","") -> 
M85: =1.05*G85*I85*K85/80 -> 0 | P85: =IF(E85<>"",E85,"") ->  | X85: =1.05*R85*T85*V85/80 -> 0 | Z85: =IFERROR(M85-X85,"") -> 0 | AF85: =IF(MAX(AM83:AM85)=ROW(),"Add Another..","") -> 
M87: =1.05*G87*I87*K87/80 -> 0 | P87: =IF(E87<>"",E87,"") ->  | X87: =1.05*R87*T87*V87/80 -> 0 | Z87: =IFERROR(M87-X87,"") -> 0 | AF87: =IF(MAX(AM85:AM87)=ROW(),"Add Another..","") -> 
M89: =1.05*G89*I89*K89/80 -> 0 | P89: =IF(E89<>"",E89,"") ->  | X89: =1.05*R89*T89*V89/80 -> 0 | Z89: =IFERROR(M89-X89,"") -> 0 | AF89: =IF(MAX(AM87:AM89)=ROW(),"Add Another..","") -> 
M91: =1.05*G91*I91*K91/80 -> 0 | P91: =IF(E91<>"",E91,"") ->  | X91: =1.05*R91*T91*V91/80 -> 0 | Z91: =IFERROR(M91-X91,"") -> 0 | AF91: =IF(MAX(AM89:AM91)=ROW(),"Add Another..","") -> 
M93: =1.05*G93*I93*K93/80 -> 0 | P93: =IF(E93<>"",E93,"") ->  | X93: =1.05*R93*T93*V93/80 -> 0 | Z93: =IFERROR(M93-X93,"") -> 0
E96: Summary of impact of pumping from P2 and P3
E97: Please complete these | V97: Confirm the start and end year of the evaluation | AB97: Average quantity confidence | AD97: Average monetary confidence
E99: Traded Carbon | I99: Energy Tariff Type | M99: Energy Rate | V99: Start | X99: End
AB101: =IFERROR(AVERAGE(AB75,AB77,AB79,AB81,AB83,AB85,AB87,AB89,AB91,AB93,AB45,AB47,AB49,AB51,AB53,AB55,AB57,AB59,AB61,AB63),0) -> 0 | AD101: =IFERROR(AVERAGE(AD75,AD77,AD79,AD81,AD83,AD85,AD87,AD89,AD91,AD93,AD45,AD47,AD49,AD51,AD53,AD55,AD57,AD59,AD61,AD63),0) -> 0
P103: Before Confidence Applied | R103: After Confidence Applied
I105: Total Present Value for Energy | P105: ='Present Value Calcs'!I13 -> 0 | R105: =P105*AD101*AB101 -> 0 | V105: Annual Energy Saving KWh | Z105: =IFERROR(SUM(Z75,Z77,Z79,Z81,Z83,Z85,Z87,Z89,Z91,Z93,Z45,Z47,Z49,Z51,Z53,Z55,Z57,Z59,Z61,Z63),0) -> 0
I107: Total Present Value for Carbon | P107: ='Present Value Calcs'!K13 -> 0 | R107: =P107*AD101*AB101 -> 0
A111: >>HIDE_BELOW

Sheet AP2 - Treating wastewater
S1: Treating wastewater | U1: >>HIDE_ALONG | V1: <<ROWHEIGHTKEY>>
B2: =ProjDetails -> PROJECT DETAILS - Name: Roundhay Park SuDS Scheme , Assmt. Version: 1, Date: Feb 2019.
B6: Evidence: Qualitative summary and written evidence
B7: 1 | C7: =IF('Screening Questions'!M38<=0,"Summary from screening questions",'Screening Questions'!M38) -> Conventional solution will increase flow to works. | V7: <<ROW_ALT>>
B8: 2 | V8: <<ROW_ALT>>
B9: 3 | V9: <<ROW_ALT>>
B10: 4 | V10: <<ROW_ALT>>
B11: 5 | V11: <<ROW_ALT>>
C14: Notes
C15: Overview of the sections to help choose which one to use to assess the potential reduction in treatment
C16: Only complete one section.
C17: Its expected that a change in flows to the works will only occur for a retrofit or redevelopment scheme
E19: SECTION AP2-TW1 | G19: SECTION AP2-TW2
E20: You have already assessed the present value benefit of reducing flows to the works. Enter values in here. | G20: Use this section if you need to estimate the impact by understanding the change in flows to the works
B23: SECTION AP2-TW1
C25: Notes:
C26: Have you undertaken an assessment of the impact from a change in flows to the wastewater treatment works and calculated the present value?
C27: If Yes please enter the information below.
C28: If not, please go to section TW2 and estimate the impact on the works based on a change in volume.
I30: Confirm the confidence you have in the calculation method and valuation
E32: Option description | G32: Confirm the present value of the benefit £ | I32: Quantity | K32: Valuation (£) | M32: Present benefit after applying the confidence values | Q32: Confirm the start and end year of the evaluation
C34: Proposed option | E34: ='Project Data'!$D$24 -> Highway runoff diverted into SuDS across the catchment through swales and pipes. Storage in detention basin/online pond and geocellular. Raingardens and water butts used on private properties. | M34: =G34*I34*K34 -> 0 | Q34: Start | S34: End
B40: SECTION AP2-TW2
C42: Notes
C43: Use this section to estimate the present value impact on the works by knowing the average change in flows only and type of works. Match your works to the closest type in the table below.
E46: Option description | G46: Daily average flow (m3/d) | Q46: Confirm the start and end year of the evaluation
C48: Baseline option | E48: ='Project Data'!$D$22 -> Existing | G48: 225450 | I48: Traded Carbon (Electricity) | K48: Non-Traded Carbon (Process Emissions) | M48: Energy Type | O48: Energy Rate | Q48: Start | S48: End
C50: Proposed option | E50: ='Project Data'!$D$24 -> Highway runoff diverted into SuDS across the catchment through swales and pipes. Storage in detention basin/online pond and geocellular. Raingardens and water butts used on private properties. | G50: 225189 | I50: Central | K50: Central | M50: Commercial/ Public sector | O50: Central | Q50: 2019 | S50: 2059
E54: Works Category | G54: Size | I54: Application | M54: Typical PE range | O54: Gravity or pumped
E56: 6 | G56: Large | I56: =IFERROR(VLOOKUP($E$56&$G$56,CHOOSE({1,2},$AD$71:$AD$80&$AE$71:$AE$80,$AF$71:$AF$80),2,0),"Choice Error!") -> URBAN | K56: UWWTD | M56: =IFERROR(VLOOKUP($G$56&$I$56&$K$56,CHOOSE({1,2},$AE$71:$AE$80&$AF$71:$AF$80&$AG$71:$AG$80,$AH$71:$AH$80),2,0),"Choice Error!") -> > 150k | O56: Pumped | V56: =IFERROR(VLOOKUP($E$56&$G$56&$I$56&$K$56&$M$56,CHOOSE({1,2},$AD$71:$AD$80&$AE$71:$AE$80&$AF$71:$AF$80&$AG$71:$AG$80&$AH$71:$AH$80,$AC$71:$AC$80),2,0),0) -> 2 | W56: =IFERROR(MATCH(O56,$AJ$70:$AK$70,0),0) -> 2 | AA56: Large | AB56: URBAN | AC56: Sensitive receiving water
V57: ROW | W57: COLUMN | AA57: option doesn't exist for instance.. But is selectedable in the dropdowns
G58: Confirm the confidence you have in the calculation method and valuation
E60: Annual value Operating (£), Energy (KwH), Carbon (Tonnes CO2e) | G60: Quantity | I60: Valuation (£) | K60: Present value before confidence applied | M60: Present value after confidence applied | AA60: have cleaned up the equations to remove the 'helpeer' columns which worked ok but in the longer term will prove confusing and need more nmanagement,
C62: Operating | E62: =IF(OR(V56=0,W56=0),"Choose WwTW Category and Type",OFFSET($AI$70,$V$56,$W$56,1,1)) -> 2736.469694 | G62: 0.75 | I62: 1 | K62: ='Present Value Calcs'!CL13 -> 59398.59822 | M62: =K62*G62*I62 -> 44548.94866
C64: Energy | E64: =IF(OR(V56=0,W56=0),"Choose WwTW Category and Type",OFFSET($AL$70,$V$56,$W$56,1,1)) -> 3838.679421 | G64: 0.75 | I64: 1 | K64: ='Present Value Calcs'!CH13 -> 11837.30274 | M64: =K64*G64*I64 -> 8877.977055
C66: Carbon (electricity) | G66: 0.75 | I66: 1 | K66: ='Present Value Calcs'!CJ13 -> 634.6036782 | M66: =K66*G66*I66 -> 475.9527587
C68: Carbon (process emissions) | E68: =IF(OR(V56=0,W56=0),"Choose WwTW Category and Type",OFFSET($AO$70,$V$56,$W$56,1,1)) -> 1.951289495 | G68: 0.75 | I68: 1 | K68: ='Present Value Calcs'!CN13 -> 5455.311395 | M68: =K68*G68*I68 -> 4091.483547 | AJ68: OPERATING | AM68: ENERGY | AP68: CARBON
V69: Daily Average Flow (m3/d) | AA69: inconsistent naming | AJ69: Annual benefit estimate | AM69: Annual benefit estimate | AP69: Annual benefit estimate
A70: >>HIDE_BELOW | V70: 115045 | W70: (331301*J42)-130.37 | Y70: DataSource6URBAN | Z70: DataSource4RURAL | AA70: DataSource3RURAL | AD70: Works OFWAT Category | AE70: Size | AF70: Application | AH70: Typical PE range | AJ70: Gravity | AK70: Pumped | AM70: Gravity | AN70: Pumped | AP70: Gravity | AQ70: Pumped
G71: Traded Carbon | K71: Energy Tariff Type | O71: Energy Rate | V71: 115045 | W71: =(368723*J43)-32.956 | Y71: Nutrient Removal | Z71: Sensitive receiving water | AA71: UWWTD | AC71: 1 | AD71: 6 | AE71: Large | AF71: URBAN | AG71: Nutrient Removal | AH71: > 150k | AJ71: =($G$48/$V70)*IFERROR((1029045*(1-($G$50/$G$48))),"0") -> 2334.571211 | AK71: =AJ71+($G$48/$V70)*IFERROR((119132*(1-($G$50/$G$48))),"0") -> 2604.843296 | AM71: =($G$48/$V70)*IFERROR((251323*(1-($G$50/$G$48))),"0") -> 570.1708288 | AN71: =($G$48/$V70)*IFERROR((1738271*(1-($G$50/$G$48))),"0") -> 3943.576261 | AP71: =($G$48/$V70)*IFERROR((9.1*(1-($G$50/$G$48))*100),"0") -> 2.064496501 | AQ71: =($G$48/$V70)*IFERROR((5.081*(1-($G$50/$G$48))*100),"0") -> 1.152715025
V72: 46138.36302 | W72: (65377*J44)+24.01 | Y72: UWWTD | Z72: UWWTD | AC72: 2 | AD72: 6 | AE72: Large | AF72: URBAN | AG72: UWWTD | AH72: > 150k | AJ72: =($G$48/$V$71)*IFERROR(((1082671*(1-($G$50/$G$48)))),"0") -> 2456.231309 | AK72: =AJ72+($G$48/$V$71)*IFERROR(((123525*(1-($G$50/$G$48)))),"0") -> 2736.469694 | AM72: =($G$48/$V$71)*IFERROR(((205087*(1-($G$50/$G$48)))),"0") -> 465.2762571 | AN72: =($G$48/$V$71)*IFERROR(((1692034*(1-($G$50/$G$48)))),"0") -> 3838.679421 | AP72: =($G$48/$V71)*IFERROR((9.213*(1-($G$50/$G$48))*100),"0") -> 2.090132557 | AQ72: =($G$48/$V71)*IFERROR((8.601*(1-($G$50/$G$48))*100),"0") -> 1.951289495
G73: Central | K73: Commercial/ Public sector | O73: Central | V73: 60075.84792 | W73: 175948*J45-415.01 | AC73: 3 | AD73: 6 | AE73: Medium | AF73: URBAN | AG73: Nutrient Removal | AH73: 75-150k | AJ73: =($G$48/$V$72)*IFERROR((513609*(1-($G$50/$G$48))),"0") -> 2905.433575 | AK73: =AJ73+($G$48/$V$72)*IFERROR((49494*(1-($G$50/$G$48))),"0") -> 3185.41607 | AM73: =($G$48/$V$72)*IFERROR((2560*(1-($G$50/$G$48))),"0") -> 14.48165813 | AN73: =($G$48/$V$72)*IFERROR((397578*(1-($G$50/$G$48))),"0") -> 2249.058077 | AP73: =($G$48/$V72)*IFERROR((0.0032*(1-($G$50/$G$48))*100),"0") -> 0.001810207267 | AQ73: =($G$48/$V72)*IFERROR((1.958*(1-($G$50/$G$48))*100),"0") -> 1.107620571
V74: 10403.95133 | W74: (28298*J46)+8.6671 | AC74: 4 | AD74: 6 | AE74: Medium | AF74: URBAN | AG74: UWWTD | AH74: 75-150k | AJ74: =($G$48/$V$73)*IFERROR((210782*(1-($G$50/$G$48))),"0") -> 915.7440786 | AK74: =AJ74+($G$48/$V$73)*IFERROR((30345*(1-($G$50/$G$48))),"0") -> 1047.578173 | AM74: =($G$48/$V$73)*IFERROR((430712*(1-($G$50/$G$48))),"0") -> 1871.231716 | AN74: =($G$48/$V$73)*IFERROR((1435459*(1-($G$50/$G$48))),"0") -> 6236.363064 | AP74: =($G$48/$V73)*IFERROR((1.6462*(1-($G$50/$G$48))*100),"0") -> 0.7151929018 | AQ74: =($G$48/$V73)*IFERROR((1.673*(1-($G$50/$G$48))*100),"0") -> 0.7268361831
V75: 30822.92811 | W75: (71545*J47)-0.0053 | AC75: 5 | AD75: 6 | AE75: Small | AF75: URBAN | AG75: Nutrient Removal | AH75: < 75k | AJ75: =($G$48/$V$74)*IFERROR(((83606*(1-($G$50/$G$48)))),"0") -> 2097.392165 | AK75: =AJ75+($G$48/$V$74)*IFERROR(((32430*(1-($G$50/$G$48)))),"0") -> 2910.951334 | AM75: =($G$48/$V$74)*IFERROR(((0*(1-($G$50/$G$48)))-0),"0") -> 0 | AN75: =($G$48/$V$74)*IFERROR(((129039*(1-($G$50/$G$48)))),"0") -> 3237.152687 | AP75: =($G$48/$V74)*IFERROR((0.0394*(1-($G$50/$G$48))*100),"0") -> 0.09884129284 | AQ75: =($G$48/$V74)*IFERROR((0.394*(1-($G$50/$G$48))*100),"0") -> 0.9884129284
V76: 2737 | W76: (6386.9*J48)+2.3834 | AC76: 6 | AD76: 6 | AE76: Small | AF76: URBAN | AG76: UWWTD | AH76: < 75k | AJ76: =($G$48/$V$75)*IFERROR(((341256*(1-($G$50/$G$48)))),"0") -> 2889.661089 | AK76: =AJ76+($G$48/$V$75)*IFERROR(((3.5503*(1-($G$50/$G$48)))),"0") -> 2889.691152 | AM76: =($G$48/$V$75)*IFERROR(((559900*(1-($G$50/$G$48)))),"0") -> 4741.077794 | AN76: =($G$48/$V$75)*IFERROR(((958284*(1-($G$50/$G$48)))),"0") -> 8114.48293 | AP76: =($G$48/$V75)*IFERROR((1.473*(1-($G$50/$G$48))*100),"0") -> 1.247295515 | AQ76: =($G$48/$V75)*IFERROR((1.473*(1-($G$50/$G$48))*100),"0") -> 1.247295515
V77: 1878.472545 | W77: (956.91*J49)+1.6309 | AC77: 7 | AD77: 4 | AE77: Medium | AF77: RURAL | AG77: Sensitive receiving water | AH77: > 5k | AJ77: =($G$48/$V$76)*IFERROR(((7069*(1-($G$50/$G$48)))),"0") -> 674.0990135 | AK77: =AJ77+($G$48/$V$76)*IFERROR(((23.303*(1-($G$50/$G$48)))),"0") -> 676.3211849 | AM77: =($G$48/$V$76)*IFERROR(((45321*(1-($G$50/$G$48)))),"0") -> 4321.805261 | AN77: =($G$48/$V$76)*IFERROR(((80696*(1-($G$50/$G$48)))),"0") -> 7695.161125 | AP77: =($G$48/$V76)*IFERROR((0.267*(1-($G$50/$G$48))*100),"0") -> 2.546108878 | AQ77: =($G$48/$V76)*IFERROR((0.074*(1-($G$50/$G$48))*100),"0") -> 0.7056631348
V78: 839.2777778 | W78: (1981.1*J50)+2.7449 | AC78: 8 | AD78: 4 | AE78: Medium | AF78: RURAL | AG78: UWWTD | AH78: > 5k | AJ78: =($G$48/$V$77)*IFERROR(((7607*(1-($G$50/$G$48)))),"0") -> 1056.936927 | AK78: =AJ78+($G$48/$V$77)*IFERROR(((28.138*(1-($G$50/$G$48)))),"0") -> 1060.846496 | AM78: =($G$48/$V$77)*IFERROR(((235.67*(1-($G$50/$G$48)))),"0") -> 32.74462018 | AN78: =($G$48/$V$77)*IFERROR(((24279*(1-($G$50/$G$48)))),"0") -> 3373.389202 | AP78: =($G$48/$V77)*IFERROR((0.28*(1-($G$50/$G$48))*100),"0") -> 3.890394895 | AQ78: =($G$48/$V77)*IFERROR((0.089*(1-($G$50/$G$48))*100),"0") -> 1.236589806
V79: 123.9380926 | W79: (180.19*J51)-0.0037 | AC79: 9 | AD79: 4 | AE79: Small | AF79: RURAL | AG79: Sensitive receiving water | AH79: < 5k | AJ79: =($G$48/$V$78)*IFERROR(((4614*(1-($G$50/$G$48)))),"0") -> 1434.869398 | AK79: =AJ79+($G$48/$V$78)*IFERROR(((24.238*(1-($G$50/$G$48)))),"0") -> 1442.406972 | AM79: =($G$48/$V$78)*IFERROR(((6471*(1-($G$50/$G$48)))),"0") -> 2012.362349 | AN79: =($G$48/$V$78)*IFERROR(((17319*(1-($G$50/$G$48)))),"0") -> 5385.891441 | AP79: =($G$48/$V78)*IFERROR((0.084*(1-($G$50/$G$48))*100),"0") -> 2.612245979 | AQ79: =($G$48/$V78)*IFERROR((0.048*(1-($G$50/$G$48))*100),"0") -> 1.492711988
AC80: 10 | AD80: 3 | AE80: Small | AF80: RURAL | AG80: UWWTD | AH80: < 5k | AJ80: =($G$48/$V$79)*IFERROR(((1185*(1-($G$50/$G$48)))),"0") -> 2495.479746 | AK80: =AJ80+($G$48/$V$79)*IFERROR(((3.875*(1-($G$50/$G$48)))),"0") -> 2503.64007 | AM80: =($G$48/$V$79)*IFERROR(((0*(1-($G$50/$G$48)))-0),"0") -> 0 | AN80: =($G$48/$V$79)*IFERROR(((1601.9*(1-($G$50/$G$48)))),"0") -> 3373.425321 | AP80: =($G$48/$V79)*IFERROR((0.023*(1-($G$50/$G$48))*100),"0") -> 4.843547187 | AQ80: =($G$48/$V79)*IFERROR((0.008*(1-($G$50/$G$48))*100),"0") -> 1.684712065
AJ81: done | AK81: done | AM81: done | AN81: to do | AP81: done | AQ81: to do
AM86: used to calculate the energy and carbon automatically from the energy
AP87: Used to calculate the carbon process emissions

Sheet QW1 - Flows (hidden)
AC1: Flows in watercourse or waterbody (Water Quantity) | AE1: >>HIDE_ALONG | AI1: <<ROWHEIGHTKEY>>
B2: =ProjDetails -> PROJECT DETAILS - Name: Roundhay Park SuDS Scheme , Assmt. Version: 1, Date: Feb 2019.
B6: Evidence: Qualitative summary and written evidence
B7: 1 | C7: =IF('Screening Questions'!M22<=0,"Summary from screening questions",'Screening Questions'!M22) -> Summary from screening questions | AI7: <<ROW_ALT>>
B8: 2 | AI8: <<ROW_ALT>>
B9: 3 | AI9: <<ROW_ALT>>
B10: 4 | AI10: <<ROW_ALT>>
B11: 5 | AI11: <<ROW_ALT>>
C14: Notes
C15: Overview of the sections to help choose which one to capture the impact on flow (in receiving waters)
C16: Only complete one section.
E19: SECTION QW1-F1 | G19: SECTION QW1-F2
E20: You have already assessed the present value benefit of the impact on the flows in the watercourse, enter values in here. | G20: If you require some support to estimate the impact, based on the location of the change of flow in the water course, classification and distance improved
B23: SECTION QW1-F1
C25: Notes:
C26: If you have calculated the impact of the proposals on the flows in the watercourse or waterbody enter the present values here. For a retrofit, you only need to enter the present value for the proposed scenario
I28: Confirm the confidence you have in the calculation method and valuation
E30: Option description | G30: Present value before confidence applied | I30: Quantity | K30: Valuation (£) | M30: Present value after confidence applied | Q30: Confirm the start and end year of the evaluation
C32: Baseline option | E32: ='Project Data'!$D$22 -> Existing | G32: 0 | M32: =G32*I32*K32 -> 0 | Q32: Start | S32: End
C34: Proposed option | E34: ='Project Data'!$D$24 -> Highway runoff diverted into SuDS across the catchment through swales and pipes. Storage in detention basin/online pond and geocellular. Raingardens and water butts used on private properties. | G34: 0 | M34: =G34*I34*K34 -> 0
I35: Average confidence values
E36: Sum of benefits | G36: =G34-G32 -> 0 | I36: =IFERROR(AVERAGE(I22:I34),"") ->  | K36: =IFERROR(AVERAGE(K22:K34),"") ->  | M36: =M34-M32 -> 0
B41: SECTION QW1-F2
C43: Notes:
C44: Use this section to estimate the impact of the proposals on the flow in the receiving water For a retrofit, you only need to enter the present value for the proposed scenario.
S47: Confirm the confidence you have in the calculation method and valuation | W47: Confirm the start and end year of the evaluation
E49: Option description | G49: Select the change in classification (from - to) | I49: Select region | K49: Select the monetary value of change per km | M49: Monetary value selected (£) | O49: Length of the water course (km) or area of waterbody (km2) | Q49: Single NWEB category applies | S49: Quantity | U49: Valuation (£) | W49: Start | Y49: End | AA49: Present value before confidence applied | AC49: Present value after confidence applied
C51: Location A | E51: ='Project Data'!$D$24 -> Highway runoff diverted into SuDS across the catchment through swales and pipes. Storage in detention basin/online pond and geocellular. Raingardens and water butts used on private properties. | M51: =SUMPRODUCT((rngWaterGrade=G51)*(rngWaterRegion=I51)*(rngWaterSubGrade=K51)*(rngWaterValues)) -> 0 | Q51: 1 | AA51: ='Present Value Calcs'!GI13 -> 0 | AC51: =AA51*S51*U51 -> 0
C53: Location B | E53: ='Project Data'!$D$24 -> Highway runoff diverted into SuDS across the catchment through swales and pipes. Storage in detention basin/online pond and geocellular. Raingardens and water butts used on private properties. | M53: =SUMPRODUCT((rngWaterGrade=G53)*(rngWaterRegion=I53)*(rngWaterSubGrade=K53)*(rngWaterValues)) -> 0 | Q53: 1 | AA53: ='Present Value Calcs'!GK13 -> 0 | AC53: =AA53*S53*U53 -> 0
C55: Location C | E55: ='Project Data'!$D$24 -> Highway runoff diverted into SuDS across the catchment through swales and pipes. Storage in detention basin/online pond and geocellular. Raingardens and water butts used on private properties. | M55: =SUMPRODUCT((rngWaterGrade=G55)*(rngWaterRegion=I55)*(rngWaterSubGrade=K55)*(rngWaterValues)) -> 0 | Q55: 1 | AA55: ='Present Value Calcs'!GM13 -> 0 | AC55: =AA55*S55*U55 -> 0
C57: Location D | E57: ='Project Data'!$D$24 -> Highway runoff diverted into SuDS across the catchment through swales and pipes. Storage in detention basin/online pond and geocellular. Raingardens and water butts used on private properties. | M57: =SUMPRODUCT((rngWaterGrade=G57)*(rngWaterRegion=I57)*(rngWaterSubGrade=K57)*(rngWaterValues)) -> 0 | Q57: 1 | AA57: ='Present Value Calcs'!GO13 -> 0 | AC57: =AA57*S57*U57 -> 0
C59: Location E | E59: ='Project Data'!$D$24 -> Highway runoff diverted into SuDS across the catchment through swales and pipes. Storage in detention basin/online pond and geocellular. Raingardens and water butts used on private properties. | M59: =SUMPRODUCT((rngWaterGrade=G59)*(rngWaterRegion=I59)*(rngWaterSubGrade=K59)*(rngWaterValues)) -> 0 | Q59: 1 | AA59: ='Present Value Calcs'!GQ13 -> 0 | AC59: =AA59*S59*U59 -> 0
A62: >>HIDE_BELOW

Sheet QW2 - Groundwater recharge (hidden)
V1: Groundwater recharge (Water Quantity) | X1: >>HIDE_ALONG | AC1: <<ROWHEIGHTKEY>>
B2: =ProjDetails -> PROJECT DETAILS - Name: Roundhay Park SuDS Scheme , Assmt. Version: 1, Date: Feb 2019.
B6: Evidence: Qualitative summary and written evidence
B7: 1 | C7: =IF('Screening Questions'!M24<=0,"Summary from screening questions",'Screening Questions'!M24) -> Summary from screening questions | AC7: <<ROW_ALT>>
B8: 2 | AC8: <<ROW_ALT>>
B9: 3 | AC9: <<ROW_ALT>>
B10: 4 | AC10: <<ROW_ALT>>
B11: 5 | AC11: <<ROW_ALT>>
D14: Notes
D15: Overview of the sections to help assess the impacts on groundwater
D16: Only complete one section.
F19: SECTION QW2-GW1 | J19: SECTION QW2-GW2
F20: You have undertaken an independent or more detailed assessment of the impacts of groundwater recharge and drought avoidance | J20: You need support to estimate the value of increasing infiltration.
B23: SECTION QW2-GW1
B25: Notes | D25: Use this section if you already know the present value benefit.
H29: Confirm the confidence you have in the calculation method and valuation | N29: Confirm the start and end year of the evaluation
F31: Confirm the present value of the benefit £ | H31: Quantity | J31: Valuation (£) | L31: Present value after confidence applied | N31: Start | P31: End
L33: =J33*H33*F33 -> 0
B37: SECTION QW2-GW2
B40: Notes | D40: Use this section to help you estimate the present value for: - Seriously water stressed areas - areas not water stressed
B45: Seriously water stressed areas | J45: Confirm the confidence you have in the calculation method and valuation
B47: Option description | F47: Additional amount of groundwater (m3/yr) | H47: Monetised value (£/m3) | J47: Quantity | L47: Valuation (£) | N47: Confirm the start and end year of the evaluation | R47: Present value before confidence applied | T47: Present value after confidence applied
B49: Baseline option | D49: ='Project Data'!$D$22 -> Existing | N49: Start | P49: End | R49: ='Present Value Calcs'!FO13 -> 0 | T49: =R49*L49*J49 -> 0
B51: Proposed option | D51: ='Project Data'!$D$24 -> Highway runoff diverted into SuDS across the catchment through swales and pipes. Storage in detention basin/online pond and geocellular. Raingardens and water butts used on private properties. | R51: ='Present Value Calcs'!FQ13 -> 0 | T51: =R51*L51*J51 -> 0
P53: Difference | R53: =R51-R49 -> 0 | T53: =T51-T49 -> 0
B57: Areas not water stressed | J57: Confirm the confidence you have in the calculation method and valuation
B59: Option description | F59: Additional amount of groundwater (m3/yr) | H59: Monetised value (£/m3) | J59: Quantity | L59: Valuation (£) | N59: Confirm the start and end year of the evaluation | R59: Present value before confidence applied | T59: Present value after confidence applied
B61: Baseline option | D61: ='Project Data'!$D$22 -> Existing | N61: Start | P61: End | R61: ='Present Value Calcs'!FS13 -> 0 | T61: =R61*L61*J61 -> 0
B63: Proposed option | D63: ='Project Data'!$D$24 -> Highway runoff diverted into SuDS across the catchment through swales and pipes. Storage in detention basin/online pond and geocellular. Raingardens and water butts used on private properties. | R63: ='Present Value Calcs'!FU13 -> 0 | T63: =R63*L63*J63 -> 0
P65: Difference | R65: =R63-R61 -> 0 | T65: =T63-T61 -> 0
A70: >>HIDE_BELOW
F75: =ValuesLibrary!L235 -> 25037.7653 | G75: High
F77: =ValuesLibrary!L237 -> High not defined | G77: High
F93: Seriously water stressed
F94: =ValuesLibrary!J103 -> 0.481 | G94: Low
F95: =ValuesLibrary!K103 -> 1.21 | G95: Central
F96: =ValuesLibrary!L103 -> 1.94 | G96: High
F97: =ValuesLibrary!M103 -> User not defined | G97: User defined
F100: Not water stressed
F101: =ValuesLibrary!J104 -> 0.4 | G101: Low
F102: =ValuesLibrary!K104 -> 0.48 | G102: Central
F103: =ValuesLibrary!L104 -> 0.56 | G103: High
F104: =ValuesLibrary!M104 -> User not defined | G104: User defined

Sheet QW3 - Rainwater harvesting
V1: Rainwater harvesting (Water Quantity) | X1: >>HIDE_ALONG | AB1: <<ROWHEIGHTKEY>>
B2: =ProjDetails -> PROJECT DETAILS - Name: Roundhay Park SuDS Scheme , Assmt. Version: 1, Date: Feb 2019.
B6: Evidence: Qualitative summary and written evidence
B7: 1 | C7: =IF('Screening Questions'!M32<=0,"Summary from screening questions",'Screening Questions'!M32) -> A number of interventions will allow rainwater harvesting. | AB7: <<ROW_ALT>>
B8: 2 | AB8: <<ROW_ALT>>
B9: 3 | AB9: <<ROW_ALT>>
